2CCN - Level 2 Cost Centre Name,,9CCN - Level 9 Cost Centre Name,9CCC - Level 9 Cost Centre Code,9AN - Level 9 Account Name,9AC - Level 9 Account Code,Transaction Description,Date Paid,Transaction Reference,Analysed Amount,2AC - Level 2 Account Codes,Supplier Name,Supplier Code
Gloucester City Council,23UE,Business Support,PT250,Routine R And M - Vehicles,4011,Repairs,01/10/2014,391235,91.47,NET,Blade Motor Company,13671U
Gloucester City Council,23UE,Civic Admin And Hospitality,RC210,Routine R And M - Vehicles,4011,Repairs,01/10/2014,391225,111.51,NET,John Dandy Motors,13690P
Gloucester City Council,23UE,Contact Centre,RB300,Fees For Services Received,5350,Monthly Facility Fee September 2014,01/10/2014,391209,226.69,NET,Office Response,09439K
Gloucester City Council,23UE,Countryside Unit,LP201,Office Equipment <5000,5010,High Back Chair,01/10/2014,390939,97,NET,Furniture@Work Ltd,01124U
Gloucester City Council,23UE,Crematorium,HC200,Memorial Plaques,5053,Bronze Plaque,01/10/2014,391200,48,NET,Arkell & Hurcombe,59812T
Gloucester City Council,23UE,Crematorium,HC200,Memorial Plaques,5053,Bronze Plaque,01/10/2014,391202,48,NET,Arkell & Hurcombe,59812T
Gloucester City Council,23UE,Crematorium,HC200,Memorial Plaques,5053,Bronze Plaque,01/10/2014,391203,800,NET,Arkell & Hurcombe,59812T
Gloucester City Council,23UE,Crematorium,HC200,Memorial Plaques,5053,Bronze Plaques,01/10/2014,391201,150,NET,Arkell & Hurcombe,59812T
Gloucester City Council,23UE,Development Management,PT200,Contents Insurance,5700,Advertisements 18/09/2014,01/10/2014,391239,175.3,NET,Local World Ltd,08556P
Gloucester City Council,23UE,Docks Complex - Catering Servs,RB110,Catering Provisions -Food,5110,FOOD,01/10/2014,391213,82.62,NET,Janes Pantry,24500W
Gloucester City Council,23UE,Docks Complex - Catering Servs,RB110,Catering Provisions -Food,5110,Food w/e 14/09/2014,01/10/2014,391011,101.11,NET,Janes Pantry,24500W
Gloucester City Council,23UE,Docks Complex - Services,RB100,Service Charges,3020,SANIPOD LEASING HERBERT W/H,01/10/2014,390717,48.75,NET,Wessex Products (Leasing) Ltd,03684C
Gloucester City Council,23UE,Environmental Planning,LM340,Fees For Services Received,5350,Advertisement 15/09/2014,01/10/2014,391236,233.73,NET,Local World Ltd,08556P
Gloucester City Council,23UE,Financial Services,RT200,Computer Software Maintenance,5427,Expenses recharges,01/10/2014,391211,20.13,NET,Advanced Business Solutions,06072N
Gloucester City Council,23UE,Group Mgr Planning & Economy,GR101,Basic Pay - Temporary Staff,2751,TEMPORARY STAFF,01/10/2014,390974,2475,NET,Randstad Cpe Ltd,13987L
Gloucester City Council,23UE,Group Mgr Planning & Economy,GR101,Basic Pay - Temporary Staff,2751,TEMPORARY STAFF,01/10/2014,389667,2475,NET,Randstad Cpe Ltd,13987L
Gloucester City Council,23UE,Guildhall Bar And Caf�,LA210,Catering Provisions -Food,5110,Food w/e 14/09/2014,01/10/2014,391007,49,NET,Janes Pantry,24500W
Gloucester City Council,23UE,REDACTED,REDACTED,REDACTED,REDACTED,REDACTED,01/10/2014,REDACTED,109.22,NET,REDACTED,REDACTED
Gloucester City Council,23UE,REDACTED,REDACTED,REDACTED,REDACTED,REDACTED,01/10/2014,REDACTED,100,NET,REDACTED,REDACTED
Gloucester City Council,23UE,REDACTED,REDACTED,REDACTED,REDACTED,REDACTED,01/10/2014,REDACTED,100,NET,REDACTED,REDACTED
Gloucester City Council,23UE,REDACTED,REDACTED,REDACTED,REDACTED,REDACTED,01/10/2014,REDACTED,100,NET,REDACTED,REDACTED
Gloucester City Council,23UE,Homelessness Prevention,CH122,Fees For Services Received,5350,Medical Notes,01/10/2014,391189,20.5,NET,Gloucester Gp Consortium Company Ltd,11671N
Gloucester City Council,23UE,Investment Property,RB500,Advertising And Publicity,5702,Advertisement 07/05/2014,01/10/2014,391238,110,NET,Local World Ltd,08556P
Gloucester City Council,23UE,Marchants,LT108,Materials For Sale,5080,Ticket Sales August 2014,01/10/2014,391216,4221.5,NET,Marchants Coaches Ltd,48151Y
Gloucester City Council,23UE,Planning Policy,PT300,Basic Pay - Temporary Staff,2751,TEMPORARY STAFF,01/10/2014,389668,757.5,NET,Randstad Cpe Ltd,13987L
Gloucester City Council,23UE,Registration Of Electors,RS400,Postages,5400,ITR Reminders,01/10/2014,391193,1541.9,NET,Royal Mail S.Wales & South West,35830S
Gloucester City Council,23UE,Registration Of Electors,RS400,Postages,5400,Response Plus 26/07 & 09/08 2014,01/10/2014,391244,0.84,NET,Royal Mail S.Wales & South West,35830S
Gloucester City Council,23UE,Retail Market - Landlord,HM300,Security Services Fees,5351,Security Staff 06/08/2014,01/10/2014,390938,91.2,NET,Nsgl Ltd,12539E
Gloucester City Council,23UE,Retail Market - Landlord,HM300,Sewerage And Environ Charges,3402,Work at Eastgate Markets 01/09/2014,01/10/2014,390937,180,NET,Eezeeflow Drain Services,11587C
Gloucester City Council,23UE,Summer Festival,LT300,Fees For Services Received,5350,Event Servicing,01/10/2014,391190,160,NET,B & W Hire Ltd,55477Y
Gloucester City Council,23UE,Summer Festival,LT300,Fees For Services Received,5350,Event Toilet Hire,01/10/2014,391191,990,NET,B & W Hire Ltd,55477Y
Gloucester City Council,23UE,Summer Festival,LT300,Fees For Services Received,5350,Event Toilet Hire July 2014,01/10/2014,391192,860,NET,B & W Hire Ltd,55477Y
Gloucester City Council,23UE,Tic Trading,LT110,Materials For Sale,5080,"Polo Shirts, Hoodies etc",01/10/2014,391218,587.5,NET,Sportfolio Europe Lp,14456R
Gloucester City Council,23UE,Tic Trading,LT110,Publications For Sale,5064,Cathedral Guide Book,01/10/2014,391217,35.25,NET,The Chapter Of Gloucester Cathedral,12205P
Gloucester City Council,23UE,Aspire Admin Charges,LC105,Other Minor Income,9900,BAILIFF PAYMENTS 19/09/14,02/10/2014,391385,14,NET,Aspire Sports & Cultural Trust,08135V
Gloucester City Council,23UE,Building Control,PT400,Basic Pay - Temporary Staff,2751,TEMPORARY STAFF,02/10/2014,387758,1362.8,NET,The Oyster Partnership Limited,14900T
Gloucester City Council,23UE,Building Control,PT400,Basic Pay - Temporary Staff,2751,TEMPORARY STAFF,02/10/2014,391006,1401.3,NET,The Oyster Partnership Limited,14900T
Gloucester City Council,23UE,Cems/Crems Admin,HC100,Security Services Fees,5351,Cash handling,02/10/2014,391064,20.6,NET,G4s Cash Solutions (Uk) Ltd,04290V
Gloucester City Council,23UE,City Museum And Art Gallery,LM200,Publications For Sale,5064,Stationery,02/10/2014,390940,114.4,NET,Elgate,11620G
Gloucester City Council,23UE,City Museum And Art Gallery,LM200,Uniforms,5201,Poloshirts & Fleeces,02/10/2014,391204,192.34,NET,Alexandra,50586R
Gloucester City Council,23UE,Civic Admin And Hospitality,RC210,Events,5952,Donation to Civic Charity,02/10/2014,391388,5000,NET,Klinefelter's Syndrome Association Uk,15140N
Gloucester City Council,23UE,Civic Admin And Hospitality,RC210,Events,5952,Donation to Civic Charity,02/10/2014,391389,439,NET,Leonard Cheshire Disability,15145C
Gloucester City Council,23UE,Civic Admin And Hospitality,RC210,Other Minor Income,9900,Donation to Civic Charity,02/10/2014,391389,2424,NET,Leonard Cheshire Disability,15145C
Gloucester City Council,23UE,Client Revs & Bens Contract,RT240,Security Services Fees,5351,Cash handling,02/10/2014,391064,6.86,NET,G4s Cash Solutions (Uk) Ltd,04290V
Gloucester City Council,23UE,Contact Centre,RB300,Basic Pay -Admin /Prof Staff,2601,TEMPORARY STAFF,02/10/2014,391220,814,NET,Cps Anystaff Recruitment Ltd,13945D
Gloucester City Council,23UE,Crematorium,HC200,Cleaning Materials,3600,Cabinets,02/10/2014,391180,73.95,NET,Initial Washroom Solutions,24219P
Gloucester City Council,23UE,Development Management,PT200,Advertising And Publicity,5702,ADVERTS 25/9/14,02/10/2014,391335,146.08,NET,Local World Ltd,08556P
Gloucester City Council,23UE,Disabled Facilities Grants,CY013,Disabled Facility Grants,0074,MDF5116,02/10/2014,391386,2664.92,CAP,Dexco T/A Ableworld Gloucester Ltd,14977E
Gloucester City Council,23UE,Docks Complex - Services,RB100,Cleaning Materials,3600,Cleaning Materials,02/10/2014,388391,55.12,NET,Cleanmy Ltd,06971S
Gloucester City Council,23UE,Docks Complex - Services,RB100,Cleaning Materials,3600,Cleaning Materials,02/10/2014,389517,31.3,NET,Cleanmy Ltd,06971S
Gloucester City Council,23UE,Docks Complex - Services,RB100,General Repair/Maint Buildings,3000,"Engineers, Herbert Warehouse 09/09/2014",02/10/2014,391242,1646,NET,Airvent Systems Limited,51073T
Gloucester City Council,23UE,Folk Museum,LM210,Publications For Sale,5064,Stationary,02/10/2014,390940,78,NET,Elgate,11620G
Gloucester City Council,23UE,REDACTED,REDACTED,REDACTED,REDACTED,REDACTED,02/10/2014,REDACTED,484.6,NET,REDACTED,REDACTED
Gloucester City Council,23UE,Legal Services,RS200,Basic Pay - Temporary Staff,2751,TEMPORARY STAFF,02/10/2014,391005,395.11,NET,Premiere Employment Ltd,55468Z
Gloucester City Council,23UE,REDACTED,REDACTED,REDACTED,REDACTED,REDACTED,02/10/2014,REDACTED,800,NET,REDACTED,REDACTED
Gloucester City Council,23UE,Parks Contract Management,LP100,Maint Of Grounds - General,3030,"Coral Close, 17/09/2014",02/10/2014,391178,286.2,NET,Enterprise (Aol) Ltd,06695G
Gloucester City Council,23UE,Play Area Refurbishment,LY071,Purchase Cost -Land,0001,Metal Liner,02/10/2014,391198,371,CAP,Glasdon Uk Ltd,17752D
Gloucester City Council,23UE,Postal Services,RS120,Postages,5400,Post 05/09 - 18/09 2014,02/10/2014,391247,1531.83,NET,Royal Mail S.Wales & South West,35830S
Gloucester City Council,23UE,Retail Market - Landlord,HM300,Vocational Training,2970,"Training Course, 12/09/2014",02/10/2014,391199,200,NET,Nabma,47998L
Gloucester City Council,23UE,Retail Market - Landlord,HM300,Window Cleaning,3610,Monthly Window Clean,02/10/2014,391184,140,NET,Cornwall Cleaning Services,14050A
Gloucester City Council,23UE,Solace Project,FP843,Other Minor Supplies Services,5590,ASB Salary September 2014,02/10/2014,391009,3250,NET,Gloucester City Homes,05244T
Gloucester City Council,23UE,Stationery Services,RS150,Stationery,5302,Stationary,02/10/2014,391182,74.41,NET,Lyreco Uk Ltd,11746G
Gloucester City Council,23UE,Stationery Services,RS150,Stationery,5302,Stationary,02/10/2014,391183,33.02,NET,Lyreco Uk Ltd,11746G
Gloucester City Council,23UE,Tic Theatre Ticket Sales,LT107,Materials For Sale,5080,Ticket Sales,02/10/2014,391392,195.5,NET,Kings Theatre,54213X
Gloucester City Council,23UE,Tic Theatre Ticket Sales,LT107,Sale Of Goods And Services,9230,Ticket Sales,02/10/2014,391392,-16.42,NET,Kings Theatre,54213X
Gloucester City Council,23UE,Blackfriars,LA609,General Repair/Maint Buildings,3000,CXD200 ELEM,03/10/2014,390707,110.9,NET,Uk Electric Ltd,14973N
Gloucester City Council,23UE,Docks Complex - Catering Servs,RB110,Catering Provisions -Food,5110,Food w/e 24/08/2014,03/10/2014,389644,70.24,NET,Janes Pantry,24500W
Gloucester City Council,23UE,Eastgate Rooftop Emerg Works,RY159,Contract Payments,0020,ADVERTS 27/9/14,03/10/2014,391334,87.65,CAP,Local World Ltd,08556P
Gloucester City Council,23UE,Guildhall Events,LA200,Advertising And Publicity,5702,Advertisement August 2014,03/10/2014,391223,412.49,NET,Local World Ltd,08556P
Gloucester City Council,23UE,REDACTED,REDACTED,REDACTED,REDACTED,REDACTED,03/10/2014,REDACTED,364.6,NET,REDACTED,REDACTED
Gloucester City Council,23UE,REDACTED,REDACTED,REDACTED,REDACTED,REDACTED,03/10/2014,REDACTED,270,NET,REDACTED,REDACTED
Gloucester City Council,23UE,REDACTED,REDACTED,REDACTED,REDACTED,REDACTED,03/10/2014,REDACTED,364.6,NET,REDACTED,REDACTED
Gloucester City Council,23UE,REDACTED,REDACTED,REDACTED,REDACTED,REDACTED,03/10/2014,REDACTED,300,NET,REDACTED,REDACTED
Gloucester City Council,23UE,REDACTED,REDACTED,REDACTED,REDACTED,REDACTED,03/10/2014,REDACTED,425,NET,REDACTED,REDACTED
Gloucester City Council,23UE,REDACTED,REDACTED,REDACTED,REDACTED,REDACTED,03/10/2014,REDACTED,395,NET,REDACTED,REDACTED
Gloucester City Council,23UE,Investment Property,RB500,General Repair/Maint Buildings,3000,"Kingsway Pavillion, supply padlock",03/10/2014,390131,82.37,NET,Rf Gardiner Limited,12299B
Gloucester City Council,23UE,Investment Property,RB500,Lift Maintenance,3051,"Guildhall, markets, Blackfriars",03/10/2014,391022,506.03,NET,Pickerings Europe Ltd*,58816U
Gloucester City Council,23UE,Land Searches,RO300,Fees For Services Received,5350,LAND CHARGES,03/10/2014,390449,9075.27,NET,Gloucestershire County Council,18650D
Gloucester City Council,23UE,Business Support,PT250,Fuel,4012,Fuel,06/10/2014,391420,262,NET,Allstar Business Solutions Ltd (Arval),06594A
Gloucester City Council,23UE,Business Support,PT250,Fuel,4012,Fuel,06/10/2014,391421,292.52,NET,Allstar Business Solutions Ltd (Arval),06594A
Gloucester City Council,23UE,REDACTED,REDACTED,REDACTED,REDACTED,REDACTED,06/10/2014,REDACTED,35,NET,REDACTED,REDACTED
Gloucester City Council,23UE,Crematorium,HC200,Fees For Services Received,5350,Crem Doctors Fees September 2014,06/10/2014,391512,811.04,NET,Dr R W Bell,01571P
Gloucester City Council,23UE,Crematorium,HC200,Fees For Services Received,5350,Crem Doctors Fees September 2014,06/10/2014,391511,835.52,NET,Dr C M Stretton,00306P
Gloucester City Council,23UE,Crematorium,HC200,Maintenance Contract,5352,Crem Doctors Fees September 2014,06/10/2014,391513,1080.4,NET,Dr D Martin,00890P
Gloucester City Council,23UE,REDACTED,REDACTED,REDACTED,REDACTED,REDACTED,06/10/2014,REDACTED,195,NET,REDACTED,REDACTED
Gloucester City Council,23UE,Docks Complex - Catering Servs,RB110,Catering Provisions -Food,5110,Food,06/10/2014,391572,9.33,NET,Total Produce Gloucester,12645E
Gloucester City Council,23UE,Docks Complex - Catering Servs,RB110,Catering Provisions -Food,5110,Food,06/10/2014,391573,17.92,NET,Total Produce Gloucester,12645E
Gloucester City Council,23UE,Docks Complex - Catering Servs,RB110,Catering Provisions -Food,5110,Food,06/10/2014,391574,15.68,NET,Total Produce Gloucester,12645E
Gloucester City Council,23UE,Docks Complex - Catering Servs,RB110,Catering Provisions -Food,5110,Food,06/10/2014,391575,71.31,NET,Total Produce Gloucester,12645E
Gloucester City Council,23UE,Docks Complex - Catering Servs,RB110,Catering Provisions -Food,5110,Food,06/10/2014,391576,4.35,NET,Total Produce Gloucester,12645E
Gloucester City Council,23UE,Docks Complex - Catering Servs,RB110,Catering Provisions -Food,5110,Food,06/10/2014,391578,9.83,NET,Total Produce Gloucester,12645E
Gloucester City Council,23UE,Docks Complex - Catering Servs,RB110,Catering Provisions -Food,5110,Food,06/10/2014,391579,21.61,NET,Total Produce Gloucester,12645E
Gloucester City Council,23UE,Docks Complex - Catering Servs,RB110,Catering Provisions -Food,5110,Food,06/10/2014,391580,30.97,NET,Total Produce Gloucester,12645E
Gloucester City Council,23UE,Docks Complex - Catering Servs,RB110,Catering Provisions -Food,5110,Food,06/10/2014,391581,51.14,NET,Total Produce Gloucester,12645E
Gloucester City Council,23UE,Docks Complex - Catering Servs,RB110,Catering Provisions -Food,5110,Food,06/10/2014,391582,8.09,NET,Total Produce Gloucester,12645E
Gloucester City Council,23UE,Docks Complex - Catering Servs,RB110,Catering Provisions -Food,5110,Food,06/10/2014,391583,20.61,NET,Total Produce Gloucester,12645E
Gloucester City Council,23UE,Docks Complex - Catering Servs,RB110,Catering Provisions -Food,5110,Food,06/10/2014,391584,25.05,NET,Total Produce Gloucester,12645E
Gloucester City Council,23UE,Docks Complex - Catering Servs,RB110,Catering Provisions -Food,5110,Food,06/10/2014,391585,50.03,NET,Total Produce Gloucester,12645E
Gloucester City Council,23UE,Docks Complex - Catering Servs,RB110,Catering Provisions -Food,5110,Food,06/10/2014,391586,14.74,NET,Total Produce Gloucester,12645E
Gloucester City Council,23UE,Docks Complex - Catering Servs,RB110,Catering Provisions -Food,5110,Food,06/10/2014,391587,25.73,NET,Total Produce Gloucester,12645E
Gloucester City Council,23UE,Docks Complex - Catering Servs,RB110,Catering Provisions -Food,5110,Food,06/10/2014,391588,47.61,NET,Total Produce Gloucester,12645E
Gloucester City Council,23UE,Docks Complex - Catering Servs,RB110,Catering Provisions -Food,5110,Food,06/10/2014,391589,64.38,NET,Total Produce Gloucester,12645E
Gloucester City Council,23UE,Docks Complex - Catering Servs,RB110,Catering Provisions -Food,5110,Food,06/10/2014,391590,281.25,NET,3663,55585U
Gloucester City Council,23UE,Docks Complex - Catering Servs,RB110,Catering Provisions -Food,5110,Food,06/10/2014,391591,345.95,NET,3663,55585U
Gloucester City Council,23UE,Docks Complex - Catering Servs,RB110,Catering Provisions -Food,5110,Food,06/10/2014,391596,481.63,NET,3663,55585U
Gloucester City Council,23UE,Docks Complex - Catering Servs,RB110,Catering Provisions -Food,5110,Food,06/10/2014,391597,341.05,NET,3663,55585U
Gloucester City Council,23UE,Docks Complex - Catering Servs,RB110,Catering Provisions -Food,5110,Food,06/10/2014,391611,124.73,NET,3663,55585U
Gloucester City Council,23UE,REDACTED,REDACTED,REDACTED,REDACTED,REDACTED,06/10/2014,REDACTED,150,NET,REDACTED,REDACTED
Gloucester City Council,23UE,Drivers Budget,RL501,Fees For Services Received,5350,Glass Staff Awards,06/10/2014,391594,389.87,NET,Trophy World,44734E
Gloucester City Council,23UE,Financial Services,RT200,Computer Software Maintenance,5427,Expenses Recharges,06/10/2014,391210,289.62,NET,Advanced Business Solutions,06072N
Gloucester City Council,23UE,Group Mgr Planning & Economy,GR101,Basic Pay - Temporary Staff,2751,TEMPORARY STAFF,06/10/2014,391543,2475,NET,Randstad Cpe Ltd,13987L
Gloucester City Council,23UE,Group Mgr Planning & Economy,GR101,Basic Pay - Temporary Staff,2751,TEMPORARY STAFF,06/10/2014,391544,1980,NET,Randstad Cpe Ltd,13987L
Gloucester City Council,23UE,Kings Quarter,RY146,Contract Payments,0020,Visit 23/06/2014,06/10/2014,391438,500,CAP,Roadmark Ltd,37743T
Gloucester City Council,23UE,Matson & Robinswood Play S106,LY151,Contract Payments,0020,PLAY AREA EQUIPMENT,06/10/2014,391443,5645,CAP,Massey & Harris (Engineering) Ltd,14894K
Gloucester City Council,23UE,Museum Phase 2 Hlf,GY001,Contract Payments,0020,Visit 31/08/2014,06/10/2014,391439,1328.96,CAP,Roadmark Ltd,37743T
Gloucester City Council,23UE,Museum Phase 2 Hlf,GY001,Contract Payments,0020,Visits 27/08 & 31/08 2014,06/10/2014,391537,4721.94,CAP,Roadmark Ltd,37743T
Gloucester City Council,23UE,Nms Contract,HI102,Fees For Services Received,5350,KENNELLING,06/10/2014,390446,2324.85,NET,Enterprise (Aol) Ltd,06695G
Gloucester City Council,23UE,REDACTED,REDACTED,REDACTED,REDACTED,REDACTED,06/10/2014,REDACTED,25,NET,REDACTED,REDACTED
Gloucester City Council,23UE,REDACTED,REDACTED,REDACTED,REDACTED,REDACTED,06/10/2014,REDACTED,70,NET,REDACTED,REDACTED
Gloucester City Council,23UE,Summer Festival,LT300,Fees For Services Received,5350,Trade Waste Service,06/10/2014,387583,527.04,NET,Enterprise (Aol) Ltd,06695G
Gloucester City Council,23UE,The Arbor,HC501,Catering Provisions -Food,5110,Food,06/10/2014,391425,39.92,NET,Total Produce Gloucester,12645E
Gloucester City Council,23UE,The Arbor,HC501,Catering Provisions -Food,5110,Food,06/10/2014,391549,12.77,NET,Total Produce Gloucester,12645E
Gloucester City Council,23UE,The Arbor,HC501,Catering Provisions -Food,5110,Food,06/10/2014,391550,17,NET,Total Produce Gloucester,12645E
Gloucester City Council,23UE,The Arbor,HC501,Catering Provisions -Food,5110,Food,06/10/2014,391551,15.44,NET,Total Produce Gloucester,12645E
Gloucester City Council,23UE,The Arbor,HC501,Catering Provisions -Food,5110,Food,06/10/2014,391552,27.5,NET,Total Produce Gloucester,12645E
Gloucester City Council,23UE,The Arbor,HC501,Catering Provisions -Food,5110,Food,06/10/2014,391553,86.78,NET,Total Produce Gloucester,12645E
Gloucester City Council,23UE,The Arbor,HC501,Catering Provisions -Food,5110,Food,06/10/2014,391554,23.47,NET,Total Produce Gloucester,12645E
Gloucester City Council,23UE,The Arbor,HC501,Catering Provisions -Food,5110,Food,06/10/2014,391555,64.47,NET,3663,55585U
Gloucester City Council,23UE,The Arbor,HC501,Catering Provisions -Food,5110,Food,06/10/2014,391556,131.64,NET,3663,55585U
Gloucester City Council,23UE,The Arbor,HC501,Catering Provisions -Food,5110,Food,06/10/2014,391557,292.94,NET,3663,55585U
Gloucester City Council,23UE,The Arbor,HC501,Catering Provisions -Food,5110,Food,06/10/2014,391558,27.7,NET,Total Produce Gloucester,12645E
Gloucester City Council,23UE,The Arbor,HC501,Catering Provisions -Food,5110,Food,06/10/2014,391559,36.86,NET,Total Produce Gloucester,12645E
Gloucester City Council,23UE,The Arbor,HC501,Catering Provisions -Food,5110,Food,06/10/2014,391560,39.21,NET,Total Produce Gloucester,12645E
Gloucester City Council,23UE,The Arbor,HC501,Catering Provisions -Food,5110,Food,06/10/2014,391561,32.89,NET,Total Produce Gloucester,12645E
Gloucester City Council,23UE,The Arbor,HC501,Catering Provisions -Food,5110,Food,06/10/2014,391563,83.66,NET,Total Produce Gloucester,12645E
Gloucester City Council,23UE,The Arbor,HC501,Catering Provisions -Food,5110,Food,06/10/2014,391564,24.65,NET,Total Produce Gloucester,12645E
Gloucester City Council,23UE,The Arbor,HC501,Catering Provisions -Food,5110,Food,06/10/2014,391565,15.14,NET,Total Produce Gloucester,12645E
Gloucester City Council,23UE,The Arbor,HC501,Catering Provisions -Food,5110,Food,06/10/2014,391566,8.8,NET,Total Produce Gloucester,12645E
Gloucester City Council,23UE,The Arbor,HC501,Catering Provisions -Food,5110,Food,06/10/2014,391567,13.26,NET,Total Produce Gloucester,12645E
Gloucester City Council,23UE,The Arbor,HC501,Catering Provisions -Food,5110,Food,06/10/2014,391571,302.03,NET,3663,55585U
Gloucester City Council,23UE,The Arbor,HC501,Catering Provisions -Food,5110,Food,06/10/2014,391595,446.62,NET,3663,55585U
Gloucester City Council,23UE,The Arbor,HC501,Catering Provisions -Food,5110,Food,06/10/2014,391598,450.72,NET,3663,55585U
Gloucester City Council,23UE,The Arbor,HC501,Catering Provisions -Food,5110,Food,06/10/2014,391599,335.39,NET,3663,55585U
Gloucester City Council,23UE,The Arbor,HC501,Catering Provisions -Food,5110,Food,06/10/2014,391600,283.49,NET,3663,55585U
Gloucester City Council,23UE,The Arbor,HC501,Catering Provisions -Food,5110,Food,06/10/2014,391607,72.23,NET,3663,55585U
Gloucester City Council,23UE,The Arbor,HC501,Cleaning Materials,3600,Food,06/10/2014,391570,44.57,NET,3663,55585U
Gloucester City Council,23UE,The Arbor,HC501,Cleaning Materials,3600,Food,06/10/2014,391609,46.26,NET,3663,55585U
Gloucester City Council,23UE,The Arbor,HC501,Cleaning Materials,3600,Food,06/10/2014,391610,30.19,NET,3663,55585U
Gloucester City Council,23UE,The Arbor,HC501,Other Minor Supplies Services,5590,Flowers & Plants,06/10/2014,391547,16.4,NET,Carols Florist,01274X
Gloucester City Council,23UE,The Arbor,HC501,Other Minor Supplies Services,5590,Flowers & Plants,06/10/2014,391548,36.4,NET,Carols Florist,01274X
Gloucester City Council,23UE,The Arbor,HC501,Other Minor Supplies Services,5590,Flowers & Plants,06/10/2014,391593,69.6,NET,Carols Florist,01274X
Gloucester City Council,23UE,The Arbor,HC501,Other Minor Supplies Services,5590,Plants,06/10/2014,391592,26.4,NET,Carols Florist,01274X
Gloucester City Council,23UE,Business Transformation & Tech,RT700,Computer Hardware <5000,5420,Various Items,07/10/2014,391546,1145.9,NET,Dell Computers Corporation Ltd,55920C
Gloucester City Council,23UE,Business Transformation & Tech,RT700,Computer Software Maintenance,5427,Annual Software Support 14/15,07/10/2014,391527,9247.5,NET,Zengenti Ltd,08467P
Gloucester City Council,23UE,City Museum And Art Gallery,LM200,Misc Fixtures And Fittings,3500,Display Cases,07/10/2014,391526,280.72,NET,3d Displays Ltd,57544P
Gloucester City Council,23UE,City Museum And Art Gallery,LM200,Vocational Training,2970,CAG Conference 25/10/2014,07/10/2014,391520,15,NET,Bristol & Glos Archaeological Society,51165L
Gloucester City Council,23UE,Client Revs & Bens Contract,RT240,Fees For Services Received,5350,"Arrest &detention,council tax defaulters",07/10/2014,391521,198,NET,Assevarate Ltd,11749A
Gloucester City Council,23UE,Client Revs & Bens Contract,RT240,Fees For Services Received,5350,"Arrest&detention, council tax defaulters",07/10/2014,391522,49.5,NET,Assevarate Ltd,11749A
Gloucester City Council,23UE,Contact Centre,RB300,Basic Pay -Admin /Prof Staff,2601,TEMPORARY STAFF,07/10/2014,391470,808.5,NET,Cps Anystaff Recruitment Ltd,13945D
Gloucester City Council,23UE,Crematorium,HC200,Cleaning Materials,3600,Hand Towels,07/10/2014,391485,19.84,NET,Core Hygiene Ltd,03885P
Gloucester City Council,23UE,Docks Complex - Services,RB100,General Repair/Maint Buildings,3000,Fire Signs,07/10/2014,390961,26.15,NET,Hanman Split Ltd,56889J
Gloucester City Council,23UE,Flooding And Drainage,HE306,Maint Of Grounds - General,3030,Repairs to Mounting Bracket,07/10/2014,391531,295,NET,Mr M G Horton T/A H&T Property Maintenance,09210X
Gloucester City Council,23UE,REDACTED,REDACTED,REDACTED,REDACTED,REDACTED,07/10/2014,REDACTED,1000,NET,REDACTED,REDACTED
Gloucester City Council,23UE,Herbert Reception Upgrade,RY201,Contract Payments,0020,Damaged Tables,07/10/2014,391538,275,CAP,Regus,13861L
Gloucester City Council,23UE,REDACTED,REDACTED,REDACTED,REDACTED,REDACTED,07/10/2014,REDACTED,349.5,NET,REDACTED,REDACTED
Gloucester City Council,23UE,Legal Services,RS200,Basic Pay - Temporary Staff,2751,TEMPORARY STAFF,07/10/2014,391222,659.21,NET,Sellick Partnership Group Ltd,11057C
Gloucester City Council,23UE,Legal Services,RS200,Basic Pay - Temporary Staff,2751,TEMPORARY STAFF,07/10/2014,390999,997.5,NET,Michael Page International Recruitment Ltd,06601P
Gloucester City Council,23UE,Legal Services,RS200,Basic Pay - Temporary Staff,2751,TEMPORARY STAFF,07/10/2014,390744,275.03,NET,Sellick Partnership Group Ltd,11057C
Gloucester City Council,23UE,Legal Services,RS200,Basic Pay - Temporary Staff,2751,TEMPORARY STAFF,07/10/2014,391533,800,NET,Badenoch & Clark,01536P
Gloucester City Council,23UE,Legal Services,RS200,Basic Pay - Temporary Staff,2751,TEMPORARY STAFF,07/10/2014,391519,600,NET,Badenoch & Clark,01536P
Gloucester City Council,23UE,Legal Services,RS200,Basic Pay - Temporary Staff,2751,TEMPORARY STAFF,07/10/2014,390946,1226.7,NET,Venn Group Ltd,04339P
Gloucester City Council,23UE,Legal Services,RS200,Basic Pay - Temporary Staff,2751,TEMPORARY STAFF,07/10/2014,390947,1438.93,NET,Venn Group Ltd,04339P
Gloucester City Council,23UE,Legal Services,RS200,Basic Pay - Temporary Staff,2751,TEMPORARY STAFF,07/10/2014,391194,493.89,NET,Premiere Employment Ltd,55468Z
Gloucester City Council,23UE,Legal Services,RS200,Basic Pay - Temporary Staff,2751,TEMPORARY STAFF,07/10/2014,391232,296.33,NET,Premiere Employment Ltd,55468Z
Gloucester City Council,23UE,Legal Services,RS200,Publications,5060,Arden Housing Law,07/10/2014,391206,261,NET,Thomson Reuters,43110M
Gloucester City Council,23UE,Public Conveniences (Client),HI400,Contracted Services,6970,Toilet Scheme Sept 2014,07/10/2014,391653,300,NET,Shell Gloucestershire,11160W
Gloucester City Council,23UE,Public Conveniences (Client),HI400,Contracted Services,6970,Toilet Scheme Sept 2014,07/10/2014,391655,300,NET,Imperial Inn,13422U
Gloucester City Council,23UE,Public Conveniences (Client),HI400,Contracted Services,6970,Toilet Scheme Sept 2014,07/10/2014,391656,300,NET,The Cross Keys,11165K
Gloucester City Council,23UE,Public Conveniences (Client),HI400,Contracted Services,6970,Toilet Scheme Sept 2014,07/10/2014,391657,300,NET,Moon And Food Company Ltd,11166H
Gloucester City Council,23UE,Public Conveniences (Client),HI400,Contracted Services,6970,Toilet Scheme Sept 2014,07/10/2014,391659,300,NET,Eastgate Shopping Centre,11026K
Gloucester City Council,23UE,Public Conveniences (Client),HI400,Contracted Services,6970,Toilets Scheme Sept 2014,07/10/2014,391650,300,NET,Samuel Smith Old Brewery,11161U
Gloucester City Council,23UE,Public Conveniences (Client),HI400,Contracted Services,6970,Toilet Scheme Sept 2014,07/10/2014,391652,300,NET,Fab And Faded,13265K
Gloucester City Council,23UE,Public Conveniences (Client),HI400,Contracted Services,6970,Toilet Scheme Sept 2014,07/10/2014,391654,300,NET,Hucclecote Community Association,23020B
Gloucester City Council,23UE,Public Conveniences (Client),HI400,Contracted Services,6970,Toilet Scheme Sept 2014,07/10/2014,391658,300,NET,The Warehouse Climbing Centre,11162S
Gloucester City Council,23UE,Public Conveniences (Client),HI400,Contracted Services,6970,Toilet Scheme Sept 2014,07/10/2014,391660,300,NET,The Westgate,10683R
Gloucester City Council,23UE,Public Conveniences (Client),HI400,Contracted Services,6970,Toilets Scheme Sept 2014,07/10/2014,391651,300,NET,The New Inn,13079J
Gloucester City Council,23UE,REDACTED,REDACTED,REDACTED,REDACTED,REDACTED,07/10/2014,REDACTED,1130,NET,REDACTED,REDACTED
Gloucester City Council,23UE,Retail Market - Landlord,HM300,Sewerage And Environ Charges,3402,Disposal Unit 2014/15,07/10/2014,391482,666.62,NET,Phs Group Ltd,55193S
Gloucester City Council,23UE,S106 Hempsted Way Play Area,LY156,Contract Payments,0020,Community Consultation Hempsted,07/10/2014,391532,4720,CAP,Play Gloucestershire,06404K
Gloucester City Council,23UE,Stationery Services,RS150,Printing,5300,Paper,07/10/2014,391486,451,NET,Premier Paper Group Ltd,09166Y
Gloucester City Council,23UE,Swrda Asset Transfer,RY184,Contract Payments,0020,Barbican Car Park Seeding,07/10/2014,391637,1843.69,CAP,Anderson Civil Engineering Uk Ltd,09083D
Gloucester City Council,23UE,Taxi Marshalling Scheme,HL101,Taxi Marshals,5387,TAXI MARSHALLS,07/10/2014,390728,172.5,NET,Cuff Security Services Ltd,12073G
Gloucester City Council,23UE,Aspire Admin Charges,LC105,Fees For Services Received,5350,JUNE14 GCC STAFF MEMBERSHIP,08/10/2014,391772,995,NET,Aspire Sports & Cultural Trust,08135V
Gloucester City Council,23UE,Cems/Crems Admin,HC100,Security Services Fees,5351,Amendments to contract,08/10/2014,391604,5.68,NET,G4s Cash Solutions (Uk) Ltd,04290V
Gloucester City Council,23UE,Community Safety Projects,FP500,Basic Pay - Temporary Staff,2751,TEMPORARY STAFF,08/10/2014,391541,513.34,NET,Travail Employment Ltd,49371W
Gloucester City Council,23UE,Council Streetcare Team,HI101,Maint Of Grounds - General,3030,"Tree Works, Napier Street Playground",08/10/2014,391188,175,NET,Greenfields Garden Services Ltd,48130G
Gloucester City Council,23UE,Flooding And Drainage,HE306,Maint Of Grounds - General,3030,Farriers End July-Aug 2014,08/10/2014,391489,796,NET,Three Counties Drain Service,44033V
Gloucester City Council,23UE,REDACTED,REDACTED,REDACTED,REDACTED,REDACTED,08/10/2014,REDACTED,747,NET,REDACTED,REDACTED
Gloucester City Council,23UE,REDACTED,REDACTED,REDACTED,REDACTED,REDACTED,08/10/2014,REDACTED,400,NET,REDACTED,REDACTED
Gloucester City Council,23UE,Hillfield Gardens S106,LY112,Contract Payments,0020,"Hillfield Gardens, Railings",08/10/2014,391487,3301,CAP,Greenfields Garden Services Ltd,48130G
Gloucester City Council,23UE,Homelessness,CH120,Rent In Advance,5516,REDACTED,08/10/2014,391878,242.3,NET,D & R Hepburn,02295D
Gloucester City Council,23UE,REDACTED,REDACTED,REDACTED,REDACTED,REDACTED,08/10/2014,REDACTED,741.16,NET,REDACTED,REDACTED
Gloucester City Council,23UE,REDACTED,REDACTED,REDACTED,REDACTED,REDACTED,08/10/2014,REDACTED,800,NET,REDACTED,REDACTED
Gloucester City Council,23UE,Internal Audit,RT300,Basic Pay - Temporary Staff,2751,TEMPORARY STAFF,08/10/2014,391539,1073,NET,Robert Half Ltd,03959K
Gloucester City Council,23UE,Kings Quarter,RY146,Contract Payments,0020,CDM Co-ordinator services,08/10/2014,389119,250,CAP,Julian Stokes Management Ltd,09046K
Gloucester City Council,23UE,Off Street Car Parks,PP110,Rents,3200,Kings Sq car park rental SEP-DEC14,08/10/2014,391428,46250,NET,Dtz,08367V
Gloucester City Council,23UE,Retail Market - Landlord,HM300,General Repair/Maint Buildings,3000,Planned Maintenance,08/10/2014,391069,24.1,NET,Mitchells (Gloucester) Ltd,30160U
Gloucester City Council,23UE,Retail Market - Landlord,HM300,Service Charges,3020,MARKET HALL,08/10/2014,390454,11905.5,NET,Workman Llp,11021M
Gloucester City Council,23UE,Retail Market - Landlord,HM300,Sewerage And Environ Charges,3402,"Disposal Unit, 2014/15",08/10/2014,391483,666.62,NET,Phs Group Ltd,55193S
Gloucester City Council,23UE,Swrda Asset Transfer,RY184,Contract Payments,0020,Credited on 489,08/10/2014,391795,150,CAP,Abbey Surfacing,03487G
Gloucester City Council,23UE,Swrda Asset Transfer,RY184,Contract Payments,0020,Sweeper Hire and Tipping,08/10/2014,385094,2718,CAP,Abbey Surfacing,03487G
Gloucester City Council,23UE,Tree Planting Grant Funded,LY150,Contract Payments,0020,SUMMER WATERING,08/10/2014,390463,60,CAP,Greenfields Garden Services Ltd,48130G
Gloucester City Council,23UE,Tree Planting Grant Funded,LY150,Contract Payments,0020,SUMMER WATERING,08/10/2014,390498,60,CAP,Greenfields Garden Services Ltd,48130G
Gloucester City Council,23UE,Tree Planting Grant Funded,LY150,Contract Payments,0020,repairs to tree guards,08/10/2014,387948,221,CAP,Greenfields Garden Services Ltd,48130G
Gloucester City Council,23UE,Corporate Reporting /Financing,RC504,Audit Fees,5383,National Fraud Initiative 2014/15,09/10/2014,391477,2300,NET,Audit Commission,02050N
Gloucester City Council,23UE,Disabled Facilities Grants,CY013,Disabled Facility Grants,0074,MDF5045,09/10/2014,391913,4236.52,CAP,Mears Home Improvement Ltd,00096G
Gloucester City Council,23UE,Disabled Facilities Grants,CY013,Disabled Facility Grants,0074,MDF5110,09/10/2014,391912,1057.71,CAP,Tpg Disableaids,51324R
Gloucester City Council,23UE,Homelessness,CH120,Removal And Storage Fees,5513,TEMPORARY STORAGE,09/10/2014,391475,39.11,NET,Advanced Removals & Storage Ltd,57142R
Gloucester City Council,23UE,Homelessness,CH120,Removal And Storage Fees,5513,TEMPORARY STORAGE,09/10/2014,391472,435.86,NET,Advanced Removals & Storage Ltd,57142R
Gloucester City Council,23UE,Homelessness,CH120,Removal And Storage Fees,5513,TEMPORARY STORAGE,09/10/2014,391474,23.14,NET,Advanced Removals & Storage Ltd,57142R
Gloucester City Council,23UE,Homelessness,CH120,Removal And Storage Fees,5513,TEMPORARY STORAGE,09/10/2014,391476,156.43,NET,Advanced Removals & Storage Ltd,57142R
Gloucester City Council,23UE,Homelessness,CH120,Removal And Storage Fees,5513,TEMPORARY STORAGE,09/10/2014,391473,36,NET,Advanced Removals & Storage Ltd,57142R
Gloucester City Council,23UE,Museum Phase 2 Hlf,GY001,Contract Payments,0020,CITY MUSEUM QS SERVICES,09/10/2014,390762,325,CAP,Rpa,01710Y
Gloucester City Council,23UE,Postal Services,RS120,Postages,5400,Response Services Apr 2012- Aug 2014,09/10/2014,390009,1044.29,NET,Royal Mail S.Wales & South West,35830S
Gloucester City Council,23UE,Tic Theatre Ticket Sales,LT107,Materials For Sale,5080,"Ticket Sales, German Concert 27/08/2014",09/10/2014,391918,226,NET,Royal British Legion Glos City Branch,05043F
Gloucester City Council,23UE,REDACTED,REDACTED,REDACTED,REDACTED,REDACTED,09/10/2014,REDACTED,340,NET,REDACTED,REDACTED
Gloucester City Council,23UE,REDACTED,REDACTED,REDACTED,REDACTED,REDACTED,09/10/2014,REDACTED,-1,NET,REDACTED,REDACTED
Gloucester City Council,23UE,Tic Theatre Ticket Sales,LT107,Sale Of Goods And Services,9230,"Ticket Sales, German Concert 27/08/2014",09/10/2014,391918,-9.42,NET,Royal British Legion Glos City Branch,05043F
Gloucester City Council,23UE,REDACTED,REDACTED,REDACTED,REDACTED,REDACTED,09/10/2014,REDACTED,-28.33,NET,REDACTED,REDACTED
Gloucester City Council,23UE,Tic Trading,LT110,Materials For Sale,5080,Uniforms,09/10/2014,391491,462.5,NET,Sportfolio Europe Lp,14456R
Gloucester City Council,23UE,REDACTED,REDACTED,REDACTED,REDACTED,REDACTED,09/10/2014,REDACTED,71.4,NET,REDACTED,REDACTED
Gloucester City Council,23UE,REDACTED,REDACTED,REDACTED,REDACTED,REDACTED,10/10/2014,REDACTED,140,NET,REDACTED,REDACTED
Gloucester City Council,23UE,REDACTED,REDACTED,REDACTED,REDACTED,REDACTED,10/10/2014,REDACTED,110,NET,REDACTED,REDACTED
Gloucester City Council,23UE,Business Transformation & Tech,RT700,Computer Hardware Maintenance,5426,Printer Support Contract,10/10/2014,388395,375,NET,System Force I.T.,08693C
Gloucester City Council,23UE,Business Transformation & Tech,RT700,Computer Hardware Maintenance,5426,Maintenance Agreement,10/10/2014,390935,167.25,NET,Stanford Marsh Ltd*,51139M
Gloucester City Council,23UE,Business Transformation & Tech,RT700,Computer Hardware Maintenance,5426,Rental of Contex Scanner,10/10/2014,390965,321,NET,Stanford Marsh Ltd*,51139M
Gloucester City Council,23UE,Business Transformation & Tech,RT700,Computer Software Maintenance,5427,Annual Maintenance,10/10/2014,388248,498.4,NET,Clarity Retail Systems,10290R
Gloucester City Council,23UE,Business Transformation & Tech,RT700,Computer Software Maintenance,5427,"Annual Maintenance, software support",10/10/2014,388247,249.2,NET,Clarity Retail Systems,10290R
Gloucester City Council,23UE,Business Transformation & Tech,RT700,Computer Software Maintenance,5427,LEISURE FLEX,10/10/2014,390373,8474.08,NET,Clarity Retail Systems,10290R
Gloucester City Council,23UE,Business Transformation & Tech,RT700,Computer Software Maintenance,5427,LICENCE NOV 2014,10/10/2014,391935,750,NET,Ncc Services Ltd,03054V
Gloucester City Council,23UE,Business Transformation & Tech,RT700,Computer Software Maintenance,5427,Licensee Annual Fee October 2014,10/10/2014,389048,600,NET,Ncc Services Ltd,03054V
Gloucester City Council,23UE,Contact Centre,RB300,Basic Pay -Admin /Prof Staff,2601,Temporary Staff w/e 19/09/2014,10/10/2014,391245,2188.34,NET,One To One Recruitment,04752H
Gloucester City Council,23UE,Docks Complex - Telephones,RB120,Lease Lines,5411,Call Charges July 2014,10/10/2014,390010,2366.42,NET,Gamma Business Communications,10260A
Gloucester City Council,23UE,Docks Complex - Telephones,RB120,Lease Lines,5411,Call Charges June 2014,10/10/2014,390016,2296.57,NET,Gamma Business Communications,10260A
Gloucester City Council,23UE,Docks Complex - Telephones,RB120,Mobile Phones,5409,Charges for Quarter 1,10/10/2014,387808,3852.33,NET,Vodafone Ltd,53527D
Gloucester City Council,23UE,Docks Complex - Telephones,RB120,Telephones And Fax,5410,ACCT VP75978270,10/10/2014,387532,2191.24,NET,Bt Payment Services Ltd,56283E
Gloucester City Council,23UE,Docks Complex - Telephones,RB120,Telephones And Fax,5410,Blueyonder Multiple User Oct 2014,10/10/2014,391243,80,NET,Virgin Media Payments Ltd,09376J
Gloucester City Council,23UE,Docks Complex - Telephones,RB120,Telephones And Fax,5410,CALLS TO 03/09/14,10/10/2014,390451,1971.64,NET,Everything Everywhere Ltd (T-Mobile),57543S
Gloucester City Council,23UE,Docks Complex - Telephones,RB120,Telephones And Fax,5410,charges JUL14,10/10/2014,388667,1962.15,NET,Everything Everywhere Ltd (T-Mobile),57543S
Gloucester City Council,23UE,Docks Complex - Telephones,RB120,Telephones And Fax,5410,JUL14 service charges,10/10/2014,388668,42.75,NET,Everything Everywhere Ltd (T-Mobile),57543S
Gloucester City Council,23UE,Docks Complex - Telephones,RB120,Telephones And Fax,5410,Recurring Charges Sept- Oct 2014,10/10/2014,391016,39,NET,Virgin Media Payments Ltd,09376J
Gloucester City Council,23UE,Docks Complex - Telephones,RB120,Telephones And Fax,5410,Recurring Charges Sept- Oct 2014,10/10/2014,391025,33,NET,Virgin Media Payments Ltd,09376J
Gloucester City Council,23UE,Docks Complex - Telephones,RB120,Telephones And Fax,5410,Recurring Charges Sept- Oct 2014,10/10/2014,391026,80,NET,Virgin Media Payments Ltd,09376J
Gloucester City Council,23UE,Docks Complex - Telephones,RB120,Telephones And Fax,5410,Recurring & Phone charges Sep- Oct 2014,10/10/2014,391027,15.98,NET,Virgin Media Payments Ltd,09376J
Gloucester City Council,23UE,Electrical Investigatory Works,RY142,Contract Payments,0020,management surveys,10/10/2014,380390,7895,CAP,Mss Group,14469F
Gloucester City Council,23UE,REDACTED,REDACTED,REDACTED,REDACTED,REDACTED,10/10/2014,REDACTED,100,NET,REDACTED,REDACTED
Gloucester City Council,23UE,REDACTED,REDACTED,REDACTED,REDACTED,REDACTED,10/10/2014,REDACTED,250,NET,REDACTED,REDACTED
Gloucester City Council,23UE,REDACTED,REDACTED,REDACTED,REDACTED,REDACTED,10/10/2014,REDACTED,400,NET,REDACTED,REDACTED
Gloucester City Council,23UE,REDACTED,REDACTED,REDACTED,REDACTED,REDACTED,10/10/2014,REDACTED,100,NET,REDACTED,REDACTED
Gloucester City Council,23UE,REDACTED,REDACTED,REDACTED,REDACTED,REDACTED,10/10/2014,REDACTED,150,NET,REDACTED,REDACTED
Gloucester City Council,23UE,REDACTED,REDACTED,REDACTED,REDACTED,REDACTED,10/10/2014,REDACTED,200,NET,REDACTED,REDACTED
Gloucester City Council,23UE,REDACTED,REDACTED,REDACTED,REDACTED,REDACTED,10/10/2014,REDACTED,125,NET,REDACTED,REDACTED
Gloucester City Council,23UE,REDACTED,REDACTED,REDACTED,REDACTED,REDACTED,10/10/2014,REDACTED,465,NET,REDACTED,REDACTED
Gloucester City Council,23UE,REDACTED,REDACTED,REDACTED,REDACTED,REDACTED,10/10/2014,REDACTED,120,NET,REDACTED,REDACTED
Gloucester City Council,23UE,REDACTED,REDACTED,REDACTED,REDACTED,REDACTED,10/10/2014,REDACTED,450,NET,REDACTED,REDACTED
Gloucester City Council,23UE,Homelessness,CH120,Rent In Advance,5516,REDACTED,10/10/2014,391933,484.6,NET,2 Let Glos Ltd,74622M
Gloucester City Council,23UE,Homelessness Prevention,CH122,Fees For Services Received,5350,REDACTED,10/10/2014,391933,500,NET,2 Let Glos Ltd,74622M
Gloucester City Council,23UE,National Express,LT105,Materials For Sale,5080,September 2014,10/10/2014,391792,12951,NET,National Express Ltd,31455K
Gloucester City Council,23UE,National Express,LT105,Sale Of Goods And Services,9230,September 2014,10/10/2014,391792,-1251.8,NET,National Express Ltd,31455K
Gloucester City Council,23UE,Nms Contract,HI102,Fees For Services Received,5350,LARAC Conference 2014,10/10/2014,391934,179,NET,Environment Media Group,14994E
Gloucester City Council,23UE,Rehousing,CH111,Basic Pay - Temporary Staff,2751,TEMPORARY STAFF,10/10/2014,391542,703,NET,Building Recruitment Company Ltd,55385E
Gloucester City Council,23UE,Retail Market - Landlord,HM300,Cleaning / Domestic Equipment,5011,Markets Cabinets,10/10/2014,391205,18.05,NET,Initial Washroom Solutions,06143R
Gloucester City Council,23UE,Tree Planting Grant Funded,LY150,Contract Payments,0020,SUMMER WATERING,10/10/2014,390430,30,CAP,Greenfields Garden Services Ltd,48130G
Gloucester City Council,23UE,Utilities,PT502,Electricity Supply,3110,BARBICAN HOUSE,10/10/2014,391919,164.19,NET,West Mercia Energy,11669Z
Gloucester City Council,23UE,Allotments,HI104,Operational Equipment <5000,5012,skip hire,13/10/2014,391802,200,NET,Allstone Sand & Gravel Aggregates Ltd,00940M
Gloucester City Council,23UE,Asset Management,RS300,Basic Pay - Temporary Staff,2751,CONTRACT FEE,13/10/2014,391680,1795.87,NET,Abatec Ltd,14249Y
Gloucester City Council,23UE,Asset Management,RS300,Basic Pay - Temporary Staff,2751,Consultancy Services,13/10/2014,390108,5650,NET,Ardley Associates,09369F
Gloucester City Council,23UE,Barbican House,RB506,General Repair/Maint Buildings,3000,"Barbican House, Check fire alarm",13/10/2014,391820,52.56,NET,Rf Gardiner Limited,12299B
Gloucester City Council,23UE,Barbican House,RB506,General Repair/Maint Buildings,3000,"Barbican House, re-align gutters",13/10/2014,391822,180.62,NET,Rf Gardiner Limited,12299B
Gloucester City Council,23UE,Barbican House,RB506,General Repair/Maint Buildings,3000,"Barbican House, repair sump pump",13/10/2014,391855,65.7,NET,Rf Gardiner Limited,12299B
Gloucester City Council,23UE,REDACTED,REDACTED,REDACTED,REDACTED,REDACTED,13/10/2014,REDACTED,70,NET,REDACTED,REDACTED
Gloucester City Council,23UE,REDACTED,REDACTED,REDACTED,REDACTED,REDACTED,13/10/2014,REDACTED,150,NET,REDACTED,REDACTED
Gloucester City Council,23UE,REDACTED,REDACTED,REDACTED,REDACTED,REDACTED,13/10/2014,REDACTED,80,NET,REDACTED,REDACTED
Gloucester City Council,23UE,Blackfriars,LA609,Hire Of Equipment,5020,Blackfriars equipment 12-22 sept 14,13/10/2014,391965,472.8,NET,Unique Sound Systems,59571S
Gloucester City Council,23UE,Blackfriars,LA609,Hire Of Equipment,5020,PROJECTION SCREEN HIRE,13/10/2014,391422,56,NET,Unique Sound Systems,59571S
Gloucester City Council,23UE,Blackfriars Catering,LA220,Catering Provisions -Liquor,5111,DRINKS,13/10/2014,391648,22,NET,Brennen And Brown,14995C
Gloucester City Council,23UE,Blackfriars Catering,LA220,Catering Provisions -Liquor,5111,DRINKS,13/10/2014,391670,370.02,NET,Cellar Supplies Cheltenham Ltd,01563L
Gloucester City Council,23UE,REDACTED,REDACTED,REDACTED,REDACTED,REDACTED,13/10/2014,REDACTED,453,NET,REDACTED,REDACTED
Gloucester City Council,23UE,Business Support,PT250,Publications,5060,Citizen newspapers,13/10/2014,391968,188,NET,Ymk Supermarket,55281U
Gloucester City Council,23UE,Business Transformation & Tech,RT700,Computer Hardware Maintenance,5426,SCANNER,13/10/2014,391456,275,NET,Stanford Marsh Ltd*,51139M
Gloucester City Council,23UE,Business Transformation & Tech,RT700,Computer Software Maintenance,5427,NOVA HX HOSTING,13/10/2014,391762,4554,NET,Abritas Ltd,10222J
Gloucester City Council,23UE,Bus Station,RB400,General Repair/Maint Buildings,3000,"Bus Station, various repairs",13/10/2014,391866,28.93,NET,Rf Gardiner Limited,12299B
Gloucester City Council,23UE,Car Parks,GY002,Purchase Cost -Land,0001,"Longsmith Street Car Park, install bin",13/10/2014,391862,3285,CAP,Rf Gardiner Limited,12299B
Gloucester City Council,23UE,Cemeteries,HC300,Operational Materials,5070,"Coney Hill Crem, Fault on water feature",13/10/2014,391838,850.84,NET,Rf Gardiner Limited,12299B
Gloucester City Council,23UE,City Museum And Art Gallery,LM200,Sewerage And Environ Charges,3402,JUL-SEP14 SANITARY WASTE,13/10/2014,391714,43.95,NET,Ocs Group Uk Limited T/A Cannon,06506A
Gloucester City Council,23UE,Civica Fod Contract,RT260,Contracted Services,6970,YR 2 q4,13/10/2014,391718,191455.02,NET,Civica Uk Ltd,10841X
Gloucester City Council,23UE,Client Revs & Bens Contract,RT240,Bailiffs Fees,5368,VAT on fees collected,13/10/2014,391960,0,NET,Phoenix Commercial Collections Ltd,13435J
Gloucester City Council,23UE,Client Revs & Bens Contract,RT240,Fees For Services Received,5350,BAILIFF SERVICES,13/10/2014,391471,49.5,NET,Assevarate Ltd,11749A
Gloucester City Council,23UE,Council Streetcare Team,HI101,General Repair/Maint Buildings,3000,"Aviation Gardens, re-fix fencing panel",13/10/2014,391816,41.05,NET,Rf Gardiner Limited,12299B
Gloucester City Council,23UE,Council Streetcare Team,HI101,General Repair/Maint Buildings,3000,"Greyfriars, repair high level lights",13/10/2014,391869,393.56,NET,Rf Gardiner Limited,12299B
Gloucester City Council,23UE,Council Streetcare Team,HI101,General Repair/Maint Buildings,3000,"North Quay, repair railings",13/10/2014,391829,475,NET,Rf Gardiner Limited,12299B
Gloucester City Council,23UE,Council Streetcare Team,HI101,General Repair/Maint Buildings,3000,"Westgate Leisure Area, clear shed",13/10/2014,391824,78.85,NET,Rf Gardiner Limited,12299B
Gloucester City Council,23UE,Council Streetcare Team,HI101,General Repair/Maint Buildings,3000,"Wingets Bowls Club, repair floor",13/10/2014,391844,96.48,NET,Rf Gardiner Limited,12299B
Gloucester City Council,23UE,Council Streetcare Team,HI101,General Repair/Maint Buildings,3000,"Wingets Bowls Club, repair lighting",13/10/2014,391865,244.18,NET,Rf Gardiner Limited,12299B
Gloucester City Council,23UE,Countryside Unit,LP201,Routine R And M - Vehicles,4011,cogged wedge belt,13/10/2014,391638,77.31,NET,A C Belting Ltd,00250X
Gloucester City Council,23UE,Countryside Unit,LP201,Routine R And M - Vehicles,4011,GLUE,13/10/2014,391465,6.23,NET,B&Q Trade Account,06346Y
Gloucester City Council,23UE,Crematorium,HC200,Memorial Plaques,5053,BRONZE PLAQUE,13/10/2014,391687,48,NET,Arkell & Hurcombe,59812T
Gloucester City Council,23UE,Crematorium,HC200,Memorial Plaques,5053,BRONZE PLAQUES,13/10/2014,391688,153,NET,Arkell & Hurcombe,59812T
Gloucester City Council,23UE,Dclg High St Renewal Fund,FP308,Business Grant,7116,business support grant,13/10/2014,391779,3000,NET,Cuff Security Services Ltd,12073G
Gloucester City Council,23UE,Democratic Services,RS100,Fees For Services Received,5350,RECRUITMENT ADVERT,13/10/2014,391446,400,NET,Association Of Democratic Services Officers,11883V
Gloucester City Council,23UE,Development Management,PT200,Microfilming / Cd-Rom Storage,5330,ARCHIVAL STORAGE,13/10/2014,391761,22,NET,Transmedia Technology Ltd,08635T
Gloucester City Council,23UE,Disabled Facilities Grants,CY013,Disabled Facility Grants,0074,MDF5080 FINAL PAYMENT,13/10/2014,391976,450,CAP,Tpg Disableaids,51324R
Gloucester City Council,23UE,Docks Complex - Catering Servs,RB110,Catering Provisions -Food,5110,FOOD,13/10/2014,391694,25.56,NET,Taynton Farm Foods,09653F
Gloucester City Council,23UE,Docks Complex - Catering Servs,RB110,Catering Provisions -Food,5110,FOOD,13/10/2014,391695,25.56,NET,Taynton Farm Foods,09653F
Gloucester City Council,23UE,Docks Complex - Catering Servs,RB110,Catering Provisions -Food,5110,FOOD,13/10/2014,391708,131.02,NET,Janes Pantry,24500W
Gloucester City Council,23UE,Docks Complex - Catering Servs,RB110,Catering Provisions -Food,5110,FOOD,13/10/2014,391808,393.34,NET,3663,55585U
Gloucester City Council,23UE,REDACTED,REDACTED,REDACTED,REDACTED,REDACTED,13/10/2014,REDACTED,70,NET,REDACTED,REDACTED
Gloucester City Council,23UE,Docks Complex - Services,RB100,General Repair/Maint Buildings,3000,"Herbert Warehouse, attend to lighting",13/10/2014,391812,108.2,NET,Rf Gardiner Limited,12299B
Gloucester City Council,23UE,Docks Complex - Services,RB100,General Repair/Maint Buildings,3000,"Herbert Warehouse, fix toilet",13/10/2014,391831,85.86,NET,Rf Gardiner Limited,12299B
Gloucester City Council,23UE,Docks Complex - Services,RB100,General Repair/Maint Buildings,3000,"North Warehouse, install loft hatches",13/10/2014,391858,790.08,NET,Rf Gardiner Limited,12299B
Gloucester City Council,23UE,Docks Complex - Telephones,RB120,Telephones And Fax,5410,Phone Bills September 2014,13/10/2014,391029,43.47,NET,Everything Everywhere Ltd (T-Mobile),57543S
Gloucester City Council,23UE,Electrical Investigatory Works,RY142,Contract Payments,0020,O&M MANUALS,13/10/2014,391689,25,CAP,Phoenix Lifting Systems Limited,14992J
Gloucester City Council,23UE,Electrical Investigatory Works,RY142,Contract Payments,0020,"Eastgate Market, test electrics",13/10/2014,391827,78.84,CAP,Rf Gardiner Limited,12299B
Gloucester City Council,23UE,Electrical Investigatory Works,RY142,Contract Payments,0020,FIRE EXTINGUISHERS,13/10/2014,391431,34,CAP,A & E Fire Equipment Limited,54289L
Gloucester City Council,23UE,Events,LT410,Events,5952,GLOUCESTER EXHIBITIONS & EVENTS AD,13/10/2014,391766,14999.6,NET,Local World Ltd,08556P
Gloucester City Council,23UE,Events,LT410,Fees For Services Received,5350,CARRIED ON THE WIND GRANT,13/10/2014,391759,8000,NET,Gloucestershire People Theatre,14954T
Gloucester City Council,23UE,External Communications,RC431,Publications,5060,CITY LIFE DISTRIBUTION,13/10/2014,391789,2920.44,NET,Smart Distribution Solutions Ltd,12769J
Gloucester City Council,23UE,Financial Services,RT200,Computer Software Maintenance,5427,FIXED ASSETS CONSULTANCY,13/10/2014,391663,850,NET,Advanced Business Solutions,06072N
Gloucester City Council,23UE,Food Safety,HE100,Vocational Training,2970,Food Information Regulation course 30/9,13/10/2014,391967,125,NET,Abc Food Safety Ltd,01214S
Gloucester City Council,23UE,General Works Fund,RY203,Contract Payments,0020,recycling skip,13/10/2014,391780,220,CAP,Archer Recycling,11021G
Gloucester City Council,23UE,Gloucester Guildhall,LA100,General Repair/Maint Buildings,3000,scaff tag inspection 2/10/14,13/10/2014,391969,140,NET,Global Platforms Ltd,09794K
Gloucester City Council,23UE,Group Mgr Cult Ser & Tourism,GR102,Consultants Fees,5349,CONSULTANCY SERVICES,13/10/2014,391665,7697.5,NET,Michael & Partners Limited,15101Z
Gloucester City Council,23UE,Guildhall Bar And Caf�,LA210,Catering Provisions -Food,5110,food,13/10/2014,391793,4.96,NET,Total Produce Gloucester,12645E
Gloucester City Council,23UE,Guildhall Bar And Caf�,LA210,Catering Provisions -Food,5110,FOOD,13/10/2014,391794,4.96,NET,Total Produce Gloucester,12645E
Gloucester City Council,23UE,Guildhall Bar And Caf�,LA210,Catering Provisions -Food,5110,FOOD,13/10/2014,391796,4.96,NET,Total Produce Gloucester,12645E
Gloucester City Council,23UE,Guildhall Bar And Caf�,LA210,Catering Provisions -Food,5110,FOOD,13/10/2014,391797,4.96,NET,Total Produce Gloucester,12645E
Gloucester City Council,23UE,Guildhall Bar And Caf�,LA210,Catering Provisions -Food,5110,FOOD,13/10/2014,391798,4.96,NET,Total Produce Gloucester,12645E
Gloucester City Council,23UE,Guildhall Bar And Caf�,LA210,Catering Provisions -Food,5110,FOOD,13/10/2014,391799,4.96,NET,Total Produce Gloucester,12645E
Gloucester City Council,23UE,Guildhall Bar And Caf�,LA210,Catering Provisions -Liquor,5111,DRINKS,13/10/2014,391667,74.97,NET,Cellar Supplies Cheltenham Ltd,01563L
Gloucester City Council,23UE,Guildhall Bar And Caf�,LA210,Catering Provisions -Liquor,5111,DRINKS,13/10/2014,391668,627.5,NET,Cellar Supplies Cheltenham Ltd,01563L
Gloucester City Council,23UE,Guildhall Bar And Caf�,LA210,Catering Provisions -Liquor,5111,DRINKS,13/10/2014,391671,114,NET,Gloucester Brewery,13373F
Gloucester City Council,23UE,Guildhall Bar And Caf�,LA210,Operational Equipment <5000,5012,roman blinds,13/10/2014,391645,378,NET,Cotswold Interiors,13042J
Gloucester City Council,23UE,Guildhall Bar And Caf�,LA210,Other Catering Provisions,5112,plastic glasses,13/10/2014,391646,414.5,NET,Gerry Dance Disposables Ltd,54579Y
Gloucester City Council,23UE,Guildhall Cinema,LA202,Fees For Services Received,5350,DIGITAL CINEMA SERVICES,13/10/2014,391677,300,NET,Cinema Projection Services,14502K
Gloucester City Council,23UE,Guildhall Cinema,LA202,Fees For Services Received,5350,DIGITAL CINEMA SERVICES,13/10/2014,391678,309,NET,Cinema Projection Services,14502K
Gloucester City Council,23UE,REDACTED,REDACTED,REDACTED,REDACTED,REDACTED,13/10/2014,REDACTED,0,NET,REDACTED,REDACTED
Gloucester City Council,23UE,REDACTED,REDACTED,REDACTED,REDACTED,REDACTED,13/10/2014,REDACTED,100,NET,REDACTED,REDACTED
Gloucester City Council,23UE,REDACTED,REDACTED,REDACTED,REDACTED,REDACTED,13/10/2014,REDACTED,72,NET,REDACTED,REDACTED
Gloucester City Council,23UE,REDACTED,REDACTED,REDACTED,REDACTED,REDACTED,13/10/2014,REDACTED,72,NET,REDACTED,REDACTED
Gloucester City Council,23UE,REDACTED,REDACTED,REDACTED,REDACTED,REDACTED,13/10/2014,REDACTED,390,NET,REDACTED,REDACTED
Gloucester City Council,23UE,Guildhall Events,LA200,Fees For Services Received,REDACTED,Guildhall OCT-NOV14 whats on,13/10/2014,391782,460,NET,Glide Media,58829J
Gloucester City Council,23UE,Guildhall Events,LA200,Printing,5300,WHATS ON BOOKLETS,13/10/2014,391664,1330,NET,Paddock Print,03014H
Gloucester City Council,23UE,Hkp Accomodation Review,RY163,Contract Payments,0020,"Herbert Warehouse, re-connect heater",13/10/2014,391813,39.42,CAP,Rf Gardiner Limited,12299B
Gloucester City Council,23UE,Homelessness,CH120,Basic Pay - Temporary Staff,2751,TEMPORARY STAFF,13/10/2014,391536,631.75,NET,Building Recruitment Company Ltd,55385E
Gloucester City Council,23UE,Homelessness,CH120,Basic Pay - Temporary Staff,2751,TEMPORARY STAFF,13/10/2014,391983,698.25,NET,Building Recruitment Company Ltd,55385E
Gloucester City Council,23UE,Homelessness,CH120,Rent In Advance,5516,RIA & Deposit,13/10/2014,391984,484.6,NET,Alex Clark Lettings,13439A
Gloucester City Council,23UE,REDACTED,REDACTED,REDACTED,REDACTED,REDACTED,13/10/2014,REDACTED,364.6,NET,REDACTED,REDACTED
Gloucester City Council,23UE,Homelessness Prevention,CH122,Fees For Services Received,5350,REDACTED,13/10/2014,391975,280,NET,Chawda Holdings Ltd,08904N
Gloucester City Council,23UE,Homelessness Prevention,CH122,Fees For Services Received,5350,RIA & Deposit,13/10/2014,391984,525,NET,Alex Clark Lettings,13439A
Gloucester City Council,23UE,REDACTED,REDACTED,REDACTED,REDACTED,REDACTED,13/10/2014,REDACTED,500,NET,REDACTED,REDACTED
Gloucester City Council,23UE,REDACTED,REDACTED,REDACTED,REDACTED,REDACTED,13/10/2014,REDACTED,395,NET,REDACTED,REDACTED
Gloucester City Council,23UE,Homelessness Prevention,CH122,Fees For Services Received,5350,medical report,13/10/2014,391970,20.5,NET,Rosebank Health,03041E
Gloucester City Council,23UE,Investment Property,RB500,General Repair/Maint Buildings,3000,"Blackfriars, mens toilets",13/10/2014,391850,58.69,NET,Rf Gardiner Limited,12299B
Gloucester City Council,23UE,Investment Property,RB500,General Repair/Maint Buildings,3000,"City Museum, attend to dripping tap",13/10/2014,391857,8.3,NET,Rf Gardiner Limited,12299B
Gloucester City Council,23UE,Investment Property,RB500,General Repair/Maint Buildings,3000,"City Museum, attend to ladies toilets",13/10/2014,391832,46.3,NET,Rf Gardiner Limited,12299B
Gloucester City Council,23UE,Investment Property,RB500,General Repair/Maint Buildings,3000,"City Museum, check sump pump",13/10/2014,391847,71.64,NET,Rf Gardiner Limited,12299B
Gloucester City Council,23UE,Investment Property,RB500,General Repair/Maint Buildings,3000,"City Museum, check time clock",13/10/2014,391849,52.56,NET,Rf Gardiner Limited,12299B
Gloucester City Council,23UE,Investment Property,RB500,General Repair/Maint Buildings,3000,"City Museum, replace handle of toilet",13/10/2014,391871,20.13,NET,Rf Gardiner Limited,12299B
Gloucester City Council,23UE,Investment Property,RB500,General Repair/Maint Buildings,3000,"Coney Hill Crem, attend to hot water",13/10/2014,391821,19.08,NET,Rf Gardiner Limited,12299B
Gloucester City Council,23UE,Investment Property,RB500,General Repair/Maint Buildings,3000,"Coney Hill Crem, attend to lighting",13/10/2014,391868,236.04,NET,Rf Gardiner Limited,12299B
Gloucester City Council,23UE,Investment Property,RB500,General Repair/Maint Buildings,3000,"Coney Hill Crem, fix water heater",13/10/2014,391854,39.42,NET,Rf Gardiner Limited,12299B
Gloucester City Council,23UE,Investment Property,RB500,General Repair/Maint Buildings,3000,"Eastgate Market, attend to gents toilets",13/10/2014,391864,66.78,NET,Rf Gardiner Limited,12299B
Gloucester City Council,23UE,Investment Property,RB500,General Repair/Maint Buildings,3000,"Eastgate Market, repair light on stall",13/10/2014,391814,39.42,NET,Rf Gardiner Limited,12299B
Gloucester City Council,23UE,Investment Property,RB500,General Repair/Maint Buildings,3000,"Eastgate Market, replace light on stall",13/10/2014,391818,297.97,NET,Rf Gardiner Limited,12299B
Gloucester City Council,23UE,Investment Property,RB500,General Repair/Maint Buildings,3000,"Folk Museum, Fix Tap",13/10/2014,391839,43.06,NET,Rf Gardiner Limited,12299B
Gloucester City Council,23UE,Investment Property,RB500,General Repair/Maint Buildings,3000,"Folk Museum, repair door handles",13/10/2014,391863,32.84,NET,Rf Gardiner Limited,12299B
Gloucester City Council,23UE,Investment Property,RB500,General Repair/Maint Buildings,3000,"Greyfriars, repair double doors",13/10/2014,391841,32.84,NET,Rf Gardiner Limited,12299B
Gloucester City Council,23UE,Investment Property,RB500,General Repair/Maint Buildings,3000,"Guildhall, attend to water leak",13/10/2014,391833,76.32,NET,Rf Gardiner Limited,12299B
Gloucester City Council,23UE,Investment Property,RB500,General Repair/Maint Buildings,3000,"Guildhall, replace light fitting",13/10/2014,391852,82.5,NET,Rf Gardiner Limited,12299B
Gloucester City Council,23UE,Investment Property,RB500,General Repair/Maint Buildings,3000,"Guildhall, re-seal flashing skylights",13/10/2014,391873,86.5,NET,Rf Gardiner Limited,12299B
Gloucester City Council,23UE,Investment Property,RB500,General Repair/Maint Buildings,3000,"Guildhall, secure hole in door",13/10/2014,391828,32.84,NET,Rf Gardiner Limited,12299B
Gloucester City Council,23UE,Investment Property,RB500,General Repair/Maint Buildings,3000,"Matson Avenue, re-route downpipe",13/10/2014,391861,420,NET,Rf Gardiner Limited,12299B
Gloucester City Council,23UE,Investment Property,RB500,General Repair/Maint Buildings,3000,"Robinswood Hill, repairs to toilets",13/10/2014,391834,74.08,NET,Rf Gardiner Limited,12299B
Gloucester City Council,23UE,Investment Property,RB500,General Repair/Maint Buildings,3000,"Shopmobility, attend to loss of power",13/10/2014,391815,52.56,NET,Rf Gardiner Limited,12299B
Gloucester City Council,23UE,Kings Quarter,RY146,Contract Payments,0020,"Kings Square, raise cable up wall",13/10/2014,391851,97.7,CAP,Rf Gardiner Limited,12299B
Gloucester City Council,23UE,Kings Quarter,RY146,Contract Payments,0020,"Kings Square, undertake works",13/10/2014,391830,183.29,CAP,Rf Gardiner Limited,12299B
Gloucester City Council,23UE,Kings Sq Paving Emerg Works,RY161,Contract Payments,0020,"Kings Square, install new barriers",13/10/2014,391817,18.44,CAP,Rf Gardiner Limited,12299B
Gloucester City Council,23UE,Off Street Car Parks,PP110,General Repair/Maint Buildings,3000,Created by invoice listener,13/10/2014,391845,502.92,NET,Rf Gardiner Limited,12299B
Gloucester City Council,23UE,Off Street Car Parks,PP110,General Repair/Maint Buildings,3000,"Hare Lane, Cut off broken bollard",13/10/2014,391840,32.84,NET,Rf Gardiner Limited,12299B
Gloucester City Council,23UE,Off Street Car Parks,PP110,General Repair/Maint Buildings,3000,"Kings Square, erect safety barriers",13/10/2014,391867,61.58,NET,Rf Gardiner Limited,12299B
Gloucester City Council,23UE,Off Street Car Parks,PP110,General Repair/Maint Buildings,3000,"Kings Walk Car Park, attendto stair well",13/10/2014,391843,32.84,NET,Rf Gardiner Limited,12299B
Gloucester City Council,23UE,Off Street Car Parks,PP110,General Repair/Maint Buildings,3000,"Kings Walk Car Park, fix door",13/10/2014,391826,74.12,NET,Rf Gardiner Limited,12299B
Gloucester City Council,23UE,Off Street Car Parks,PP110,General Repair/Maint Buildings,3000,"Kings Walk Car Park, repair door",13/10/2014,391835,35.77,NET,Rf Gardiner Limited,12299B
Gloucester City Council,23UE,Off Street Car Parks,PP110,General Repair/Maint Buildings,3000,"Kings Walk Car Park, repair lights",13/10/2014,391836,279.63,NET,Rf Gardiner Limited,12299B
Gloucester City Council,23UE,Off Street Car Parks,PP110,General Repair/Maint Buildings,3000,"Longsmith Sreet Car Park, LED Lights",13/10/2014,391874,1216,NET,Rf Gardiner Limited,12299B
Gloucester City Council,23UE,Off Street Car Parks,PP110,General Repair/Maint Buildings,3000,"Longsmith Street Car Park, door repairs",13/10/2014,391846,108.15,NET,Rf Gardiner Limited,12299B
Gloucester City Council,23UE,Off Street Car Parks,PP110,General Repair/Maint Buildings,3000,"Longsmith Street, fix traffic counter",13/10/2014,391837,16.42,NET,Rf Gardiner Limited,12299B
Gloucester City Council,23UE,Off Street Car Parks,PP110,General Repair/Maint Buildings,3000,"Longsmith Street, install lighting",13/10/2014,391848,821,NET,Rf Gardiner Limited,12299B
Gloucester City Council,23UE,Off Street Car Parks,PP110,General Repair/Maint Buildings,3000,"S Michaels Square, repair potholes",13/10/2014,391870,43.92,NET,Rf Gardiner Limited,12299B
Gloucester City Council,23UE,Off Street Car Parks,PP110,General Repair/Maint Buildings,3000,"Westgate Sreet Car Park, remove pay machi",13/10/2014,391842,476.08,NET,Rf Gardiner Limited,12299B
Gloucester City Council,23UE,Off Street Car Parks,PP110,General Repair/Maint Buildings,3000,"Westgate Street Car Park, repairs",13/10/2014,391819,24.63,NET,Rf Gardiner Limited,12299B
Gloucester City Council,23UE,Pollution Control,HE300,Fees For Services Received,5350,CASSETTE TAPES,13/10/2014,391451,114,NET,Canford Audio Plc,07875D
Gloucester City Council,23UE,Printing,RP103,Printing,5300,PRINTING SEPT14,13/10/2014,391721,1397.72,NET,Alpha Colour Printers Ltd,00945B
Gloucester City Council,23UE,Printing,RP103,Printing,5300,Print Room Sales August 2014,13/10/2014,390103,944.48,NET,Alpha Colour Printers Ltd,00945B
Gloucester City Council,23UE,Registration Of Electors,RS400,Fees For Services Received,5350,MAY2014 POLLING STATION,13/10/2014,391719,59.01,NET,St James C Of E Junior School,10465D
Gloucester City Council,23UE,Registration Of Electors,RS400,Postages,5400,ACCT 0870585031,13/10/2014,391450,1541.65,NET,Royal Mail S.Wales & South West,35830S
Gloucester City Council,23UE,Registration Of Electors,RS400,Publications,5060,SCHOFIELDS ELECTION LAW,13/10/2014,391720,158,NET,Thomson Reuters,43110M
Gloucester City Council,23UE,Sponsorship,HI600,Fees For Services Received,5350,SIGN,13/10/2014,391693,110,NET,Five Valley Signs & Labels Limited,09642L
Gloucester City Council,23UE,Stationery Services,RS150,Printing,5300,melamine white boards,13/10/2014,391956,5.66,NET,Lyreco Uk Ltd,11746G
Gloucester City Council,23UE,Stationery Services,RS150,Printing,5300,STATIONERY,13/10/2014,389689,2.54,NET,Lyreco Uk Ltd,11746G
Gloucester City Council,23UE,Stationery Services,RS150,Stationery,5302,A4 diaries,13/10/2014,391959,15.54,NET,Lyreco Uk Ltd,11746G
Gloucester City Council,23UE,Stationery Services,RS150,Stationery,5302,stationery,13/10/2014,391957,4,NET,Lyreco Uk Ltd,11746G
Gloucester City Council,23UE,Stationery Services,RS150,Stationery,5302,stationery,13/10/2014,391958,27.76,NET,Lyreco Uk Ltd,11746G
Gloucester City Council,23UE,Stationery Services,RS150,Stationery,5302,TAPE,13/10/2014,391684,6.58,NET,Lyreco Uk Ltd,11746G
Gloucester City Council,23UE,St Michaels Tower,GY016,Contract Payments,0020,"St Michaels Tower, remove sign",13/10/2014,391872,49.26,CAP,Rf Gardiner Limited,12299B
Gloucester City Council,23UE,Swrda Asset Transfer,RY184,Capital General Repairs & Main,0013,signage removal,13/10/2014,391810,500,CAP,Mpl Wrought Iron Llp,03907P
Gloucester City Council,23UE,The Arbor,HC501,Catering Provisions -Food,5110,MACHINE WARRANTY,13/10/2014,391423,61.58,NET,Caffeica Ltd,11923J
Gloucester City Council,23UE,The Fleece,RB530,General Repair/Maint Buildings,3000,"Fleece Hotel, fix fan lights to windows",13/10/2014,391860,163.39,NET,Rf Gardiner Limited,12299B
Gloucester City Council,23UE,The Fleece,RB530,General Repair/Maint Buildings,3000,"Fleece Hotel, re-dress Tyvek",13/10/2014,391823,65.68,NET,Rf Gardiner Limited,12299B
Gloucester City Council,23UE,The Fleece,RB530,General Repair/Maint Buildings,3000,"Fleece Hotel, remove graffiti",13/10/2014,391853,155.89,NET,Rf Gardiner Limited,12299B
Gloucester City Council,23UE,The Fleece,RB530,General Repair/Maint Buildings,3000,"Fleece Hotel, remove rubbish",13/10/2014,391856,49.26,NET,Rf Gardiner Limited,12299B
Gloucester City Council,23UE,Tic Trading,LT110,Materials For Sale,5080,GOODS FOR RESALE,13/10/2014,391691,68.7,NET,Screen Icon Ltd,04520B
Gloucester City Council,23UE,Ugly Structures,GY010,Contract Payments,0020,"St Michaels Tower, 18mm OSB over signs",13/10/2014,391825,156.73,CAP,Rf Gardiner Limited,12299B
Gloucester City Council,23UE,Ugly Structures,GY010,Contract Payments,0020,"St Michaels Tower, fit plywood sign",13/10/2014,391859,130.04,CAP,Rf Gardiner Limited,12299B
Gloucester City Council,23UE,Aspire Admin Charges,LC105,Contracted Services,6970,October 2014 management fees,14/10/2014,391963,71458.92,NET,Aspire Sports & Cultural Trust,08135V
Gloucester City Council,23UE,Building Control,PT400,Basic Pay - Temporary Staff,2751,TEMPORARY STAFF,14/10/2014,385325,2000,NET,Brg Interim Solutions,14065L
Gloucester City Council,23UE,REDACTED,REDACTED,REDACTED,REDACTED,REDACTED,14/10/2014,REDACTED,150,NET,REDACTED,REDACTED
Gloucester City Council,23UE,REDACTED,REDACTED,REDACTED,REDACTED,REDACTED,14/10/2014,REDACTED,141,NET,REDACTED,REDACTED
Gloucester City Council,23UE,Client Revs & Bens Contract,RT240,Bailiffs Fees,5368,FEES PAID DIRECT & VAT DUE,14/10/2014,391462,1254.76,NET,Bristow & Sutor,05450M
Gloucester City Council,23UE,Client Revs & Bens Contract,RT240,Bailiffs Fees,5368,FEES PAID DIRECT & VAT DUE,14/10/2014,391463,7.35,NET,Bristow & Sutor,05450M
Gloucester City Council,23UE,Client Revs & Bens Contract,RT240,Bailiffs Fees,5368,FEES PAID DIRECT & VAT DUE,14/10/2014,391481,525,NET,Bristow & Sutor,05450M
Gloucester City Council,23UE,Client Revs & Bens Contract,RT240,Bailiffs Fees,5368,FEES & VAT DUE,14/10/2014,391674,428.04,NET,Bristow & Sutor,05450M
Gloucester City Council,23UE,Docks Complex - Services,RB100,Cleaning Materials,3600,Cleaning Materials,14/10/2014,389383,142.81,NET,Core Hygiene Ltd,03885P
Gloucester City Council,23UE,Docks Complex - Services,RB100,Cleaning Materials,3600,CLEANING MATERIALS,14/10/2014,391666,111.6,NET,Core Hygiene Ltd,03885P
Gloucester City Council,23UE,Eastgate Rooftop Emerg Works,RY159,Contract Payments,0020,CDM coordinator fees,14/10/2014,392065,800,CAP,Goddard Consulting Llp,10598G
Gloucester City Council,23UE,Environmental Planning,LM340,Repair/Maint Of Monuments,3004,St Oswalds Priory works,14/10/2014,392063,1140,NET,Andrew Townsend Architects,57296K
Gloucester City Council,23UE,General Drainage Works,PY241,Contract Payments,0020,seeds for St Peters School works,14/10/2014,391971,230,CAP,Emorsgate Seeds,51628R
Gloucester City Council,23UE,Gloucester Partnership,FP106,Other Minor Supplies Services,5590,DOMAIN NAME,14/10/2014,392204,80,NET,Icon.Net,52505Z
Gloucester City Council,23UE,REDACTED,REDACTED,REDACTED,REDACTED,REDACTED,14/10/2014,REDACTED,1149.62,NET,REDACTED,REDACTED
Gloucester City Council,23UE,REDACTED,REDACTED,REDACTED,REDACTED,REDACTED,14/10/2014,REDACTED,1250,NET,REDACTED,REDACTED
Gloucester City Council,23UE,REDACTED,REDACTED,REDACTED,REDACTED,REDACTED,14/10/2014,REDACTED,350,NET,REDACTED,REDACTED
Gloucester City Council,23UE,REDACTED,REDACTED,REDACTED,REDACTED,REDACTED,14/10/2014,REDACTED,400,NET,REDACTED,REDACTED
Gloucester City Council,23UE,REDACTED,REDACTED,REDACTED,REDACTED,REDACTED,14/10/2014,REDACTED,250,NET,REDACTED,REDACTED
Gloucester City Council,23UE,REDACTED,REDACTED,REDACTED,REDACTED,REDACTED,14/10/2014,REDACTED,200,NET,REDACTED,REDACTED
Gloucester City Council,23UE,REDACTED,REDACTED,REDACTED,REDACTED,REDACTED,14/10/2014,REDACTED,100,NET,REDACTED,REDACTED
Gloucester City Council,23UE,REDACTED,REDACTED,REDACTED,REDACTED,REDACTED,14/10/2014,REDACTED,1000,NET,REDACTED,REDACTED
Gloucester City Council,23UE,REDACTED,REDACTED,REDACTED,REDACTED,REDACTED,14/10/2014,REDACTED,200,NET,REDACTED,REDACTED
Gloucester City Council,23UE,REDACTED,REDACTED,REDACTED,REDACTED,REDACTED,14/10/2014,REDACTED,120,NET,REDACTED,REDACTED
Gloucester City Council,23UE,Hackney Carriages,HL100,Other Minor Supplies Services,5590,Licence Plate Set,14/10/2014,391196,1762.9,NET,Mogo Uk,56615B
Gloucester City Council,23UE,Hackney Carriages,HL100,Other Minor Supplies Services,5590,RIBB MAGICARD,14/10/2014,391768,133.5,NET,Securit World,03936T
Gloucester City Council,23UE,Hackney Carriages,HL100,Other Minor Supplies Services,5590,RIBB MAGICARD,14/10/2014,391769,133.5,NET,Securit World,03936T
Gloucester City Council,23UE,Homelessness,CH120,Basic Pay - Temporary Staff,2751,TEMPORARY STAFF,14/10/2014,391041,703,NET,Building Recruitment Company Ltd,55385E
Gloucester City Council,23UE,Homelessness,CH120,Basic Pay - Temporary Staff,2751,TEMPORARY STAFF,14/10/2014,391036,574.75,NET,Building Recruitment Company Ltd,55385E
Gloucester City Council,23UE,REDACTED,REDACTED,REDACTED,5516,REDACTED,14/10/2014,REDACTED,364.6,NET,REDACTED,REDACTED
Gloucester City Council,23UE,REDACTED,REDACTED,REDACTED,5516,REDACTED,14/10/2014,REDACTED,477.36,NET,REDACTED,REDACTED
Gloucester City Council,23UE,REDACTED,REDACTED,REDACTED,5516,REDACTED,14/10/2014,REDACTED,484.6,NET,REDACTED,REDACTED
Gloucester City Council,23UE,REDACTED,REDACTED,REDACTED,5350,REDACTED,14/10/2014,REDACTED,390,NET,REDACTED,REDACTED
Gloucester City Council,23UE,REDACTED,REDACTED,REDACTED,5350,REDACTED,14/10/2014,REDACTED,395,NET,REDACTED,REDACTED
Gloucester City Council,23UE,REDACTED,REDACTED,REDACTED,5350,REDACTED,14/10/2014,REDACTED,600,NET,REDACTED,REDACTED
Gloucester City Council,23UE,REDACTED,REDACTED,REDACTED,5350,REDACTED,14/10/2014,REDACTED,520,NET,REDACTED,REDACTED
Gloucester City Council,23UE,Investment Property,RB500,Door Entry Systems Maint,3064,DOOR SERVICE,14/10/2014,392203,315,NET,Pro Door Ltd,04760C
Gloucester City Council,23UE,REDACTED,REDACTED,REDACTED,5591,REDACTED,14/10/2014,REDACTED,21,NET,REDACTED,REDACTED
Gloucester City Council,23UE,Play Area Refurbishment,LY071,Contract Payments,0020,PLAY AREA EQUIPMENT,14/10/2014,391703,3598,CAP,Proludic Ltd,03576G
Gloucester City Council,23UE,Pollution Control,HE300,Fees For Services Received,5350,2014 AIR QUALITY PROGRESS REPORT,14/10/2014,391639,900,NET,Bureau Veritas Uk Ltd,14390W
Gloucester City Council,23UE,Rehousing,CH111,Basic Pay - Temporary Staff,2751,temporary staff,14/10/2014,391788,684,NET,Building Recruitment Company Ltd,55385E
Gloucester City Council,23UE,REDACTED,REDACTED,REDACTED,5516,REDACTED,14/10/2014,REDACTED,364.6,NET,REDACTED,REDACTED
Gloucester City Council,23UE,REDACTED,REDACTED,REDACTED,5350,REDACTED,14/10/2014,REDACTED,395,NET,REDACTED,REDACTED
Gloucester City Council,23UE,Aspire Admin Charges,LC105,Other Minor Income,9900,BAILIFF PAYMENTS 26/09/14,15/10/2014,392253,7.2,NET,Aspire Sports & Cultural Trust,08135V
Gloucester City Council,23UE,Business Transformation & Tech,RT700,Computer Consumables,5422,BATTERY,15/10/2014,391603,58,NET,Qual Technology,56512N
Gloucester City Council,23UE,Civica Admin Charges,RT105,Postages,5400,acct 0870585007,15/10/2014,391786,1413.45,NET,Royal Mail S.Wales & South West,35830S
Gloucester City Council,23UE,Client Revs & Bens Contract,RT240,Bailiffs Fees,5368,CTAX FEES,15/10/2014,392200,322.63,NET,Bristow & Sutor,05450M
Gloucester City Council,23UE,Client Revs & Bens Contract,RT240,Bailiffs Fees,5368,VAT ONLY INVOICE,15/10/2014,392201,0,NET,Bristow & Sutor,05450M
Gloucester City Council,23UE,Client Revs & Bens Contract,RT240,Bailiffs Fees,5368,VAT ONLY INVOICE,15/10/2014,392202,0,NET,Bristow & Sutor,05450M
Gloucester City Council,23UE,Contact Centre,RB300,Basic Pay -Admin /Prof Staff,2601,TEMPORARY STAFF,15/10/2014,391699,671,NET,Cps Anystaff Recruitment Ltd,13945D
Gloucester City Council,23UE,Contact Centre,RB300,Basic Pay -Admin /Prof Staff,2601,TEMPORARY STAFF,15/10/2014,391700,484,NET,Cps Anystaff Recruitment Ltd,13945D
Gloucester City Council,23UE,Contact Centre,RB300,Basic Pay -Admin /Prof Staff,2601,TEMPORARY STAFF,15/10/2014,391701,748,NET,Cps Anystaff Recruitment Ltd,13945D
Gloucester City Council,23UE,Contact Centre,RB300,Basic Pay -Admin /Prof Staff,2601,temporary staff,15/10/2014,391676,481.69,NET,One To One Recruitment,04752H
Gloucester City Council,23UE,Council Streetcare Team,HI101,Maint Of Grounds - General,3030,"Randwick Park, recycled plastic bollards",15/10/2014,391454,296.8,NET,Greenfields Garden Services Ltd,48130G
Gloucester City Council,23UE,Council Streetcare Team,HI101,Maint Of Grounds - General,3030,"Wingate Park, fencing repair",15/10/2014,391453,1396.45,NET,Greenfields Garden Services Ltd,48130G
Gloucester City Council,23UE,Countryside Unit,LP201,Tyres,4014,Repairs,15/10/2014,391458,60.38,NET,Ats Euromaster Ltd,06005E
Gloucester City Council,23UE,Development Management,PT200,Advertising And Publicity,5702,ADVERT 14/08/14,15/10/2014,390435,211.2,NET,Local World Ltd,08556P
Gloucester City Council,23UE,Development Management,PT200,Advertising And Publicity,5702,ADVERT 21/08/14,15/10/2014,390436,387.2,NET,Local World Ltd,08556P
Gloucester City Council,23UE,Electrical Investigatory Works,RY142,Contract Payments,0020,CONTRACT 09/14-11/14,15/10/2014,392196,3146.25,CAP,Kingfisher Environmental Services Ltd,04738V
Gloucester City Council,23UE,Financial Services,RT200,Vocational Training,2970,AAT Level 2 Private Tuition,15/10/2014,391455,646.1,NET,Premier Training Centre Llp,15004Y
Gloucester City Council,23UE,Flooding And Drainage,HE306,Maint Of Grounds - General,3030,Milton Ave clearance,15/10/2014,392119,240,NET,Tcv T/A The Conservation Volunteers,55897V
Gloucester City Council,23UE,General Drainage Works,PY241,Contract Payments,0020,Clear Stone Gulley,15/10/2014,391468,350,CAP,Mr M G Horton T/A H&T Property Maintenance,09210X
Gloucester City Council,23UE,REDACTED,REDACTED,REDACTED,REDACTED,REDACTED,15/10/2014,REDACTED,0,NET,REDACTED,REDACTED
Gloucester City Council,23UE,REDACTED,REDACTED,REDACTED,REDACTED,REDACTED,15/10/2014,REDACTED,323.25,NET,REDACTED,REDACTED
Gloucester City Council,23UE,REDACTED,REDACTED,REDACTED,REDACTED,REDACTED,15/10/2014,REDACTED,100,NET,REDACTED,REDACTED
Gloucester City Council,23UE,REDACTED,REDACTED,REDACTED,REDACTED,REDACTED,15/10/2014,REDACTED,100.88,NET,REDACTED,REDACTED
Gloucester City Council,23UE,REDACTED,REDACTED,REDACTED,REDACTED,REDACTED,15/10/2014,REDACTED,68.33,NET,REDACTED,REDACTED
Gloucester City Council,23UE,REDACTED,REDACTED,REDACTED,REDACTED,REDACTED,15/10/2014,REDACTED,100,NET,REDACTED,REDACTED
Gloucester City Council,23UE,REDACTED,REDACTED,REDACTED,REDACTED,REDACTED,15/10/2014,REDACTED,484.6,NET,REDACTED,REDACTED
Gloucester City Council,23UE,Interest Payable,VR100,Int On Other Temp. Borrowing,7811,INTEREST TO SEPT 2014,15/10/2014,392254,206.5,NET,John Ward Trust,49282W
Gloucester City Council,23UE,Internal Audit,RT300,Basic Pay - Temporary Staff,2751,TEMPORARY STAFF,15/10/2014,392197,652.5,NET,Robert Half Ltd,03959K
Gloucester City Council,23UE,Internal Audit,RT300,Basic Pay - Temporary Staff,2751,TEMPORARY STAFF,15/10/2014,392198,870,NET,Robert Half Ltd,03959K
Gloucester City Council,23UE,Internal Audit,RT300,Basic Pay - Temporary Staff,2751,TEMPORARY STAFF,15/10/2014,392199,870,NET,Robert Half Ltd,03959K
Gloucester City Council,23UE,Nms Contract,HI102,Additional Non-Tender Items,6973,Kenneling Fees Jul & Aug 2014,15/10/2014,391479,2140,NET,Enterprise (Aol) Ltd,06695G
Gloucester City Council,23UE,Off Street Car Parks,PP110,Contents Insurance,5700,ADVERTS,15/10/2014,391707,525.89,NET,Local World Ltd,08556P
Gloucester City Council,23UE,REDACTED,REDACTED,REDACTED,REDACTED,REDACTED,15/10/2014,REDACTED,0,NET,REDACTED,REDACTED
Gloucester City Council,23UE,Swrda Asset Transfer,RY184,Contract Payments,0020,BARBICAN CAR PARK WORKS,15/10/2014,391705,1100,CAP,Cotswold Drain Services,04496W
Gloucester City Council,23UE,The Arbor,HC501,Catering Provisions -Food,5110,Food w/e 07/09/2014,15/10/2014,391436,166.03,NET,Janes Pantry,24500W
Gloucester City Council,23UE,Bus Station,RB400,Water Supply,3400,ACCT 7890105225,16/10/2014,392288,157.73,NET,Severn Trent Water,01823H
Gloucester City Council,23UE,REDACTED,REDACTED,REDACTED,REDACTED,REDACTED,16/10/2014,REDACTED,54.2,NET,REDACTED,REDACTED
Gloucester City Council,23UE,Contact Centre,RB300,Basic Pay -Admin /Prof Staff,2601,Temporary Staff w/e 26/09/2014,16/10/2014,391790,1524.82,NET,One To One Recruitment,04752H
Gloucester City Council,23UE,Council Streetcare Team,HI101,Water Supply,3400,ACCT 7890105225,16/10/2014,392288,96.92,NET,Severn Trent Water,01823H
Gloucester City Council,23UE,Countryside Unit,LP201,Major R And M - Vehicles,4010,ELECTRIC CLUTCH,16/10/2014,391464,525.46,NET,Commercial Mower Supplies,06799D
Gloucester City Council,23UE,Crematorium,HC200,Water Supply,3400,ACCT 7890105225,16/10/2014,392288,35.14,NET,Severn Trent Water,01823H
Gloucester City Council,23UE,Docks Complex - Services,RB100,General Repair/Maint Buildings,3000,Inspection,16/10/2014,392113,228.85,NET,Hoffs (Uk) Ltd,15003A
Gloucester City Council,23UE,Financial Services,RT200,Fees For Services Received,5350,Glitterbug,16/10/2014,390105,31,NET,Food Safety Direct Ltd,07478U
Gloucester City Council,23UE,REDACTED,REDACTED,REDACTED,REDACTED,REDACTED,16/10/2014,REDACTED,450,NET,REDACTED,REDACTED
Gloucester City Council,23UE,Investment Property,RB500,Water Supply,3400,ACCT 7890105225,16/10/2014,392288,281.03,NET,Severn Trent Water,01823H
Gloucester City Council,23UE,Meet & Greet,FP309,Advertising And Publicity,5702,Coach Monthly July 2014,16/10/2014,387888,200,NET,Expo Management Ltd,14164H
Gloucester City Council,23UE,Off Street Car Parks,PP110,Water Supply,3400,ACCT 7890105225,16/10/2014,392288,1580.05,NET,Severn Trent Water,01823H
Gloucester City Council,23UE,Planning Policy,PT300,Fees For Services Received,5350,RIGS Data,16/10/2014,391528,250,NET,Gloucestershire Geology Trust,15008P
Gloucester City Council,23UE,Planning Policy,PT300,Vocational Training,2970,Corporate: neighbourhood planning,16/10/2014,381908,60,NET,Gloucestershire Rural Community Council,10943M
Gloucester City Council,23UE,Public Conveniences (Client),HI400,Water Supply,3400,ACCT 7890105225,16/10/2014,392288,157.73,NET,Severn Trent Water,01823H
Gloucester City Council,23UE,Summer Festival,LT300,Vocational Training,2970,LAEOG CONFERENCE,16/10/2014,391686,330,NET,Laeog,12040Y
Gloucester City Council,23UE,REDACTED,REDACTED,REDACTED,REDACTED,REDACTED,16/10/2014,REDACTED,64,NET,REDACTED,REDACTED
Gloucester City Council,23UE,REDACTED,REDACTED,REDACTED,REDACTED,REDACTED,16/10/2014,REDACTED,100,NET,REDACTED,REDACTED
Gloucester City Council,23UE,Tree Planting Grant Funded,LY150,Contract Payments,0020,SUMMER WATERING,16/10/2014,390466,60,CAP,Greenfields Garden Services Ltd,48130G
Gloucester City Council,23UE,Utilities,PT502,Electricity Supply,3110,utilities to oct 2014,16/10/2014,392287,26958.09,NET,West Mercia Energy,11669Z
Gloucester City Council,23UE,Utilities,PT502,Gas Supply,3100,utilities to oct 2014,16/10/2014,392287,664.43,NET,West Mercia Energy,11669Z
Gloucester City Council,23UE,Blackfriars,LA609,Maintenance Of Equipment,5030,Cable Cover,17/10/2014,389380,18.95,NET,Cpc,52980M
Gloucester City Council,23UE,Bus Station,RB400,General Repair/Maint Buildings,3000,GENIE HIRE,17/10/2014,391809,226.2,NET,Ermin Plant Hire & Services Ltd,14150V
Gloucester City Council,23UE,City Museum And Art Gallery,LM200,Catering Provisions -Food,5110,Food,17/10/2014,392181,4.96,NET,Total Produce Gloucester,12645E
Gloucester City Council,23UE,City Museum And Art Gallery,LM200,Catering Provisions -Food,5110,Milk,17/10/2014,392180,4.96,NET,Total Produce Gloucester,12645E
Gloucester City Council,23UE,City Museum And Art Gallery,LM200,Catering Provisions -Food,5110,Milk,17/10/2014,392182,4.96,NET,Total Produce Gloucester,12645E
Gloucester City Council,23UE,City Museum And Art Gallery,LM200,Catering Provisions -Food,5110,Milk,17/10/2014,392183,4.96,NET,Total Produce Gloucester,12645E
Gloucester City Council,23UE,City Museum And Art Gallery,LM200,Catering Provisions -Food,5110,Milk,17/10/2014,392184,4.96,NET,Total Produce Gloucester,12645E
Gloucester City Council,23UE,City Museum And Art Gallery,LM200,Catering Provisions -Food,5110,Milk,17/10/2014,392185,4.96,NET,Total Produce Gloucester,12645E
Gloucester City Council,23UE,City Museum Catering,LM202,Catering Provisions -Food,5110,Food,17/10/2014,392186,110.42,NET,Woodward Foodservice,10714F
Gloucester City Council,23UE,REDACTED,REDACTED,REDACTED,REDACTED,REDACTED,17/10/2014,REDACTED,375,NET,REDACTED,REDACTED
Gloucester City Council,23UE,Community Safety Projects,FP500,Basic Pay - Temporary Staff,2751,TEMPORARY STAFF,17/10/2014,392175,530.42,NET,Travail Employment Ltd,49371W
Gloucester City Council,23UE,Community Safety Projects,FP500,Basic Pay - Temporary Staff,2751,TEMPORARY STAFF,17/10/2014,392174,525.6,NET,Travail Employment Ltd,49371W
Gloucester City Council,23UE,Contact Centre,RB300,Basic Pay -Admin /Prof Staff,2601,Temporary Staff w/e 05/10/2014,17/10/2014,392171,943.6,NET,One To One Recruitment,04752H
Gloucester City Council,23UE,Disabled Facilities Grants,CY013,Disabled Facility Grants,0074,REDACTED,17/10/2014,392361,3690,CAP,Beechwood Maintenance Ltd,14182P
Gloucester City Council,23UE,Disabled Facilities Grants,CY013,Disabled Facility Grants,0074,Disabled Facilities Grant,17/10/2014,392299,2514.5,CAP,Mears Home Improvement Ltd,00096G
Gloucester City Council,23UE,Disabled Facilities Grants,CY013,Disabled Facility Grants,0074,Disabled Facilities Grant,17/10/2014,392300,3750.47,CAP,Mears Home Improvement Ltd,00096G
Gloucester City Council,23UE,Electrical Investigatory Works,RY142,Capital Lifts,0024,"Work 04/09/2014, Herbert Warehouse",17/10/2014,391241,561.58,CAP,Pickerings Europe Ltd*,58816U
Gloucester City Council,23UE,Flooding And Drainage,HE306,Maint Of Grounds - General,3030,River Twyver clearance,17/10/2014,392116,120,NET,Tcv T/A The Conservation Volunteers,55897V
Gloucester City Council,23UE,Flooding And Drainage,HE306,Maint Of Grounds - General,3030,River Twyver clearance,17/10/2014,392117,120,NET,Tcv T/A The Conservation Volunteers,55897V
Gloucester City Council,23UE,Flooding And Drainage,HE306,Maint Of Grounds - General,3030,Twyver clearance,17/10/2014,392120,120,NET,Tcv T/A The Conservation Volunteers,55897V
Gloucester City Council,23UE,General Drainage Works,PY241,Contract Payments,0020,St Peters School drainage works,17/10/2014,391449,5065,CAP,Rj Contracting (Environmental) Ltd,07429H
Gloucester City Council,23UE,General Works Fund,RY203,Capital General Repairs & Main,0013,"Bearland Lodge, Interim Payment",17/10/2014,391803,2202,CAP,Rf Gardiner Limited,12299B
Gloucester City Council,23UE,Guildhall Bar And Caf�,LA210,Catering Provisions -Food,5110,Espresso,17/10/2014,391647,155.1,NET,Ethical Addictions Ltd,11654N
Gloucester City Council,23UE,Guildhall Bar And Caf�,LA210,Catering Provisions -Food,5110,Food,17/10/2014,392178,166.97,NET,Woodward Foodservice,10714F
Gloucester City Council,23UE,Guildhall Bar And Caf�,LA210,Catering Provisions -Food,5110,Milk,17/10/2014,392187,4.96,NET,Total Produce Gloucester,12645E
Gloucester City Council,23UE,Guildhall Bar And Caf�,LA210,Catering Provisions -Food,5110,Milk,17/10/2014,392188,4.96,NET,Total Produce Gloucester,12645E
Gloucester City Council,23UE,Guildhall Bar And Caf�,LA210,Catering Provisions -Food,5110,Milk,17/10/2014,392189,4.96,NET,Total Produce Gloucester,12645E
Gloucester City Council,23UE,Guildhall Bar And Caf�,LA210,Catering Provisions -Food,5110,Milk,17/10/2014,392190,4.96,NET,Total Produce Gloucester,12645E
Gloucester City Council,23UE,Guildhall Bar And Caf�,LA210,Catering Provisions -Food,5110,Milk,17/10/2014,392191,4.96,NET,Total Produce Gloucester,12645E
Gloucester City Council,23UE,Guildhall Bar And Caf�,LA210,Catering Provisions -Food,5110,Milk,17/10/2014,392192,4.96,NET,Total Produce Gloucester,12645E
Gloucester City Council,23UE,Guildhall Bar And Caf�,LA210,Catering Provisions -Food,5110,Milk,17/10/2014,392193,4.96,NET,Total Produce Gloucester,12645E
Gloucester City Council,23UE,Guildhall Bar And Caf�,LA210,Catering Provisions -Food,5110,Milk,17/10/2014,392194,4.96,NET,Total Produce Gloucester,12645E
Gloucester City Council,23UE,Guildhall Bar And Caf�,LA210,Catering Provisions -Food,5110,Stock Audit 04/09/2014,17/10/2014,391644,90,NET,Fea Audits,08888J
Gloucester City Council,23UE,Investment Property,RB500,Lift Maintenance,3051,"Engineer 09/09/2014, Herbert Warehouse",17/10/2014,391246,114.87,NET,Pickerings Europe Ltd*,58816U
Gloucester City Council,23UE,Legal Services,RS200,Basic Pay - Temporary Staff,2751,TEMPORARY STAFF,17/10/2014,391469,1041.25,NET,Michael Page International Recruitment Ltd,06601P
Gloucester City Council,23UE,Legal Services,RS200,Basic Pay - Temporary Staff,2751,TEMPORARY STAFF,17/10/2014,391534,800,NET,Badenoch & Clark,01536P
Gloucester City Council,23UE,Legal Services,RS200,Basic Pay - Temporary Staff,2751,TEMPORARY STAFF,17/10/2014,391437,487.29,NET,Premiere Employment Ltd,55468Z
Gloucester City Council,23UE,Legal Services,RS200,Basic Pay - Temporary Staff,2751,TEMPORARY STAFF,17/10/2014,391713,1549.93,NET,Venn Group Ltd,04339P
Gloucester City Council,23UE,Legal Services,RS200,Basic Pay - Temporary Staff,2751,TEMPORARY STAFF,17/10/2014,391763,1528.99,NET,Venn Group Ltd,04339P
Gloucester City Council,23UE,Stationery Services,RS150,Stationery,5302,STATIONERY,17/10/2014,391683,9.93,NET,Lyreco Uk Ltd,11746G
Gloucester City Council,23UE,Stationery Services,RS150,Stationery,5302,STORAGE BOXES,17/10/2014,391685,66.13,NET,Lyreco Uk Ltd,11746G
Gloucester City Council,23UE,Summer Festival,LT300,Vocational Training,2970,TRAINING COURSE,17/10/2014,392325,330,NET,Local Authority Event Organisers Group,13496M
Gloucester City Council,23UE,Swrda Asset Transfer,RY184,Capital General Repairs & Main,0013,"Clearance of hedge, Barbican Car Park",17/10/2014,392170,1088,CAP,Anderson Civil Engineering Uk Ltd,09083D
Gloucester City Council,23UE,The Arbor,HC501,Catering Provisions -Food,5110,Food,17/10/2014,391608,377.26,NET,3663,55585U
Gloucester City Council,23UE,Tourism Marketing,LT100,Advertising And Publicity,5702,Market Stall Hire,17/10/2014,391690,130,NET,Glos City Centre Community Partnership,08705X
Gloucester City Council,23UE,Tourism Marketing,LT100,Window Cleaning,3610,Weekly Window Cleaning,17/10/2014,391692,12,NET,Interserve Fs (Uk) Limited,07778C
Gloucester City Council,23UE,REDACTED,REDACTED,REDACTED,REDACTED,REDACTED,17/10/2014,REDACTED,98.18,NET,REDACTED,REDACTED
Gloucester City Council,23UE,REDACTED,REDACTED,REDACTED,REDACTED,REDACTED,17/10/2014,REDACTED,987.28,NET,REDACTED,REDACTED
Gloucester City Council,23UE,REDACTED,REDACTED,REDACTED,REDACTED,REDACTED,17/10/2014,REDACTED,225.25,NET,REDACTED,REDACTED
Gloucester City Council,23UE,REDACTED,REDACTED,REDACTED,REDACTED,REDACTED,17/10/2014,REDACTED,89.25,NET,REDACTED,REDACTED
Gloucester City Council,23UE,REDACTED,REDACTED,REDACTED,REDACTED,REDACTED,17/10/2014,REDACTED,301.75,NET,REDACTED,REDACTED
Gloucester City Council,23UE,REDACTED,REDACTED,REDACTED,REDACTED,REDACTED,17/10/2014,REDACTED,296.65,NET,REDACTED,REDACTED
Gloucester City Council,23UE,Advance City Attractions,LT109,Materials For Sale,5080,BLENHEIM PALACE VISITORS PARTN,20/10/2014,392146,30,NET,Blenheim Palace Visitors Partnership,10749K
Gloucester City Council,23UE,Advance City Attractions,LT109,Sale Of Goods And Services,9230,BLENHEIM PALACE VISITORS PARTN,20/10/2014,392146,-3.54,NET,Blenheim Palace Visitors Partnership,10749K
Gloucester City Council,23UE,Blackfriars,LA609,Cleaning Materials,3600,Cover Cleaning 30/09/2014,20/10/2014,392141,650,NET,Into Cleaning,14609P
Gloucester City Council,23UE,Blackfriars,LA609,Hire Of Equipment,5020,Chairs,20/10/2014,392108,244,NET,Valley Furniture Hire Ltd,08324P
Gloucester City Council,23UE,Business Support,PT250,Routine R And M - Vehicles,4011,MOT Test,20/10/2014,392091,530.99,NET,123 Car & Commercial,07651E
Gloucester City Council,23UE,Business Transformation & Tech,RT700,Computer Software Maintenance,5427,Annual software support,20/10/2014,391706,2691.72,NET,Northgate Information Solutions Uk Ltd,08982S
Gloucester City Council,23UE,Business Transformation & Tech,RT700,Computer Software Maintenance,5427,Annual Software Support,20/10/2014,391197,1351.18,NET,Northgate Information Solutions Uk Ltd,08982S
Gloucester City Council,23UE,Business Transformation & Tech,RT700,Computer Software Maintenance,5427,Anuual Licence Charge,20/10/2014,391704,1900,NET,Northgate Information Solutions Uk Ltd,08982S
Gloucester City Council,23UE,REDACTED,REDACTED,REDACTED,REDACTED,REDACTED,20/10/2014,REDACTED,120,NET,REDACTED,REDACTED
Gloucester City Council,23UE,Cems/Crems Admin,HC100,Security Services Fees,5351,Cash Processed September 2014,20/10/2014,392195,13.73,NET,G4s Cash Solutions (Uk) Ltd,04290V
Gloucester City Council,23UE,City Museum Catering,LM202,Catering Provisions -Food,5110,Espresso Machine Rental Sept 2014,20/10/2014,392080,135,NET,La Spaziale Uk Ltd,11823P
Gloucester City Council,23UE,Client Revs & Bens Contract,RT240,Security Services Fees,5351,Cash Processed September 2014,20/10/2014,392195,3.43,NET,G4s Cash Solutions (Uk) Ltd,04290V
Gloucester City Council,23UE,Community Strat & Engagement,FP100,Other Minor Supplies Services,5590,Leadership in running fitness course,20/10/2014,392135,150,NET,England Athletics,15020A
Gloucester City Council,23UE,Contrib To Housing Pooled Recs,ZR205,Contrib To Housing Pooled Recs,7490,QUARTER 2 CAPITAL RECEIPTS POOLING 14/15,20/10/2014,392396,51911.17,NET,Clg,11059A
Gloucester City Council,23UE,Corporate Reporting /Financing,RC504,Fees For Services Received,5350,Childcare Vouchers October 2014,20/10/2014,392107,27.75,NET,Wider Plan Ltd ( Formerly Kiddivouchers),07893B
Gloucester City Council,23UE,Council Streetcare Team,HI101,Window Cleaning,3610,"Window Cleaning, Viewing Chamber",20/10/2014,392098,130,NET,Poles Apart Window Cleaning,11636R
Gloucester City Council,23UE,Countryside Unit,LP201,Maint Of Grounds - General,3030,Various Items,20/10/2014,391702,119.28,NET,Countrywide Farmers*,55687J
Gloucester City Council,23UE,Countryside Unit,LP201,Operational Equipment <5000,5012,Various Items,20/10/2014,391702,29.35,NET,Countrywide Farmers*,55687J
Gloucester City Council,23UE,Docks Complex - Catering Servs,RB110,Catering Provisions -Food,5110,Food w/e 28/09/2014,20/10/2014,391716,85.38,NET,Janes Pantry,24500W
Gloucester City Council,23UE,Docks Complex - Services,RB100,Cleaning Materials,3600,Cleaning Materials,20/10/2014,392159,43.98,NET,Cleanmy Ltd,06971S
Gloucester City Council,23UE,Docks Complex - Services,RB100,Cleaning Materials,3600,Cleaning Materials,20/10/2014,392160,21.17,NET,Cleanmy Ltd,06971S
Gloucester City Council,23UE,Docks Complex - Services,RB100,Recycling,3631,recycling,20/10/2014,391675,223.1,NET,Printwaste Recycling,57114W
Gloucester City Council,23UE,Economic Development,FP300,Business Grant,7116,Business Rent Grant,20/10/2014,392092,1500,NET,Hubble Bubble Coffee House,15019J
Gloucester City Council,23UE,Emergency Out Of Hours Calls,RB301,Fees For Services Received,5350,"Monthly Fee, October 2014",20/10/2014,391435,226.69,NET,Office Response,09439K
Gloucester City Council,23UE,Flooding And Drainage,HE306,Maint Of Grounds - General,3030,Barnwood Park Planting,20/10/2014,392134,1050,NET,Mr M G Horton T/A H&T Property Maintenance,09210X
Gloucester City Council,23UE,Flooding And Drainage,HE306,Maint Of Grounds - General,3030,"Three Oaks Pub, 26/09/2014",20/10/2014,392099,588.2,NET,Three Counties Drain Service,44033V
Gloucester City Council,23UE,Flooding And Drainage,HE306,Maint Of Grounds - General,3030,twyver clearance,20/10/2014,392118,120,NET,Tcv T/A The Conservation Volunteers,55897V
Gloucester City Council,23UE,General Works Fund,RY203,Contract Payments,0020,Sprinter Collections,20/10/2014,392090,75,CAP,Archer Recycling,11021G
Gloucester City Council,23UE,Gl1 Pool Air Handling System,LY152,Contract Payments,0020,GL1 Leisure Centre,20/10/2014,392074,2812.03,CAP,Esg Pool Ventilation Ltd,14715P
Gloucester City Council,23UE,Guildhall Bar And Caf�,LA210,Catering Provisions -Liquor,5111,Gloucester Gold,20/10/2014,392077,114,NET,Gloucester Brewery,13373F
Gloucester City Council,23UE,Guildhall Bar And Caf�,LA210,Catering Provisions -Liquor,5111,Liquor,20/10/2014,392078,1361.51,NET,Cellar Supplies Cheltenham Ltd,01563L
Gloucester City Council,23UE,REDACTED,REDACTED,REDACTED,REDACTED,REDACTED,20/10/2014,REDACTED,100,NET,REDACTED,REDACTED
Gloucester City Council,23UE,REDACTED,REDACTED,REDACTED,REDACTED,REDACTED,20/10/2014,REDACTED,164.38,NET,REDACTED,REDACTED
Gloucester City Council,23UE,REDACTED,REDACTED,REDACTED,REDACTED,REDACTED,20/10/2014,REDACTED,158.59,NET,REDACTED,REDACTED
Gloucester City Council,23UE,REDACTED,REDACTED,REDACTED,REDACTED,REDACTED,20/10/2014,REDACTED,258.05,NET,REDACTED,REDACTED
Gloucester City Council,23UE,REDACTED,REDACTED,REDACTED,REDACTED,REDACTED,20/10/2014,REDACTED,100,NET,REDACTED,REDACTED
Gloucester City Council,23UE,REDACTED,REDACTED,REDACTED,REDACTED,REDACTED,20/10/2014,REDACTED,90,NET,REDACTED,REDACTED
Gloucester City Council,23UE,REDACTED,REDACTED,REDACTED,REDACTED,REDACTED,20/10/2014,REDACTED,80,NET,REDACTED,REDACTED
Gloucester City Council,23UE,Guildhall Events,LA200,Advertising And Publicity,5702,Advertisements September 2014,20/10/2014,391765,412.49,NET,Local World Ltd,08556P
Gloucester City Council,23UE,Guildhall Events,LA200,Security Services Fees,5351,Door Staff,20/10/2014,392075,2184.38,NET,Nsgl Ltd,12539E
Gloucester City Council,23UE,Hackney Carriages,HL100,Fees For Services Received,5350,DVLA Electronic Check,20/10/2014,392114,102,NET,Intelligent Data Systems (Uk) Ltd,11067G
Gloucester City Council,23UE,Hempsted Market/Car Boot,HM234,Sewerage And Environ Charges,3402,Standard Units,20/10/2014,392097,434.8,NET,Abbey Loos Limited,10787B
Gloucester City Council,23UE,Hillfield Gardens Sensory Gard,LY146,Contract Payments,0020,Hillfield Gardens Sensory Garden,20/10/2014,392145,1200,CAP,D R Howse Services,13597E
Gloucester City Council,23UE,Homelessness,CH120,Board And Lodging,5515,August 2014 Voids,20/10/2014,392088,3628.4,NET,Gloucester City Homes,05244T
Gloucester City Council,23UE,Investment Property,RB500,Lift Maintenance,3051,"Engineer 20/09/14, Blackfriars Priory",20/10/2014,392173,229.84,NET,Pickerings Europe Ltd*,58816U
Gloucester City Council,23UE,Kings Quarter Redevelopment,RB600,Fees For Services Received,5350,Variation of Kings Square Development,20/10/2014,392110,4608.1,NET,Geldards Llp,08628P
Gloucester City Council,23UE,Legal Services,RS200,Basic Pay - Temporary Staff,2751,TEMPORARY STAFF,20/10/2014,392121,971.25,NET,Michael Page International Recruitment Ltd,06601P
Gloucester City Council,23UE,Legal Services,RS200,Basic Pay - Temporary Staff,2751,TEMPORARY STAFF,20/10/2014,392122,700,NET,Michael Page International Recruitment Ltd,06601P
Gloucester City Council,23UE,Legal Services,RS200,Basic Pay - Temporary Staff,2751,TEMPORARY STAFF,20/10/2014,392124,487.29,NET,Premiere Employment Ltd,55468Z
Gloucester City Council,23UE,Licences,HE510,Gating Orders,5541,Supply & Erect Steel Gate,20/10/2014,392157,1195.45,NET,Gloucester Street Forge,11069C
Gloucester City Council,23UE,Nms Contract,HI102,Contracted Services,6970,1/12th October 2014,20/10/2014,392127,490613.67,NET,Enterprise (Aol) Ltd,06695G
Gloucester City Council,23UE,Planning Policy,PT300,Vocational Training,2970,Programme of CPD Events,20/10/2014,392153,607.5,NET,Rtpi South West Branch,51344J
Gloucester City Council,23UE,Postal Services,RS120,Postages,5400,Post 19/09 - 02/10 2014,20/10/2014,392165,1734.91,NET,Royal Mail S.Wales & South West,35830S
Gloucester City Council,23UE,Postal Services,RS120,Postages,5400,"Response Service, September 14",20/10/2014,391791,130.23,NET,Royal Mail S.Wales & South West,35830S
Gloucester City Council,23UE,Registration Of Electors,RS400,Postages,5400,ACCOUNT 0870585031,20/10/2014,392150,203,NET,Royal Mail S.Wales & South West,35830S
Gloucester City Council,23UE,Registration Of Electors,RS400,Stationery,5302,Response Envelopes,20/10/2014,387929,250,NET,Alpha Response Print & Mail Ltd,03029U
Gloucester City Council,23UE,REDACTED,REDACTED,REDACTED,REDACTED,REDACTED,20/10/2014,REDACTED,820,NET,REDACTED,REDACTED
Gloucester City Council,23UE,Safer Stronger Communities,FP841,Other Minor Supplies Services,5590,Posters & Leaflets,20/10/2014,392152,288,NET,The Jade Studio,05208X
Gloucester City Council,23UE,Shopmobility,PE200,Cleaning Materials,3600,OCT14 SANITARY WASTE,20/10/2014,391760,7.11,NET,Ocs Group Uk Limited T/A Cannon,06506A
Gloucester City Council,23UE,Shopmobility,PE200,Maintenance Of Equipment,5030,Various Repairs,20/10/2014,392138,779.93,NET,Disabled Care & Mobility,12675V
Gloucester City Council,23UE,Summer Festival,LT300,Clothing,5200,Various t-shirts,20/10/2014,392106,360,NET,Quality Embroidery & Printing,06518T
Gloucester City Council,23UE,Tic Trading,LT110,Materials For Sale,5080,Delivery of DVD's of cathedral film,20/10/2014,392147,70.7,NET,Purple Knight,11270M
Gloucester City Council,23UE,Tourism Marketing,LT100,Other Minor Supplies Services,5590,OCS GROUP UK LIMITED TA CANNON,20/10/2014,391698,6.12,NET,Ocs Group Uk Limited T/A Cannon,06506A
Gloucester City Council,23UE,Council Streetcare Team,HI101,General Repair/Maint Buildings,3000,Kings Square,21/10/2014,392079,45,NET,Enterprise (Aol) Ltd,06695G
Gloucester City Council,23UE,Council Streetcare Team,HI101,Maint Of Grounds - General,3030,Spray Japenese Knotweed,21/10/2014,392096,25,NET,Greenfields Garden Services Ltd,48130G
Gloucester City Council,23UE,Folk Museum,LM210,Exhibits And Collections,5038,Yearly Licence Subscription,21/10/2014,392125,840,NET,British Pathe Ltd,14589U
Gloucester City Council,23UE,General Drainage Works,PY241,Contract Payments,0020,Barnwood Trash Screen,21/10/2014,392101,2324,CAP,Ecs Engineering Services Ltd,14968F
Gloucester City Council,23UE,General Drainage Works,PY241,Contract Payments,0020,St Peters School,21/10/2014,392491,12260,CAP,Rj Contracting (Environmental) Ltd,07429H
Gloucester City Council,23UE,REDACTED,REDACTED,REDACTED,REDACTED,REDACTED,21/10/2014,REDACTED,2252.5,NET,REDACTED,REDACTED
Gloucester City Council,23UE,REDACTED,REDACTED,REDACTED,REDACTED,REDACTED,21/10/2014,REDACTED,100,NET,REDACTED,REDACTED
Gloucester City Council,23UE,Investment Property,RB500,Consultants Fees,5349,"Mead Road, Archeological Evaluation",21/10/2014,392100,2250,NET,Cotswold Archaeology Ltd,09180E
Gloucester City Council,23UE,Matson & Robinswood Play S106,LY151,Contract Payments,0020,Created by invoice listener,21/10/2014,391811,4936,CAP,Landscape To Play Ltd,09116P
Gloucester City Council,23UE,Parks Contract Management,LP100,Maint Of Grounds - General,3030,Coney Hill Park,21/10/2014,392094,118.8,NET,Enterprise (Aol) Ltd,06695G
Gloucester City Council,23UE,Parks Contract Management,LP100,Maint Of Grounds - General,3030,Windfall Way,21/10/2014,392093,118.8,NET,Enterprise (Aol) Ltd,06695G
Gloucester City Council,23UE,Planning Policy,PT300,Basic Pay - Temporary Staff,2751,TEMPORARY STAFF,21/10/2014,390981,1750,NET,The Oyster Partnership Limited,14900T
Gloucester City Council,23UE,Planning Policy,PT300,Vocational Training,2970,09/10/2014 booking,21/10/2014,391484,199,NET,Rtpi Conferences,10380N
Gloucester City Council,23UE,Planning Policy Consultations,RY580,It Software,0057,G CLOUD,21/10/2014,390523,15420,CAP,Inovem Ltd,15142J
Gloucester City Council,23UE,Pollution Control,HE300,Fees For Services Received,5350,UKAS verification of equipment,21/10/2014,391974,1015,NET,Campbell Associates,58924P
Gloucester City Council,23UE,Vehicles,RS140,Fuel,4012,Fuel,21/10/2014,392167,40.24,NET,Allstar Business Solutions Ltd (Arval),06594A
Gloucester City Council,23UE,Westgate Mosaics,GY018,Contract Payments,0020,MOSAICS,21/10/2014,392485,10897.2,CAP,Victorian Mosaic Ltd,14887N
Gloucester City Council,23UE,Blackfriars,LA609,Hire Of Equipment,5020,"Rental 12 Months, Blackfriars",22/10/2014,387939,260,NET,Wessex Products (Leasing) Ltd,03684C
Gloucester City Council,23UE,Cems/Crems Admin,HC100,Conference/Meeting Expenses,5510,Associated Roses- Full Balance,22/10/2014,392679,350,NET,Genus Plant Sourcing,14143S
Gloucester City Council,23UE,Cems/Crems Admin,HC100,Subscriptions,5600,Associated Roses- Full Balance,22/10/2014,392679,300,NET,Genus Plant Sourcing,14143S
Gloucester City Council,23UE,Civil Parking Enforcement,PT741,Basic Pay - Temporary Staff,2751,TEMPORARY STAFF,22/10/2014,391535,1920,NET,Unity Recruitment,14857S
Gloucester City Council,23UE,Community Safety Projects,FP500,Basic Pay - Temporary Staff,2751,TEMPORARY STAFF,22/10/2014,392586,419.75,NET,Travail Employment Ltd,49371W
Gloucester City Council,23UE,Community Safety Projects,FP500,Basic Pay - Temporary Staff,2751,TEMPORARY STAFF,22/10/2014,392172,438,NET,Travail Employment Ltd,49371W
Gloucester City Council,23UE,Crematorium,HC200,Maint Of Grounds - General,3030,Associated Roses- Full Balance,22/10/2014,392679,896.8,NET,Genus Plant Sourcing,14143S
Gloucester City Council,23UE,Crematorium,HC200,Vocational Training,2970,Associated Roses- Full Balance,22/10/2014,392679,500,NET,Genus Plant Sourcing,14143S
Gloucester City Council,23UE,REDACTED,REDACTED,REDACTED,REDACTED,REDACTED,22/10/2014,REDACTED,40,NET,REDACTED,REDACTED
Gloucester City Council,23UE,Docks Complex - Catering Servs,RB110,Catering Provisions -Food,5110,Food w/e 05/10/2014,22/10/2014,392154,86.85,NET,Janes Pantry,24500W
Gloucester City Council,23UE,Docks Complex - Services,RB100,Cleaning Materials,3600,Cleaning Materials,22/10/2014,392064,150.17,NET,Core Hygiene Ltd,03885P
Gloucester City Council,23UE,Docks Complex - Services,RB100,Cleaning Materials,3600,Cleaning Materials,22/10/2014,392155,207.29,NET,Core Hygiene Ltd,03885P
Gloucester City Council,23UE,Docks Complex - Services,RB100,Recycling,3631,Recycling September 2014,22/10/2014,392163,40,NET,Printwaste Recycling,57114W
Gloucester City Council,23UE,Docks Complex - Services,RB100,Repair/Maint Of Fixed Plant,3006,"Remedial Works, 22/09/14",22/10/2014,392589,327,NET,Hewer Facilities Mgt Ltd,05232A
Gloucester City Council,23UE,Electrical Investigatory Works,RY142,Capital Emergency Lighting,0026,Emergency Lights,22/10/2014,392143,172.2,CAP,A & E Fire Equipment Limited,54289L
Gloucester City Council,23UE,Gloucester Guildhall,LA100,Cctv Servicing & Maint,3016,CCTV,22/10/2014,390375,320,NET,Asguk (Systems) Ltd,07167R
Gloucester City Council,23UE,Green Transport Policy,PJ130,Electric Car Charge,4030,Smart for two coupe,22/10/2014,392555,287.35,NET,Daimler Fleet Management,07828N
Gloucester City Council,23UE,Guildhall Bar And Caf�,LA210,Catering Provisions -Food,5110,Food,22/10/2014,392600,73.24,NET,Woodward Foodservice,10714F
Gloucester City Council,23UE,Guildhall Bar And Caf�,LA210,Catering Provisions -Liquor,5111,BEERGAS,22/10/2014,391767,18.57,NET,Boc Ltd,59172L
Gloucester City Council,23UE,Homelessness,CH120,Basic Pay - Temporary Staff,2751,TEMPORARY STAFF,22/10/2014,392580,665,NET,Building Recruitment Company Ltd,55385E
Gloucester City Council,23UE,Homelessness,CH120,Board And Lodging,5515,various tenants,22/10/2014,392661,1734.17,NET,Carbrey Housing Ltd,11098G
Gloucester City Council,23UE,Homelessness,CH120,Board And Lodging,5515,various tenants,22/10/2014,392643,1027.63,NET,Kalmwood Ltd,08568G
Gloucester City Council,23UE,Homelessness,CH120,Board And Lodging,5515,various tenants,22/10/2014,392668,458.94,NET,Carbrey Housing Ltd,11098G
Gloucester City Council,23UE,Homelessness,CH120,Board And Lodging,5515,various tenants,22/10/2014,392639,1991.9,NET,Dorchester House Trust,12298D
Gloucester City Council,23UE,REDACTED,REDACTED,REDACTED,REDACTED,REDACTED,22/10/2014,REDACTED,3490.25,NET,REDACTED,REDACTED
Gloucester City Council,23UE,REDACTED,REDACTED,REDACTED,REDACTED,REDACTED,22/10/2014,REDACTED,314.86,NET,REDACTED,REDACTED
Gloucester City Council,23UE,REDACTED,REDACTED,REDACTED,REDACTED,REDACTED,22/10/2014,REDACTED,874.86,NET,REDACTED,REDACTED
Gloucester City Council,23UE,REDACTED,REDACTED,REDACTED,REDACTED,REDACTED,22/10/2014,REDACTED,240,NET,REDACTED,REDACTED
Gloucester City Council,23UE,Homelessness,CH120,Board And Lodging,5515,various tenants,22/10/2014,392641,1132.49,NET,James Legge Property (Ltd),07844R
Gloucester City Council,23UE,Homelessness,CH120,Board And Lodging,5515,various tenants,22/10/2014,392669,131.43,NET,Kimbrose Ltd,06333H
Gloucester City Council,23UE,Homelessness,CH120,Rent In Advance,5516,REDACTED,22/10/2014,392676,600,NET,Cgt Lettings Ltd,09004C
Gloucester City Council,23UE,Homelessness Prevention,CH122,Fees For Services Received,5350,REDACTED,22/10/2014,392676,800,NET,Cgt Lettings Ltd,09004C
Gloucester City Council,23UE,Inhouse Training,EH200,Vocational Training,2970,Renewal course November 2014,22/10/2014,391445,520,NET,Aspire Sports & Cultural Trust,08135V
Gloucester City Council,23UE,Investment Property,RB500,Repair/Maint Of Fixed Plant,3006,"Callout, light not staying on 23/09",22/10/2014,392590,82.5,NET,Hewer Facilities Mgt Ltd,05232A
Gloucester City Council,23UE,Legal Services,RS200,Basic Pay - Temporary Staff,2751,TEMPORARY STAFF,22/10/2014,392062,1549.93,NET,Venn Group Ltd,04339P
Gloucester City Council,23UE,REDACTED,REDACTED,REDACTED,REDACTED,REDACTED,22/10/2014,REDACTED,21,NET,REDACTED,REDACTED
Gloucester City Council,23UE,The Arbor,HC501,Catering Provisions -Food,5110,Food,22/10/2014,392602,30.62,NET,Total Produce Gloucester,12645E
Gloucester City Council,23UE,The Arbor,HC501,Catering Provisions -Food,5110,Food,22/10/2014,392603,35.33,NET,Total Produce Gloucester,12645E
Gloucester City Council,23UE,The Arbor,HC501,Catering Provisions -Food,5110,Food,22/10/2014,392604,35.24,NET,Total Produce Gloucester,12645E
Gloucester City Council,23UE,The Arbor,HC501,Catering Provisions -Food,5110,Food,22/10/2014,392605,26.2,NET,Total Produce Gloucester,12645E
Gloucester City Council,23UE,The Arbor,HC501,Catering Provisions -Food,5110,Food,22/10/2014,392606,10.42,NET,Total Produce Gloucester,12645E
Gloucester City Council,23UE,The Arbor,HC501,Catering Provisions -Food,5110,Food,22/10/2014,392607,23.07,NET,Total Produce Gloucester,12645E
Gloucester City Council,23UE,The Arbor,HC501,Catering Provisions -Food,5110,Food,22/10/2014,392608,20.62,NET,Total Produce Gloucester,12645E
Gloucester City Council,23UE,The Arbor,HC501,Catering Provisions -Food,5110,Food,22/10/2014,392609,26.05,NET,Total Produce Gloucester,12645E
Gloucester City Council,23UE,The Arbor,HC501,Catering Provisions -Food,5110,Food,22/10/2014,392611,49.91,NET,Total Produce Gloucester,12645E
Gloucester City Council,23UE,The Arbor,HC501,Catering Provisions -Food,5110,Food,22/10/2014,392612,43.94,NET,Total Produce Gloucester,12645E
Gloucester City Council,23UE,The Arbor,HC501,Catering Provisions -Food,5110,Food,22/10/2014,392613,58.28,NET,Total Produce Gloucester,12645E
Gloucester City Council,23UE,The Arbor,HC501,Catering Provisions -Food,5110,Food,22/10/2014,392614,32.34,NET,Total Produce Gloucester,12645E
Gloucester City Council,23UE,The Arbor,HC501,Catering Provisions -Food,5110,Food,22/10/2014,392617,349.44,NET,3663,55585U
Gloucester City Council,23UE,The Arbor,HC501,Catering Provisions -Food,5110,Food,22/10/2014,392618,250.68,NET,3663,55585U
Gloucester City Council,23UE,The Arbor,HC501,Catering Provisions -Food,5110,Food,22/10/2014,392619,42.36,NET,3663,55585U
Gloucester City Council,23UE,The Arbor,HC501,Catering Provisions -Food,5110,Food,22/10/2014,392620,305.89,NET,3663,55585U
Gloucester City Council,23UE,The Arbor,HC501,Catering Provisions -Food,5110,Food,22/10/2014,392621,233.9,NET,3663,55585U
Gloucester City Council,23UE,The Arbor,HC501,Catering Provisions -Food,5110,Food,22/10/2014,392622,177.53,NET,3663,55585U
Gloucester City Council,23UE,The Arbor,HC501,Catering Provisions -Food,5110,Food,22/10/2014,392623,130,NET,3663,55585U
Gloucester City Council,23UE,The Arbor,HC501,Catering Provisions -Food,5110,Food,22/10/2014,392624,43.16,NET,3663,55585U
Gloucester City Council,23UE,The Arbor,HC501,Catering Provisions -Food,5110,Food,22/10/2014,392625,79.18,NET,3663,55585U
Gloucester City Council,23UE,The Arbor,HC501,Catering Provisions -Food,5110,Food,22/10/2014,392631,512.07,NET,3663,55585U
Gloucester City Council,23UE,The Arbor,HC501,Catering Provisions -Food,5110,Food,22/10/2014,392633,359.11,NET,3663,55585U
Gloucester City Council,23UE,The Arbor,HC501,Catering Provisions -Food,5110,TOTAL PRODUCE GLOUCESTER,22/10/2014,392610,8.54,NET,Total Produce Gloucester,12645E
Gloucester City Council,23UE,The Arbor,HC501,Other Minor Supplies Services,5590,Flowers,22/10/2014,392601,39.6,NET,Carols Florist,01274X
Gloucester City Council,23UE,The Arbor,HC501,Other Minor Supplies Services,5590,Flowers,22/10/2014,392615,25.2,NET,Carols Florist,01274X
Gloucester City Council,23UE,The Arbor,HC501,Other Minor Supplies Services,5590,Flowers,22/10/2014,392616,39.6,NET,Carols Florist,01274X
Gloucester City Council,23UE,Theatre Tokens,LT106,Materials For Sale,5080,Ticket Sales,22/10/2014,392582,130,NET,Society Of London Theatre,05656Z
Gloucester City Council,23UE,Theatre Tokens,LT106,Sale Of Goods And Services,9230,Ticket Sales,22/10/2014,392582,-6.5,NET,Society Of London Theatre,05656Z
Gloucester City Council,23UE,REDACTED,REDACTED,REDACTED,REDACTED,REDACTED,22/10/2014,REDACTED,76,NET,REDACTED,REDACTED
Gloucester City Council,23UE,Tic Theatre Ticket Sales,LT107,Materials For Sale,5080,"Ticket Sales, 'Into the Breach'",22/10/2014,392677,75,NET,Kings Theatre,54213X
Gloucester City Council,23UE,Tic Theatre Ticket Sales,LT107,Materials For Sale,5080,"Ticket Sales, Mankersley Male Choir",22/10/2014,392671,77,NET,Pied Piper Appeal,02491B
Gloucester City Council,23UE,Tic Theatre Ticket Sales,LT107,Materials For Sale,5080,"Ticket Sales, One Act Plays Oct 14",22/10/2014,392673,132,NET,Kings Theatre,54213X
Gloucester City Council,23UE,REDACTED,REDACTED,REDACTED,REDACTED,REDACTED,22/10/2014,REDACTED,-0.7,NET,REDACTED,REDACTED
Gloucester City Council,23UE,REDACTED,REDACTED,REDACTED,REDACTED,REDACTED,22/10/2014,REDACTED,-3.17,NET,REDACTED,REDACTED
Gloucester City Council,23UE,Tic Theatre Ticket Sales,LT107,Sale Of Goods And Services,9230,"Ticket Sales, 'Into the Breach'",22/10/2014,392677,-6.25,NET,Kings Theatre,54213X
Gloucester City Council,23UE,Tic Theatre Ticket Sales,LT107,Sale Of Goods And Services,9230,"Ticket Sales, Mankersley Male Choir",22/10/2014,392671,-3.21,NET,Pied Piper Appeal,02491B
Gloucester City Council,23UE,Tic Theatre Ticket Sales,LT107,Sale Of Goods And Services,9230,"Ticket Sales, One Act Plays Oct 14",22/10/2014,392673,-11,NET,Kings Theatre,54213X
Gloucester City Council,23UE,Vending Machine,RB111,Hire Of Equipment,5020,Lease Rental,22/10/2014,387231,162.57,NET,Siemens Financial Services Ltd,54427Z
Gloucester City Council,23UE,Allotments,HI104,Fees For Services Received,5350,Dispatch of letter to allotment holders,23/10/2014,392563,370,NET,Civica Uk Ltd,10841X
Gloucester City Council,23UE,Asset Management,RS300,Basic Pay - Temporary Staff,2751,TEMPORARY STAFF,23/10/2014,391052,15.3,NET,Hays Specialist Recruitment Ltd,55516P
Gloucester City Council,23UE,Asset Management,RS300,Basic Pay - Temporary Staff,2751,Consultancy Services 03/09/14,23/10/2014,392529,6600,NET,Ardley Associates,09369F
Gloucester City Council,23UE,Blackfriars,LA609,Hire Of Equipment,5020,Beechwood Banquet Chairs,23/10/2014,392506,176,NET,Valley Furniture Hire Ltd,08324P
Gloucester City Council,23UE,Blackfriars,LA609,Hire Of Equipment,5020,Chiavari Chairs,23/10/2014,392509,218,NET,Valley Furniture Hire Ltd,08324P
Gloucester City Council,23UE,Blackfriars,LA609,Hire Of Equipment,5020,Lime Washed Chairs,23/10/2014,392510,444.5,NET,Valley Furniture Hire Ltd,08324P
Gloucester City Council,23UE,Blackfriars,LA609,Hire Of Equipment,5020,Round tables,23/10/2014,392507,58,NET,Valley Furniture Hire Ltd,08324P
Gloucester City Council,23UE,Building Control,PT400,Basic Pay - Temporary Staff,2751,TEMPORARY STAFF,23/10/2014,392515,1521.58,NET,The Oyster Partnership Limited,14900T
Gloucester City Council,23UE,Building Control,PT400,Basic Pay - Temporary Staff,2751,TEMPORARY STAFF,23/10/2014,392514,1195.79,NET,The Oyster Partnership Limited,14900T
Gloucester City Council,23UE,Building Control,PT400,Basic Pay - Temporary Staff,2751,TEMPORARY STAFF,23/10/2014,392513,1567.5,NET,The Oyster Partnership Limited,14900T
Gloucester City Council,23UE,Building Control,PT400,Basic Pay - Temporary Staff,2751,TEMPORARY STAFF,23/10/2014,392526,1569.75,NET,The Oyster Partnership Limited,14900T
Gloucester City Council,23UE,Building Control,PT400,Basic Pay - Temporary Staff,2751,TEMPORARY STAFF,23/10/2014,392527,1693.5,NET,The Oyster Partnership Limited,14900T
Gloucester City Council,23UE,Building Control,PT400,Basic Pay - Temporary Staff,2751,TEMPORARY STAFF,23/10/2014,392528,1601.15,NET,The Oyster Partnership Limited,14900T
Gloucester City Council,23UE,Building Control,PT400,Fees For Services Received,5350,Plan Checking Service,23/10/2014,392565,1261.87,NET,Stroud District Council,42500D
Gloucester City Council,23UE,Building Control,PT400,Subcontractors Fees,5357,Annual Subscription 2014,23/10/2014,392544,300,NET,Labc West Of England Region,55597L
Gloucester City Council,23UE,Business Transformation & Tech,RT700,Computer Software <5000,5425,Annual Support,23/10/2014,391424,445,NET,Mcpc Systems (Uk) Ltd,14043X
Gloucester City Council,23UE,Business Transformation & Tech,RT700,Computer Software Maintenance,5427,"SAP, Business Objects",23/10/2014,392473,4488.42,NET,Software Box Ltd,14185D
Gloucester City Council,23UE,Business Transformation & Tech,RT700,Fees For Services Received,5350,Change of Bank,23/10/2014,392560,7000,NET,Civica Uk Ltd,10841X
Gloucester City Council,23UE,Cemeteries,HC300,Clothing,5200,Overjacket & Trouser Set,23/10/2014,392111,12.8,NET,Safpro Industrial Supply Co,39190W
Gloucester City Council,23UE,Cemeteries,HC300,Clothing,5200,Uniforms,23/10/2014,391214,301.16,NET,Safpro Industrial Supply Co,39190W
Gloucester City Council,23UE,Cemeteries,HC300,Fuel,4012,Gasoil,23/10/2014,392102,615,NET,Cpl Petroleum,55192U
Gloucester City Council,23UE,Cemeteries,HC300,Maint Of Grounds - General,3030,Melcourt Composted Fine Bark,23/10/2014,392128,1755,NET,Bhgs Ltd,00247K
Gloucester City Council,23UE,Cemeteries,HC300,Maint Of Grounds - General,3030,Range Paving Honey,23/10/2014,391181,172.5,NET,Buildbase Ltd*,03692D
Gloucester City Council,23UE,Cemeteries,HC300,Operational Materials,5070,Solid Pipe,23/10/2014,391179,9.9,NET,Pump Supplies Ltd,55668N
Gloucester City Council,23UE,Cemeteries,HC300,Other Minor Supplies Services,5590,Range Paving Honey,23/10/2014,391181,690,NET,Buildbase Ltd*,03692D
Gloucester City Council,23UE,Cemeteries,HC300,"Seeds, Trees, Plants, Shrubs",3028,Selection of Conifers,23/10/2014,392126,102.33,NET,Norton Plantaria,53679C
Gloucester City Council,23UE,City Museum,RY153,Contract Payments,0020,Eastgate Shopping Mall Works,23/10/2014,392630,232,CAP,B & M Babbage & Co.Ltd,56361K
Gloucester City Council,23UE,City Museum And Art Gallery,LM200,Advertising And Publicity,5702,Enhanced Upgrade,23/10/2014,392474,50,NET,Days Out Publishing Ltd,51029W
Gloucester City Council,23UE,City Museum And Art Gallery,LM200,Operational Equipment <5000,5012,Toys,23/10/2014,391240,120,NET,Ashwood & Company,51123D
Gloucester City Council,23UE,City Museum And Art Gallery,LM200,Publications For Sale,5064,GOODS FOR RESALE,23/10/2014,391426,75.6,NET,Holy Mackerel (Uk)Ltd,15000G
Gloucester City Council,23UE,City Museum And Art Gallery,LM200,Publications For Sale,5064,Stationary,23/10/2014,392115,104.28,NET,Popshots Studios Ltd,15005W
Gloucester City Council,23UE,City Museum And Art Gallery,LM200,Publications For Sale,5064,Toys,23/10/2014,391240,174.3,NET,Ashwood & Company,51123D
Gloucester City Council,23UE,Contact Centre,RB300,Basic Pay -Admin /Prof Staff,2601,TEMPORARY STAFF,23/10/2014,392489,616,NET,Cps Anystaff Recruitment Ltd,13945D
Gloucester City Council,23UE,Contact Centre,RB300,Basic Pay -Admin /Prof Staff,2601,TEMPORARY STAFF,23/10/2014,392465,643.5,NET,Cps Anystaff Recruitment Ltd,13945D
Gloucester City Council,23UE,Contact Centre,RB300,Basic Pay -Admin /Prof Staff,2601,Temporary Staff w/e 10/10/2014,23/10/2014,392599,634.81,NET,One To One Recruitment,04752H
Gloucester City Council,23UE,Countryside Unit,LP201,General Repair/Maint Buildings,3000,First Aid Supplies,23/10/2014,392484,81.5,NET,Greenham Trading Ltd,19305R
Gloucester City Council,23UE,Crematorium,HC200,Book Of Memory,5055,Certified Teak Bench,23/10/2014,392161,543.33,NET,Codec Facilities Ltd,14338Y
Gloucester City Council,23UE,Crematorium,HC200,Cleaning Materials,3600,Crem sanitary disposal unit,23/10/2014,391962,16.78,NET,Minster Cleaning Services,02158R
Gloucester City Council,23UE,Crematorium,HC200,Equipment For Sale,5050,Certified Teak Bench,23/10/2014,392162,445,NET,Codec Facilities Ltd,14338Y
Gloucester City Council,23UE,Crematorium,HC200,Repair/Maint Of Monuments,3004,Addition to Sanctum,23/10/2014,392105,115.5,NET,The Columbaria Company,55078T
Gloucester City Council,23UE,Dclg High St Renewal Fund,FP308,Other Minor Supplies Services,5590,Funding for Blues Festival Banners,23/10/2014,387323,500,NET,Marketing Gloucester Ltd,08925E
Gloucester City Council,23UE,Dclg High St Renewal Fund,FP308,Other Minor Supplies Services,5590,Independents Day Grant,23/10/2014,387631,2000,NET,Marketing Gloucester Ltd,08925E
Gloucester City Council,23UE,Drivers Budget,RL501,Fees For Services Received,5350,Corporate Refreshments 300 guests,23/10/2014,392498,647,NET,Catercater Ltd,08620G
Gloucester City Council,23UE,Economic Development,FP300,Business Grant,7116,Business Rent Grant,23/10/2014,392557,1500,NET,Fat Toni's (Gloucester) Ltd,15022W
Gloucester City Council,23UE,Economic Development,FP300,Other Minor Supplies Services,5590,Advertisement 08/10/2014,23/10/2014,392549,87.65,NET,Local World Ltd,08556P
Gloucester City Council,23UE,Financial Services,RT200,Fees For Services Received,5350,Removal of cheques,23/10/2014,392561,7000,NET,Civica Uk Ltd,10841X
Gloucester City Council,23UE,Financial Services,RT200,Fees For Services Received,5350,Various Items,23/10/2014,389406,225.15,NET,Buildbase Ltd*,03692D
Gloucester City Council,23UE,Flooding And Drainage,HE306,Maint Of Grounds - General,3030,Clearance of Saintbridge 11/08 & 14/08,23/10/2014,389633,240,NET,Tcv T/A The Conservation Volunteers,55897V
Gloucester City Council,23UE,Flooding And Drainage,HE306,Maint Of Grounds - General,3030,Ditch Clearances,23/10/2014,392492,810,NET,Rdb Safety Boat Ltd,13507J
Gloucester City Council,23UE,Folk Museum,LM210,Advertising And Publicity,5702,Enhanced Upgrade,23/10/2014,392475,50,NET,Days Out Publishing Ltd,51029W
Gloucester City Council,23UE,Folk Museum,LM210,Operational Equipment <5000,5012,Toys,23/10/2014,391240,80,NET,Ashwood & Company,51123D
Gloucester City Council,23UE,Folk Museum,LM210,Publications For Sale,5064,GOODS FOR RESALE,23/10/2014,391426,64.8,NET,Holy Mackerel (Uk)Ltd,15000G
Gloucester City Council,23UE,Folk Museum,LM210,Publications For Sale,5064,Stationary,23/10/2014,392115,104.28,NET,Popshots Studios Ltd,15005W
Gloucester City Council,23UE,Folk Museum,LM210,Publications For Sale,5064,Toys,23/10/2014,391240,150.72,NET,Ashwood & Company,51123D
Gloucester City Council,23UE,General Drainage Works,PY241,Contract Payments,0020,participation agreement,23/10/2014,392486,350,CAP,Rab Consultants,13415R
Gloucester City Council,23UE,General Drainage Works,PY241,Contract Payments,0020,PLP Surveys,23/10/2014,392574,1387,CAP,Rab Consultants,13415R
Gloucester City Council,23UE,Green Garden Waste,HI105,Fees For Services Received,5350,Annual Renewal Letters,23/10/2014,392559,4300,NET,Civica Uk Ltd,10841X
Gloucester City Council,23UE,REDACTED,REDACTED,REDACTED,REDACTED,REDACTED,23/10/2014,REDACTED,100,NET,REDACTED,REDACTED
Gloucester City Council,23UE,Guildhall Events,LA200,Fees For Services Received,5350,Stage Backline 27 & 28 September 2014,23/10/2014,392494,500,NET,Jamie Mckivitt T/A Witney Music Studios,14959G
Gloucester City Council,23UE,REDACTED,REDACTED,REDACTED,REDACTED,REDACTED,23/10/2014,REDACTED,300,NET,REDACTED,REDACTED
Gloucester City Council,23UE,REDACTED,REDACTED,REDACTED,REDACTED,REDACTED,23/10/2014,REDACTED,110,NET,REDACTED,REDACTED
Gloucester City Council,23UE,REDACTED,REDACTED,REDACTED,REDACTED,REDACTED,23/10/2014,REDACTED,240,NET,REDACTED,REDACTED
Gloucester City Council,23UE,Hackney Carriages,HL100,Advertising And Publicity,5702,Advertisement 11/10/14,23/10/2014,392550,642.75,NET,Local World Ltd,08556P
Gloucester City Council,23UE,Hackney Carriages,HL100,Other Minor Supplies Services,5590,Licence Plate Sets,23/10/2014,392575,3186.9,NET,Mogo Uk,56615B
Gloucester City Council,23UE,Homelessness,CH120,Basic Pay - Temporary Staff,2751,TEMPORARY STAFF,23/10/2014,392581,679.25,NET,Building Recruitment Company Ltd,55385E
Gloucester City Council,23UE,Homelessness,CH120,Fees For Services Received,5350,Medical Advice,23/10/2014,392558,105,NET,Now Medical,03468L
Gloucester City Council,23UE,REDACTED,REDACTED,REDACTED,REDACTED,REDACTED,23/10/2014,REDACTED,484.6,NET,REDACTED,REDACTED
Gloucester City Council,23UE,REDACTED,REDACTED,REDACTED,REDACTED,REDACTED,23/10/2014,REDACTED,364.6,NET,REDACTED,REDACTED
Gloucester City Council,23UE,Homelessness Prevention,CH122,Fees For Services Received,5350,Medical Advice,23/10/2014,392558,25,NET,Now Medical,03468L
Gloucester City Council,23UE,Homelessness Prevention,CH122,Fees For Services Received,5350,REDACTED,23/10/2014,392724,500,NET,Your Property People,10964D
Gloucester City Council,23UE,REDACTED,REDACTED,REDACTED,REDACTED,REDACTED,23/10/2014,REDACTED,400,NET,REDACTED,REDACTED
Gloucester City Council,23UE,Housing Works In Default,HD500,Clearance And Cleansing Fees,5384,"4 Glencarn Avenue, undergrowth",23/10/2014,392554,1000,NET,Rj Contracting (Environmental) Ltd,07429H
Gloucester City Council,23UE,Investment Property,RB500,General Repair/Maint Buildings,3000,"Blackfriars Priory, 06/10/2014",23/10/2014,392552,100,NET,Three Counties Drain Service,44033V
Gloucester City Council,23UE,Legal Services,RS200,Basic Pay - Temporary Staff,2751,TEMPORARY STAFF,23/10/2014,391764,740,NET,Badenoch & Clark,01536P
Gloucester City Council,23UE,Legal Services,RS200,Basic Pay - Temporary Staff,2751,TEMPORARY STAFF,23/10/2014,392551,490.59,NET,Premiere Employment Ltd,55468Z
Gloucester City Council,23UE,Licences,HE510,Gating Orders,5541,Call out emergency work,23/10/2014,392488,72.75,NET,Gloucester City Homes,05244T
Gloucester City Council,23UE,REDACTED,REDACTED,REDACTED,REDACTED,REDACTED,23/10/2014,REDACTED,750,NET,REDACTED,REDACTED
Gloucester City Council,23UE,Nms Contract,HI102,Additional Non-Tender Items,6973,Bins,23/10/2014,392497,4804,NET,Straight Plc,50537E
Gloucester City Council,23UE,Nms Contract,HI102,Operational Equipment <5000,5012,Sign,23/10/2014,392519,28.78,NET,Ppg Architectural Coatings Uk Limited,04709C
Gloucester City Council,23UE,Nms Contract,HI102,Operational Materials,5070,Purple Sacks,23/10/2014,392539,903,NET,Polystar Plastics Ltd,01120C
Gloucester City Council,23UE,Planning Policy,PT300,Basic Pay - Temporary Staff,2751,TEMPORARY STAFF,23/10/2014,392464,1400,NET,The Oyster Partnership Limited,14900T
Gloucester City Council,23UE,Planning Policy,PT300,Basic Pay - Temporary Staff,2751,TEMPORARY STAFF,23/10/2014,392478,1760,NET,The Oyster Partnership Limited,14900T
Gloucester City Council,23UE,Planning Policy,PT300,Basic Pay - Temporary Staff,2751,TEMPORARY STAFF,23/10/2014,392479,1760,NET,The Oyster Partnership Limited,14900T
Gloucester City Council,23UE,Planning Policy,PT300,Basic Pay - Temporary Staff,2751,TEMPORARY STAFF,23/10/2014,392480,1755,NET,The Oyster Partnership Limited,14900T
Gloucester City Council,23UE,Planning Policy,PT300,Basic Pay - Temporary Staff,2751,TEMPORARY STAFF,23/10/2014,392476,1750,NET,The Oyster Partnership Limited,14900T
Gloucester City Council,23UE,Planning Policy,PT300,Basic Pay - Temporary Staff,2751,TEMPORARY STAFF,23/10/2014,392481,1759.6,NET,The Oyster Partnership Limited,14900T
Gloucester City Council,23UE,Planning Policy,PT300,Basic Pay - Temporary Staff,2751,TEMPORARY STAFF,23/10/2014,392477,1400,NET,The Oyster Partnership Limited,14900T
Gloucester City Council,23UE,Play Area Refurbishment,LY071,Legal/Survey Fees -Land,0002,wood carving Robinswood Hill,23/10/2014,392524,480,CAP,Wild Wood Carving,13438C
Gloucester City Council,23UE,Registration Of Electors,RS400,Printing,5300,IER July Mailings,23/10/2014,391466,25.81,NET,Alpha Response Print & Mail Ltd,03029U
Gloucester City Council,23UE,Registration Of Electors,RS400,Printing,5300,July Mailings,23/10/2014,389368,10056.99,NET,Alpha Response Print & Mail Ltd,03029U
Gloucester City Council,23UE,Rehousing,CH111,Fees For Services Received,5350,Medical Advice,23/10/2014,392558,175,NET,Now Medical,03468L
Gloucester City Council,23UE,Retail Market - Landlord,HM300,Sewerage And Environ Charges,3402,Pest Control Call out 30/09/2014,23/10/2014,392520,67,NET,Falconry Services Ltd,10692P
Gloucester City Council,23UE,Safer Stronger Communities,FP841,Other Minor Supplies Services,5590,Production & Output of 60 Tri Sign fixin,23/10/2014,392517,136.8,NET,Alpha Graphics,03471Y
Gloucester City Council,23UE,Stationery Services,RS150,Stationery,5302,Paper,23/10/2014,392541,451,NET,Premier Paper Group Ltd,09166Y
Gloucester City Council,23UE,Stationery Services,RS150,Stationery,5302,Stationary,23/10/2014,392542,71.87,NET,Lyreco Uk Ltd,11746G
Gloucester City Council,23UE,Stationery Services,RS150,Stationery,5302,Stationary,23/10/2014,392543,10.37,NET,Lyreco Uk Ltd,11746G
Gloucester City Council,23UE,Stroud Shared Audit Services,RT301,Other Minor Supplies Services,5590,Conference,23/10/2014,392472,325,NET,Cipfa Business Ltd,53500A
Gloucester City Council,23UE,The Arbor,HC501,Catering Provisions -Liquor,5111,Drinks,23/10/2014,392499,36.95,NET,Cellar Supplies Cheltenham Ltd,01563L
Gloucester City Council,23UE,The Arbor,HC501,Catering Provisions -Liquor,5111,Drinks,23/10/2014,392500,235.31,NET,Cellar Supplies Cheltenham Ltd,01563L
Gloucester City Council,23UE,The Arbor,HC501,Catering Provisions -Liquor,5111,Guiness,23/10/2014,392501,65.98,NET,Cellar Supplies Cheltenham Ltd,01563L
Gloucester City Council,23UE,The Arbor,HC501,Catering Provisions -Liquor,5111,Liquor,23/10/2014,392502,201.38,NET,Cellar Supplies Cheltenham Ltd,01563L
Gloucester City Council,23UE,The Arbor,HC501,Catering Provisions -Liquor,5111,Liquor,23/10/2014,392503,69.94,NET,Cellar Supplies Cheltenham Ltd,01563L
Gloucester City Council,23UE,Tic Rovercard Sales,LT101,Materials For Sale,5080,Sales Aug- Sept 2014,23/10/2014,392504,6501,NET,Stagecoach Services Ltd*,56554W
Gloucester City Council,23UE,Tic Rovercard Sales,LT101,Sale Of Goods And Services,9230,Sales Aug- Sept 2014,23/10/2014,392504,-541.75,NET,Stagecoach Services Ltd*,56554W
Gloucester City Council,23UE,Tic Trading,LT110,Materials For Sale,5080,Plates & Cups,23/10/2014,392566,215.93,NET,Norfolk China Ltd,12863S
Gloucester City Council,23UE,Tic Trading,LT110,Materials For Sale,5080,Polo Shirts,23/10/2014,392568,382.5,NET,Sportfolio Europe Lp,14456R
Gloucester City Council,23UE,Tic Trading,LT110,Materials For Sale,5080,Supply of 5 DVD's,23/10/2014,392521,61.25,NET,Quanta Ltd,06066B
Gloucester City Council,23UE,Tourism Marketing,LT100,Window Cleaning,3610,Weekly Window Cleaning Sept 14,23/10/2014,392567,12,NET,Interserve Fs (Uk) Limited,07778C
Gloucester City Council,23UE,Business Transformation & Tech,RT700,Computer Consumables,5422,LAPTOP CASE,24/10/2014,391602,47,NET,Qual Technology,56512N
Gloucester City Council,23UE,Cemeteries,HC300,"Seeds, Trees, Plants, Shrubs",3028,25 Erica Carnea,24/10/2014,392493,40,NET,Nature First Ltd,48626V
Gloucester City Council,23UE,Civica It Contract,RT270,Contracted Services,6970,NOV14 IT MANAGED SERVICES,24/10/2014,391717,47916.66,NET,Civica Uk Ltd,10841X
Gloucester City Council,23UE,Contact Centre,RB300,Basic Pay -Admin /Prof Staff,2601,TEMPORARY STAFF,24/10/2014,392490,715,NET,Cps Anystaff Recruitment Ltd,13945D
Gloucester City Council,23UE,Docks Complex - Telephones,RB120,Mobile Phones,5409,Samsung Galaxy S4 Minis,24/10/2014,392482,436,NET,Everything Everywhere Ltd (T-Mobile),02334V
Gloucester City Council,23UE,Emergency Out Of Hours Calls,RB301,Fees For Services Received,5350,33 Additional Calls August 2014,24/10/2014,392576,49.83,NET,Office Response,09439K
Gloucester City Council,23UE,Homelessness,CH120,Basic Pay - Temporary Staff,2751,TEMPORARY STAFF,24/10/2014,391215,548,NET,James Andrews Recruitment Solutions,13636W
Gloucester City Council,23UE,Homelessness,CH120,Basic Pay - Temporary Staff,2751,TEMPORARY STAFF,24/10/2014,392594,703,NET,Building Recruitment Company Ltd,55385E
Gloucester City Council,23UE,Homelessness,CH120,Fees For Services Received,5350,Lawtel Articles Express,24/10/2014,391434,12,NET,Thomson Reuters,43110M
Gloucester City Council,23UE,Legal Services,RS200,Basic Pay - Temporary Staff,2751,TEMPORARY STAFF,24/10/2014,392545,517.25,NET,Sellick Partnership Group Ltd,11057C
Gloucester City Council,23UE,Legal Services,RS200,Basic Pay - Temporary Staff,2751,TEMPORARY STAFF,24/10/2014,392511,879.14,NET,Venn Group Ltd,04339P
Gloucester City Council,23UE,Legal Services,RS200,Basic Pay - Temporary Staff,2751,TEMPORARY STAFF,24/10/2014,392512,1549.93,NET,Venn Group Ltd,04339P
Gloucester City Council,23UE,Parks Contract Management,LP100,Maint Of Grounds - General,3030,"Horsbere Meadow, Clearance works",24/10/2014,389046,190,NET,Greenfields Garden Services Ltd,48130G
Gloucester City Council,23UE,Ugly Structures,GY010,Contract Payments,0020,CGI Images for Kingswalk,24/10/2014,392467,3995,CAP,Astam G.B.C. Consultancy Ltd,55027L
Gloucester City Council,23UE,Vehicles,RS140,Fuel,4012,Fuel,24/10/2014,392597,225.03,NET,Allstar Business Solutions Ltd (Arval),06594A
Gloucester City Council,23UE,REDACTED,REDACTED,REDACTED,REDACTED,REDACTED,24/10/2014,REDACTED,553.84,NET,REDACTED,REDACTED
Gloucester City Council,23UE,1 Albion Cottages,RB545,Consultants Fees,5349,"1 Albion Cottages, for sale",27/10/2014,392538,2100,NET,Naylor Powell,08867T
Gloucester City Council,23UE,All Main Buildings Voltage Mas,RY180,Cap Repair/Maint Fixed Plant,0014,Transfer Canister 20/08/2014,27/10/2014,389700,432,CAP,Parkeon Ltd,03238G
Gloucester City Council,23UE,Armscroft Park Flood Mit S106,LY153,Contract Payments,0020,"Armscroft Park, Pedestrian areas",27/10/2014,387946,642,CAP,Greenfields Garden Services Ltd,48130G
Gloucester City Council,23UE,Aspire Admin Charges,LC105,Other Minor Income,9900,BAILIFF PAYMENTS 10/10/14,27/10/2014,392794,14.6,NET,Aspire Sports & Cultural Trust,08135V
Gloucester City Council,23UE,Aspire Admin Charges,LC105,Security Services Fees,5351,Contract Services November 2014,27/10/2014,392627,176.34,NET,G4s Cash Solutions (Uk) Ltd,04290V
Gloucester City Council,23UE,Blackfriars,LA609,Maintenance Of Equipment,5030,Speaker Stand,27/10/2014,392468,79.5,NET,Cpc,52980M
Gloucester City Council,23UE,Building Control,PT400,Subcontractors Fees,5357,Knights Guide to Building Control,27/10/2014,391457,319,NET,Lexis Nexis Ltd,01712U
Gloucester City Council,23UE,Cemeteries,HC300,Basic Pay - Temporary Staff,2751,Temp Cover September 2014,27/10/2014,391433,3019.9,NET,Anderson Recruitment Ltd,14646H
Gloucester City Council,23UE,Cems/Crems Admin,HC100,Security Services Fees,5351,Cash Processed April 2014,27/10/2014,391442,13.73,NET,G4s Cash Solutions (Uk) Ltd,04290V
Gloucester City Council,23UE,Cems/Crems Admin,HC100,Security Services Fees,5351,Contract Services November 2014,27/10/2014,392627,100.51,NET,G4s Cash Solutions (Uk) Ltd,04290V
Gloucester City Council,23UE,City Museum And Art Gallery,LM200,Security Services Fees,5351,Contract Services November 2014,27/10/2014,392627,88.17,NET,G4s Cash Solutions (Uk) Ltd,04290V
Gloucester City Council,23UE,Civil Parking Enforcement,PT741,Computer Software Maintenance,5427,MiPermit cashless parking fees july 2014,27/10/2014,389391,543.93,NET,Chipside Ltd,06535T
Gloucester City Council,23UE,Client Revs & Bens Contract,RT240,Bailiffs Fees,5368,VAT due on statutory fees,27/10/2014,392471,0,NET,Bristow & Sutor,05450M
Gloucester City Council,23UE,Client Revs & Bens Contract,RT240,Bailiffs Fees,5368,VAT Due on Statutory Fees,27/10/2014,392470,437.73,NET,Bristow & Sutor,05450M
Gloucester City Council,23UE,Client Revs & Bens Contract,RT240,Security Services Fees,5351,Cash Processed April 2014,27/10/2014,391442,3.43,NET,G4s Cash Solutions (Uk) Ltd,04290V
Gloucester City Council,23UE,Client Revs & Bens Contract,RT240,Security Services Fees,5351,Contract Services November 2014,27/10/2014,392627,263.38,NET,G4s Cash Solutions (Uk) Ltd,04290V
Gloucester City Council,23UE,Contact Centre,RB300,Basic Pay -Admin /Prof Staff,2601,TEMPORARY STAFF,27/10/2014,392466,814,NET,Cps Anystaff Recruitment Ltd,13945D
Gloucester City Council,23UE,Director Serv & Neighbourhoods,ME104,Vocational Training,2970,"Training, 20/01/2015",27/10/2014,391419,373.5,NET,Association Of Electoral Administrators,03013K
Gloucester City Council,23UE,Docks Complex - Catering Servs,RB110,Catering Provisions -Food,5110,Food w/e 12/10/2014,27/10/2014,392578,62.47,NET,Janes Pantry,24500W
Gloucester City Council,23UE,Dwelling Improvements,BY008,Contract Payments,0020,September 14 Capital Fee,27/10/2014,392505,961937.25,CAP,Gloucester City Homes,05244T
Gloucester City Council,23UE,Financial Services,RT200,Computer Software Maintenance,5427,Expenses Recharges 02/09/14,27/10/2014,392540,150.28,NET,Advanced Business Solutions,06072N
Gloucester City Council,23UE,Folk Museum,LM210,Security Services Fees,5351,Contract Services November 2014,27/10/2014,392627,88.17,NET,G4s Cash Solutions (Uk) Ltd,04290V
Gloucester City Council,23UE,Gloucester Guildhall,LA100,Cleaning Materials,3600,sanitary waste units,27/10/2014,391709,147.64,NET,Ocs Group Uk Limited T/A Cannon,06506A
Gloucester City Council,23UE,Gloucester Guildhall,LA100,Security Services Fees,5351,Contract Services November 2014,27/10/2014,392627,88.17,NET,G4s Cash Solutions (Uk) Ltd,04290V
Gloucester City Council,23UE,Guildhall Bar And Caf�,LA210,Catering Provisions -Liquor,5111,Liquor,27/10/2014,391669,270.94,NET,Cellar Supplies Cheltenham Ltd,01563L
Gloucester City Council,23UE,Guildhall Cinema,LA202,Fees For Services Received,5350,"Monthly Film Charge, October 2014",27/10/2014,392112,214.24,NET,Nft Logistics Ltd,13505N
Gloucester City Council,23UE,Homelessness,CH120,Basic Pay - Temporary Staff,2751,TEMPORARY STAFF,27/10/2014,392109,349.21,NET,James Andrews Recruitment Solutions,13636W
Gloucester City Council,23UE,Homelessness,CH120,Basic Pay - Temporary Staff,2751,TEMPORARY STAFF,27/10/2014,391429,537.25,NET,James Andrews Recruitment Solutions,13636W
Gloucester City Council,23UE,Investment Property,RB500,Fire Alarm Maintenance,3053,Work on fire system 07/08/2014,27/10/2014,389272,224,NET,Adt Fire & Security Plc,54086D
Gloucester City Council,23UE,Investment Property,RB500,General Repair/Maint Buildings,3000,92-96 Westgate Street,27/10/2014,391452,318,NET,Three Counties Drain Service,44033V
Gloucester City Council,23UE,Investment Property,RB500,Security Equipment Serv/Repair,3038,"Site Attendance to alarm system, 20/5/14",27/10/2014,386827,92.13,NET,A & E Fire Equipment Limited,54289L
Gloucester City Council,23UE,Legal Services,RS200,Basic Pay - Temporary Staff,2751,TEMPORARY STAFF,27/10/2014,392164,623.85,NET,Sellick Partnership Group Ltd,11057C
Gloucester City Council,23UE,Legal Services,RS200,Basic Pay - Temporary Staff,2751,TEMPORARY STAFF,27/10/2014,391427,645.25,NET,Sellick Partnership Group Ltd,11057C
Gloucester City Council,23UE,Legal Services,RS200,Basic Pay - Temporary Staff,2751,TEMPORARY STAFF,27/10/2014,392076,1253.69,NET,Venn Group Ltd,04339P
Gloucester City Council,23UE,Legal Services,RS200,Basic Pay - Temporary Staff,2751,TEMPORARY STAFF,27/10/2014,391712,1226.29,NET,Venn Group Ltd,04339P
Gloucester City Council,23UE,Legal Services,RS200,Basic Pay - Temporary Staff,2751,TEMPORARY STAFF,27/10/2014,391711,1274.54,NET,Venn Group Ltd,04339P
Gloucester City Council,23UE,Off Street Car Parks,PP110,Fees For Services Received,5350,Archipel Transactions July 2014,27/10/2014,390137,153.72,NET,Parkeon Ltd,03238G
Gloucester City Council,23UE,Off Street Car Parks,PP110,Fees For Services Received,5350,"August 2014, Archipel Transactions",27/10/2014,391524,173.04,NET,Parkeon Ltd,03238G
Gloucester City Council,23UE,Off Street Car Parks,PP110,Fees For Services Received,5350,"October 2014, Airtime",27/10/2014,391525,370,NET,Parkeon Ltd,03238G
Gloucester City Council,23UE,Off Street Car Parks,PP110,Fees For Services Received,5350,September 2014,27/10/2014,390136,370,NET,Parkeon Ltd,03238G
Gloucester City Council,23UE,The Arbor,HC501,Catering Provisions -Food,5110,Food w/e 17/08/2014,27/10/2014,389357,181,NET,Janes Pantry,24500W
Gloucester City Council,23UE,The Arbor,HC501,Catering Provisions -Food,5110,Food w/e 28/09/2014,27/10/2014,391715,196.42,NET,Janes Pantry,24500W
Gloucester City Council,23UE,Tourism Marketing,LT100,Security Services Fees,5351,Contract Services November 2014,27/10/2014,392627,88.17,NET,G4s Cash Solutions (Uk) Ltd,04290V
Gloucester City Council,23UE,Cctv Revenue Budget,FP501,Security Equipment Serv/Repair,3038,Sept- Dec 2014,28/10/2014,392816,11748.44,NET,Bt Redcare,04692U
Gloucester City Council,23UE,Civica It Contract,RT270,Contracted Services,6970,MEA LICENCE,28/10/2014,390457,112197.5,NET,Civica Uk Ltd,10841X
Gloucester City Council,23UE,Civil Parking Enforcement,PT741,Computer Software Maintenance,5427,DVLA Enquiry Service August 2014,28/10/2014,391030,55.6,NET,Chipside Ltd,06535T
Gloucester City Council,23UE,Docks Complex - Catering Servs,RB110,Catering Provisions -Food,5110,Food,28/10/2014,392947,257.01,NET,3663,55585U
Gloucester City Council,23UE,Docks Complex - Catering Servs,RB110,Catering Provisions -Food,5110,Food,28/10/2014,392948,368.51,NET,3663,55585U
Gloucester City Council,23UE,Docks Complex - Catering Servs,RB110,Catering Provisions -Food,5110,Food,28/10/2014,392957,329.34,NET,3663,55585U
Gloucester City Council,23UE,Electrical Investigatory Works,RY142,Contract Payments,0020,Fire Extinguisher Inspection,28/10/2014,386164,15,CAP,A & E Fire Equipment Limited,54289L
Gloucester City Council,23UE,Hempsted Market/Car Boot,HM234,Security Services Fees,5351,Security Staff September 2014,28/10/2014,392939,1695.4,NET,Nsgl Ltd,12539E
Gloucester City Council,23UE,Hmo Licences,HE520,Operational Equipment <5000,5012,Replacement of battery & screen,28/10/2014,388318,96,NET,Gordon Morris Ltd,59508Z
Gloucester City Council,23UE,Investment Property,RB500,Lift Maintenance,3051,Eastgate Market Lifts,28/10/2014,391021,284.26,NET,Pickerings Europe Ltd*,58816U
Gloucester City Council,23UE,Investment Property,RB500,Lift Maintenance,3051,GL1 Lifts,28/10/2014,391024,281.22,NET,Pickerings Europe Ltd*,58816U
Gloucester City Council,23UE,Pollution Control,HE300,Fees For Services Received,5350,Warrant,28/10/2014,385388,50,NET,Severnside Security Ltd,14661M
Gloucester City Council,23UE,The Arbor,HC501,Catering Provisions -Food,5110,Food w/e 21/09/2014,28/10/2014,391212,216.86,NET,Janes Pantry,24500W
Gloucester City Council,23UE,Utilities,PT502,Electricity Supply,3110,23-25 COMMERCIAL RD,28/10/2014,386220,24.65,NET,Opus Energy (Corporate),12788B
Gloucester City Council,23UE,Utilities,PT502,Electricity Supply,3110,23-25 COMMERCIAL RD,28/10/2014,386221,1122.1,NET,Opus Energy (Corporate),12788B
Gloucester City Council,23UE,Utilities,PT502,Electricity Supply,3110,NAVIGATION HOUSE,28/10/2014,389771,26.35,NET,Opus Energy (Corporate),12788B
Gloucester City Council,23UE,Utilities,PT502,Electricity Supply,3110,NAVIGATION HOUSE,28/10/2014,391920,25.5,NET,Opus Energy (Corporate),12788B
Gloucester City Council,23UE,Utilities,PT502,Electricity Supply,3110,UTILITIES TO OCT 2014,28/10/2014,392793,6586.99,NET,West Mercia Energy,11669Z
Gloucester City Council,23UE,Utilities,PT502,Gas Supply,3100,UTILITIES TO OCT 2014,28/10/2014,392793,12627,NET,West Mercia Energy,11669Z
Gloucester City Council,23UE,Aspire Admin Charges,LC105,Fees For Services Received,5350,GCC Staff membership SEPT14,29/10/2014,392834,917,NET,Aspire Sports & Cultural Trust,08135V
Gloucester City Council,23UE,Building Control,PT400,Vocational Training,2970,"Training Course, Oct 2014",29/10/2014,392926,795,NET,Fire Protection Association,48047U
Gloucester City Council,23UE,Business Grants,GY007,Contract Payments,0020,Business Grant,29/10/2014,392903,500,CAP,Armed Creative,15017N
Gloucester City Council,23UE,Cemeteries,HC300,Maint Of Grounds - General,3030,Heavy Duty Steel Post Hole Digger,29/10/2014,392839,99,NET,Spaldings,48759Y
Gloucester City Council,23UE,Cemeteries,HC300,Maint Of Grounds - General,3030,Plywood,29/10/2014,392956,599.7,NET,Millington & Ramstedt Ltd,29815S
Gloucester City Council,23UE,Cemeteries,HC300,Maint Of Grounds - General,3030,Mixed Building Sand,29/10/2014,392833,232,NET,Allstone Sand & Gravel Aggregates Ltd,00940M
Gloucester City Council,23UE,Cemeteries,HC300,Major R And M - Vehicles,4010,Battery,29/10/2014,392837,95.9,NET,Garden Machinery Gloucester,55641K
Gloucester City Council,23UE,Cemeteries,HC300,Major R And M - Vehicles,4010,Spark Plug,29/10/2014,392836,214.9,NET,Garden Machinery Gloucester,55641K
Gloucester City Council,23UE,Cemeteries,HC300,Other Minor Supplies Services,5590,Plywood,29/10/2014,392956,15.75,NET,Millington & Ramstedt Ltd,29815S
Gloucester City Council,23UE,Cemeteries,HC300,Routine R And M - Vehicles,4011,Ferris Ride on,29/10/2014,392838,85,NET,Garden Machinery Gloucester,55641K
Gloucester City Council,23UE,Cemeteries,HC300,Trade Refuse Tipping Fees,6297,Weekly Hire of Dumper Sept 2014,29/10/2014,392840,380,NET,Allstone Sand & Gravel Aggregates Ltd,00940M
Gloucester City Council,23UE,Client Revs & Bens Contract,RT240,Bailiffs Fees,5368,VAT on fees collected,29/10/2014,392842,0,NET,Phoenix Commercial Collections Ltd,13435J
Gloucester City Council,23UE,Client Revs & Bens Contract,RT240,Bailiffs Fees,5368,VAT on fees collected,29/10/2014,392843,0,NET,Phoenix Commercial Collections Ltd,13435J
Gloucester City Council,23UE,Client Revs & Bens Contract,RT240,Fees For Services Received,5350,Migrant Access to housing benefit fundin,29/10/2014,392859,4676,NET,Civica Uk Ltd,10841X
Gloucester City Council,23UE,Contact Centre,RB300,Printing,5300,Adverts,29/10/2014,392877,114.74,NET,Bt Directories,10473E
Gloucester City Council,23UE,Countryside Unit,LP201,Oil,4013,Chain Saw,29/10/2014,392949,53,NET,Hobbs Bros Ltd,05942J
Gloucester City Council,23UE,Countryside Unit,LP201,Vocational Training,2970,Chainsaw refresher 05/11 & 06/11 2014,29/10/2014,392856,400,NET,Royal Agricultural University,54398E
Gloucester City Council,23UE,Crematorium,HC200,Memorial Plaques,5053,Bronze Plaque,29/10/2014,392829,54,NET,Arkell & Hurcombe,59812T
Gloucester City Council,23UE,Crematorium,HC200,Memorial Plaques,5053,Bronze Plaques,29/10/2014,392825,150,NET,Arkell & Hurcombe,59812T
Gloucester City Council,23UE,Crematorium,HC200,Memorial Plaques,5053,Bronze Plaques,29/10/2014,392826,156,NET,Arkell & Hurcombe,59812T
Gloucester City Council,23UE,Crematorium,HC200,Memorial Plaques,5053,Bronze Plaques,29/10/2014,392827,54,NET,Arkell & Hurcombe,59812T
Gloucester City Council,23UE,Crematorium,HC200,Memorial Plaques,5053,Bronze Plaques,29/10/2014,392828,144,NET,Arkell & Hurcombe,59812T
Gloucester City Council,23UE,Crematorium,HC200,Memorial Plaques,5053,Plaques,29/10/2014,392830,174,NET,Steel & Stone (York),57204U
Gloucester City Council,23UE,Crematorium,HC200,Memorial Plaques,5053,Plaques,29/10/2014,392831,173,NET,Steel & Stone (York),57204U
Gloucester City Council,23UE,Crematorium,HC200,Memorial Plaques,5053,Plaques,29/10/2014,392832,63.6,NET,Arkell & Hurcombe,59812T
Gloucester City Council,23UE,Crematorium,HC200,National Assist Act Burial Exp,5593,Contract Charges,29/10/2014,392835,623,NET,Selim Smith & Co Funeral Directors,15156X
Gloucester City Council,23UE,Crematorium,HC200,Printing,5300,Order to prepare grave,29/10/2014,392841,310,NET,In2print Ltd,55471L
Gloucester City Council,23UE,Crematorium,HC200,Repair/Maint Of Monuments,3004,Sanctum 2000 Tablet,29/10/2014,392928,174.5,NET,The Columbaria Company,55078T
Gloucester City Council,23UE,Daniels Brook S106,LY120,Contract Payments,0020,"Daniels Brook, gravel path works",29/10/2014,392907,2902.01,CAP,Greenfields Garden Services Ltd,48130G
Gloucester City Council,23UE,Development Management,PT200,Advertising And Publicity,5702,Advertisement 16/10/2014,29/10/2014,392915,233.73,NET,Local World Ltd,08556P
Gloucester City Council,23UE,Docks Complex - Catering Servs,RB110,Catering Provisions -Food,5110,Food,29/10/2014,392861,25.56,NET,Taynton Farm Foods,09653F
Gloucester City Council,23UE,Docks Complex - Telephones,RB120,Lease Lines,5411,AUG 2014,29/10/2014,390414,3948.11,NET,Gamma Business Communications,10260A
Gloucester City Council,23UE,REDACTED,REDACTED,REDACTED,REDACTED,REDACTED,29/10/2014,REDACTED,76,NET,REDACTED,REDACTED
Gloucester City Council,23UE,REDACTED,REDACTED,REDACTED,REDACTED,REDACTED,29/10/2014,REDACTED,500,NET,REDACTED,REDACTED
Gloucester City Council,23UE,Environmental Planning,LM340,Exhibits And Collections,5038,Writing of report for geophysical survey,29/10/2014,392525,220,NET,A J Roberts T/A Archeoscan,14562R
Gloucester City Council,23UE,REDACTED,REDACTED,REDACTED,REDACTED,REDACTED,29/10/2014,REDACTED,370,NET,REDACTED,REDACTED
Gloucester City Council,23UE,Environmental Planning,LM340,Vocational Training,2970,Chainsaw refresher 05/11 & 06/11 2014,29/10/2014,392856,200,NET,Royal Agricultural University,54398E
Gloucester City Council,23UE,Gloucester Guildhall,LA100,Cleaning Materials,3600,Nviroclean,29/10/2014,392909,98,NET,Gentworks Ltd,10388W
Gloucester City Council,23UE,REDACTED,REDACTED,REDACTED,REDACTED,REDACTED,29/10/2014,REDACTED,21076.75,NET,REDACTED,REDACTED
Gloucester City Council,23UE,Grants To Voluntary Sector,FG100,Sla'S,7100B,Advice Centres Payment 2,29/10/2014,392966,508.75,NET,Garas,57701Y
Gloucester City Council,23UE,Grants To Voluntary Sector,FG100,Sla'S,7100B,Advice Centres Payment 2,29/10/2014,392968,25755,NET,Gloucester Law Centre,18157R
Gloucester City Council,23UE,Group Mgr Planning & Economy,GR101,Basic Pay - Temporary Staff,2751,TEMPORARY STAFF,29/10/2014,392564,2475,NET,Randstad Cpe Ltd,13987L
Gloucester City Council,23UE,Guildhall Bar And Caf�,LA210,Hire Of Equipment,5020,Refrigerator,29/10/2014,392905,449.99,NET,Nisbets,55372P
Gloucester City Council,23UE,REDACTED,REDACTED,REDACTED,REDACTED,REDACTED,29/10/2014,REDACTED,100,NET,REDACTED,REDACTED
Gloucester City Council,23UE,REDACTED,REDACTED,REDACTED,REDACTED,REDACTED,29/10/2014,REDACTED,72,NET,REDACTED,REDACTED
Gloucester City Council,23UE,REDACTED,REDACTED,REDACTED,REDACTED,REDACTED,29/10/2014,REDACTED,50,NET,REDACTED,REDACTED
Gloucester City Council,23UE,Hackney Carriages,HL100,Vocational Training,2970,Vehicle Inspection,29/10/2014,392850,250,NET,South Gloucestershire Council,83349RV
Gloucester City Council,23UE,Homelessness,CH120,Fees For Services Received,5350,TEMPORARY STORAGE,29/10/2014,392873,78.21,NET,Advanced Removals & Storage Ltd,57142R
Gloucester City Council,23UE,Homelessness,CH120,Removal And Storage Fees,5513,TEMPORARY STORAGE,29/10/2014,392875,273.75,NET,Advanced Removals & Storage Ltd,57142R
Gloucester City Council,23UE,Homelessness,CH120,Removal And Storage Fees,5513,TEMPORARY STORAGE,29/10/2014,392874,39.11,NET,Advanced Removals & Storage Ltd,57142R
Gloucester City Council,23UE,Homelessness,CH120,Removal And Storage Fees,5513,TEMPORARY STORAGE,29/10/2014,392845,161.14,NET,Advanced Removals & Storage Ltd,57142R
Gloucester City Council,23UE,Homelessness,CH120,Removal And Storage Fees,5513,TEMPORARY STORAGE,29/10/2014,392844,490.29,NET,Advanced Removals & Storage Ltd,57142R
Gloucester City Council,23UE,Homelessness,CH120,Rent In Advance,5516,court costs,29/10/2014,392983,280,NET,Naylor Powell,50755S
Gloucester City Council,23UE,Homelessness Prevention,CH122,Basic Pay - Temporary Staff,2751,Medical Report,29/10/2014,392876,20.5,NET,Quedgeley Medical Centre,04984B
Gloucester City Council,23UE,Human Resources,EH100,Fees For Services Received,5350,professional fees,29/10/2014,392818,291.67,NET,Twomilow Solicitors & Advocates,15033R
Gloucester City Council,23UE,Improvement Grants,CI110,Printing,5300,Reimbursement,29/10/2014,392817,71,NET,Stroud District Council,42500D
Gloucester City Council,23UE,Internal Health & Safety,EH110,Other Minor Supplies Services,5590,Servicare Renewal,29/10/2014,392857,90,NET,Evac+Chair International Ltd,10907S
Gloucester City Council,23UE,Investment Property,RB500,Consultants Fees,5349,"Letting of land, St Oswalds Park",29/10/2014,392933,1500,NET,Alder King*,02367D
Gloucester City Council,23UE,King George V Pavilion,LY116,Contract Payments,0020,"King George V Playing Field, road repair",29/10/2014,392908,984,CAP,Greenfields Garden Services Ltd,48130G
Gloucester City Council,23UE,Land Searches,RO300,Fees For Services Received,5350,"Land Charges 1st Quarter, 14/15",29/10/2014,392919,2060,NET,Gloucestershire County Council,18650D
Gloucester City Council,23UE,Legal Services,RS200,Basic Pay - Temporary Staff,2751,TEMPORARY STAFF,29/10/2014,392913,708.75,NET,Michael Page International Recruitment Ltd,06601P
Gloucester City Council,23UE,Matson & Robinswood Play S106,LY151,Contract Payments,0020,Install Sundeck bounce,29/10/2014,392954,4976,CAP,Sunshine Playgrounds Ltd,14958J
Gloucester City Council,23UE,Matson & Robinswood Play S106,LY151,Contract Payments,0020,Installation of embankment slide,29/10/2014,392864,4890,CAP,Landscape To Play Ltd,09116P
Gloucester City Council,23UE,Members Support,RC300,Advertising And Publicity,5702,Advertisement 18/10/2014,29/10/2014,392914,1460.8,NET,Local World Ltd,08556P
Gloucester City Council,23UE,Pollution Control,HE300,Fees For Services Received,5350,DIF100-20WA,29/10/2014,392911,111.15,NET,Gradko International Ltd,11063B
Gloucester City Council,23UE,Procurement Management,RP100,Vocational Training,2970,NVQ 6 extension,29/10/2014,392920,500,NET,Commercial Skills,11922L
Gloucester City Council,23UE,Railway Triangle Art S106,LY076,Contract Payments,0020,"Design Fee, Railway Triangle art project",29/10/2014,392960,750,CAP,Artnucleus Ltd,15421B
Gloucester City Council,23UE,REDACTED,REDACTED,REDACTED,REDACTED,REDACTED,29/10/2014,REDACTED,750,CAP,REDACTED,REDACTED
Gloucester City Council,23UE,Robinswoodhill Trading Account,LP203,Vocational Training,2970,Chainsaw refresher 05/11 & 06/11 2014,29/10/2014,392856,200,NET,Royal Agricultural University,54398E
Gloucester City Council,23UE,Sponsorship,HI600,Fees For Services Received,5350,Signs,29/10/2014,392918,4680,NET,Five Valley Signs & Labels Limited,09642L
Gloucester City Council,23UE,Swrda Asset Transfer,RY184,Capital General Repairs & Main,0013,"Barbican Car Park, pay & Display machine",29/10/2014,392858,890,CAP,Mpl Wrought Iron Llp,03907P
Gloucester City Council,23UE,The Arbor,HC501,Operational Equipment <5000,5012,"Call out to Oven, 05/09/2014",29/10/2014,392910,130,NET,Space Catering Equipment Ltd,42828RV
Gloucester City Council,23UE,Tic Trading,LT110,Materials For Sale,5080,Polo Shirts,29/10/2014,392819,670,NET,Sportfolio Europe Lp,14456R
Gloucester City Council,23UE,Tree Planting Grant Funded,LY150,Contract Payments,0020,"Westgate Library Trees, Watering",29/10/2014,387947,45,CAP,Greenfields Garden Services Ltd,48130G
Gloucester City Council,23UE,Vehicles,RS140,Routine R And M - Vehicles,4011,Fleetwide 4,29/10/2014,392865,342.16,NET,Automobile Association,58743W
Gloucester City Council,23UE,16 Commercial Road,RB539,Electricity Supply,3110,16 COMMERCIAL RD,30/10/2014,393135,11.83,NET,Sse,58445H
Gloucester City Council,23UE,Aspire Admin Charges,LC105,Other Minor Income,9900,BAILIFF PAYMENTS 17/10/14,30/10/2014,393134,4.4,NET,Aspire Sports & Cultural Trust,08135V
Gloucester City Council,23UE,Business Transformation & Tech,RT700,Computer Software Maintenance,5427,Focus System,30/10/2014,392853,2464,NET,Ash Information Systems Ltd,54890V
Gloucester City Council,23UE,Cemeteries,HC300,Trade Refuse Tipping Fees,6297,Inert Waste,30/10/2014,393142,1080,NET,Allstone Sand & Gravel Aggregates Ltd,00940M
Gloucester City Council,23UE,Cemeteries,HC300,Tyres,4014,Environmental Disp,30/10/2014,393093,94.33,NET,A T S Euromaster Ltd,01860B
Gloucester City Council,23UE,City Museum Catering,LM202,Catering Provisions -Food,5110,Food,30/10/2014,393117,7.6,NET,Woody'S Fruit & Veg,11798L
Gloucester City Council,23UE,Civil Parking Enforcement,PT741,Basic Pay - Temporary Staff,2751,temporary staff,30/10/2014,391785,2400,NET,Unity Recruitment,14857S
Gloucester City Council,23UE,Client Revs & Bens Contract,RT240,Subscriptions,5600,Annual Subscription 2014,30/10/2014,393064,695,NET,Rating Publishers Ltd,49604W
Gloucester City Council,23UE,Council Streetcare Team,HI101,Maint Of Paths/Hardstandings,3056,"Napier Street, Play area",30/10/2014,393103,478,NET,Greenfields Garden Services Ltd,48130G
Gloucester City Council,23UE,Countryside Unit,LP201,Contract Cleaning,3620,Cleaning Rangers Office,30/10/2014,393114,130,NET,Cv Fisher Cleaning Services,14907C
Gloucester City Council,23UE,Countryside Unit,LP201,Maint Of Grounds - General,3030,Round ptd Green,30/10/2014,393115,231.5,NET,Forest Products Ltd,08155N
Gloucester City Council,23UE,Disabled Facilities Grants,CY013,Disabled Facility Grants,0074,REDACTED,30/10/2014,393106,13617.94,CAP,T & P Franklin & Sons Ltd,16150A
Gloucester City Council,23UE,Electrical Investigatory Works,RY142,Contract Payments,0020,Technical Services,30/10/2014,393113,240,CAP,Mss Group,14469F
Gloucester City Council,23UE,Flooding And Drainage,HE306,Maint Of Grounds - General,3030,"Merlin Drive, Bybrook Road",30/10/2014,392820,315,NET,Rdb Safety Boat Ltd,13507J
Gloucester City Council,23UE,Guildhall Bar And Caf�,LA210,Catering Provisions -Food,5110,Food,30/10/2014,393079,30,NET,Taynton Farm Foods,09653F
Gloucester City Council,23UE,Guildhall Bar And Caf�,LA210,Catering Provisions -Food,5110,Food,30/10/2014,393116,135.92,NET,Woody's Fruit & Veg,11798L
Gloucester City Council,23UE,Guildhall Bar And Caf�,LA210,Catering Provisions -Food,5110,Food,30/10/2014,393118,105.79,NET,Woodward Foodservice,10714F
Gloucester City Council,23UE,Guildhall Bar And Caf�,LA210,Catering Provisions -Food,5110,Food,30/10/2014,393119,180.53,NET,Woodward Foodservice,10714F
Gloucester City Council,23UE,Guildhall Bar And Caf�,LA210,Catering Provisions -Food,5110,Milk,30/10/2014,393120,4.96,NET,Total Produce Gloucester,12645E
Gloucester City Council,23UE,Guildhall Bar And Caf�,LA210,Catering Provisions -Food,5110,Milk,30/10/2014,393121,4.96,NET,Total Produce Gloucester,12645E
Gloucester City Council,23UE,Guildhall Bar And Caf�,LA210,Catering Provisions -Food,5110,Milk,30/10/2014,393122,4.96,NET,Total Produce Gloucester,12645E
Gloucester City Council,23UE,Guildhall Bar And Caf�,LA210,Catering Provisions -Food,5110,Milk,30/10/2014,393123,4.96,NET,Total Produce Gloucester,12645E
Gloucester City Council,23UE,Guildhall Bar And Caf�,LA210,Catering Provisions -Food,5110,Milk,30/10/2014,393124,4.96,NET,Total Produce Gloucester,12645E
Gloucester City Council,23UE,Guildhall Bar And Caf�,LA210,Catering Provisions -Food,5110,Milk,30/10/2014,393125,4.96,NET,Total Produce Gloucester,12645E
Gloucester City Council,23UE,Guildhall Bar And Caf�,LA210,Catering Provisions -Food,5110,Milk,30/10/2014,393126,4.96,NET,Total Produce Gloucester,12645E
Gloucester City Council,23UE,Guildhall Bar And Caf�,LA210,Catering Provisions -Food,5110,Milk,30/10/2014,393127,4.96,NET,Total Produce Gloucester,12645E
Gloucester City Council,23UE,Guildhall Bar And Caf�,LA210,Catering Provisions -Food,5110,Milk,30/10/2014,393128,4.96,NET,Total Produce Gloucester,12645E
Gloucester City Council,23UE,Guildhall Bar And Caf�,LA210,Catering Provisions -Liquor,5111,Gloucester Gold,30/10/2014,393094,114,NET,Gloucester Brewery,13373F
Gloucester City Council,23UE,Guildhall Bar And Caf�,LA210,Catering Provisions -Liquor,5111,Liquor,30/10/2014,393077,968.09,NET,Cellar Supplies Cheltenham Ltd,01563L
Gloucester City Council,23UE,Guildhall Bar And Caf�,LA210,Catering Provisions -Liquor,5111,Liquor,30/10/2014,393078,1071.29,NET,Cellar Supplies Cheltenham Ltd,01563L
Gloucester City Council,23UE,Guildhall Bar And Caf�,LA210,Catering Provisions -Liquor,5111,Messer CO2- 14lb Gas,30/10/2014,393095,15.88,NET,Cellar Supplies Cheltenham Ltd,01563L
Gloucester City Council,23UE,Hempsted Market/Car Boot,HM234,Maint Of Grounds - General,3030,Various Padlocks,30/10/2014,393081,206.75,NET,Severnside Security Ltd,14661M
Gloucester City Council,23UE,REDACTED,REDACTED,REDACTED,REDACTED,REDACTED,30/10/2014,REDACTED,364.6,NET,REDACTED,REDACTED
Gloucester City Council,23UE,REDACTED,REDACTED,REDACTED,REDACTED,REDACTED,30/10/2014,REDACTED,484.6,NET,REDACTED,REDACTED
Gloucester City Council,23UE,REDACTED,REDACTED,REDACTED,REDACTED,REDACTED,30/10/2014,REDACTED,270,NET,REDACTED,REDACTED
Gloucester City Council,23UE,REDACTED,REDACTED,REDACTED,REDACTED,REDACTED,30/10/2014,REDACTED,501.56,NET,REDACTED,REDACTED
Gloucester City Council,23UE,REDACTED,REDACTED,REDACTED,REDACTED,REDACTED,30/10/2014,REDACTED,395,NET,REDACTED,REDACTED
Gloucester City Council,23UE,REDACTED,REDACTED,REDACTED,REDACTED,REDACTED,30/10/2014,REDACTED,525,NET,REDACTED,REDACTED
Gloucester City Council,23UE,Homelessness Prevention,CH122,Fees For Services Received,5350,REDACTED,30/10/2014,393136,525,NET,Belvoir Lettings,04578T
Gloucester City Council,23UE,REDACTED,REDACTED,REDACTED,REDACTED,REDACTED,30/10/2014,REDACTED,650,NET,REDACTED,REDACTED
Gloucester City Council,23UE,Internal Health & Safety,EH110,Ni - Technical Staff,1559,Medical Supplies,30/10/2014,393099,107.85,NET,Selles Medical Ltd,50592W
Gloucester City Council,23UE,Interpretation & Signage,GY012,Contract Payments,0020,Research & Design,30/10/2014,393069,1636,CAP,Catch Design Management,15041S
Gloucester City Council,23UE,Investment Property,RB500,Door Entry Systems Maint,3064,Service to doors,30/10/2014,393085,115,NET,Pro Door Ltd,04760C
Gloucester City Council,23UE,Investment Property,RB500,Lift Maintenance,3051,Engineer 18/09/2014,30/10/2014,393110,114.87,NET,Pickerings Europe Ltd*,58816U
Gloucester City Council,23UE,Matson & Robinswood Play S106,LY151,Contract Payments,0020,Install SunDeck Bounce,30/10/2014,393070,2980,CAP,Sunshine Playgrounds Ltd,14958J
Gloucester City Council,23UE,Off Street Car Parks,PP110,Advertising And Publicity,5702,Advertisement 16/10/2014,30/10/2014,392916,584.32,NET,Local World Ltd,08556P
Gloucester City Council,23UE,Parks Contract Management,LP100,Maint Of Grounds - General,3030,Correx Signs,30/10/2014,393059,239.4,NET,Severn Signs Ltd,49841D
Gloucester City Council,23UE,Parks Contract Management,LP100,Maint Of Grounds - General,3030,"Fence, Gate Mounted",30/10/2014,393076,74.7,NET,Severn Signs Ltd,49841D
Gloucester City Council,23UE,Postal Services,RS120,Postages,5400,2nd Class non widow envelopes,30/10/2014,393063,157.12,NET,Encore Envelopes Ltd,13782H
Gloucester City Council,23UE,Postal Services,RS120,Postages,5400,2nd Class non window envelopes,30/10/2014,393062,118.68,NET,Encore Envelopes Ltd,13782H
Gloucester City Council,23UE,Postal Services,RS120,Postages,5400,2nd Class window envelopes,30/10/2014,393061,301.5,NET,Encore Envelopes Ltd,13782H
Gloucester City Council,23UE,Postal Services,RS120,Postages,5400,Post 03/10 - 16/10 2014,30/10/2014,392943,2167.72,NET,Royal Mail S.Wales & South West,35830S
Gloucester City Council,23UE,Railway Triangle Art S106,LY076,Contract Payments,0020,Railway Triangle Sculpture Proposal,30/10/2014,393097,750,CAP,REDACTED,REDACTED
Gloucester City Council,23UE,Retail Market - Landlord,HM300,Window Cleaning,3610,Monthly Window Clean October 2014,30/10/2014,393080,140,NET,Cornwall Cleaning Services,14050A
Gloucester City Council,23UE,Stationery Services,RS150,Stationery,5302,Stationary,30/10/2014,393089,5,NET,Lyreco Uk Ltd,11746G
Gloucester City Council,23UE,Stationery Services,RS150,Stationery,5302,Stationary,30/10/2014,393090,11.57,NET,Lyreco Uk Ltd,11746G
Gloucester City Council,23UE,Superbreak,LT104,Materials For Sale,5080,Comfort Hotel Heathrow,30/10/2014,393071,39,NET,Superbreak Mini Holidays,00712D
Gloucester City Council,23UE,Superbreak,LT104,Sale Of Goods And Services,9230,Comfort Hotel Heathrow,30/10/2014,393071,-3.25,NET,Superbreak Mini Holidays,00712D
Gloucester City Council,23UE,Swrda Asset Transfer,RY184,Legal/Survey Fees -Land,0002,"Proffessional Charges, Lease agreement",30/10/2014,393074,915,CAP,Harrison Clark Rickerbys Solicitors,11064C
Gloucester City Council,23UE,Tree Planting Grant Funded,LY150,Contract Payments,0020,Fence/Wall Mounted,30/10/2014,393100,25,CAP,Severn Signs Ltd,49841D
Gloucester City Council,23UE,Vehicles,RS140,Fuel,4012,Fuel,30/10/2014,392944,165.64,NET,Allstar Business Solutions Ltd (Arval),06594A
Gloucester City Council,23UE,Civica Contract Revs & Bens,RT250,Contracted Services,6970,Pension Excess claim August 2014,31/10/2014,392984,11835.92,NET,Civica Uk Ltd,10841X
Gloucester City Council,23UE,Civica Contract Revs & Bens,RT250,Contracted Services,6970,Pension excess claim July 2014,31/10/2014,393058,12296.41,NET,Civica Uk Ltd,10841X
Gloucester City Council,23UE,Civil Parking Enforcement,PT741,Computer Software Maintenance,5427,DVLA Enquiry Service,31/10/2014,389535,60.2,NET,Chipside Ltd,06535T
Gloucester City Council,23UE,Civil Parking Enforcement,PT741,Computer Software Maintenance,5427,Merchant ID Bank Charges June 14,31/10/2014,389536,1261.41,NET,Chipside Ltd,06535T
Gloucester City Council,23UE,Client Revs & Bens Contract,RT240,Bailiffs Fees,5368,VAT on statutory fees,31/10/2014,393082,1400.38,NET,Bristow & Sutor,05450M
Gloucester City Council,23UE,Client Revs & Bens Contract,RT240,Bailiffs Fees,5368,VAT on statutory fees,31/10/2014,393083,0,NET,Bristow & Sutor,05450M
Gloucester City Council,23UE,Client Revs & Bens Contract,RT240,Bailiffs Fees,5368,VAT on statutory fees,31/10/2014,393084,178.66,NET,Bristow & Sutor,05450M
Gloucester City Council,23UE,Community Safety Projects,FP500,Basic Pay - Temporary Staff,2751,TEMPORARY STAFF,31/10/2014,392940,318.72,NET,Travail Employment Ltd,49371W
Gloucester City Council,23UE,Community Safety Projects,FP500,Basic Pay - Temporary Staff,2751,TEMPORARY STAFF,31/10/2014,393108,416.1,NET,Travail Employment Ltd,49371W
Gloucester City Council,23UE,Docks Complex - Services,RB100,Cleaning Materials,3600,Cleaning Materials,31/10/2014,393073,91.48,NET,Core Hygiene Ltd,03885P
Gloucester City Council,23UE,General Drainage Works,PY241,Contract Payments,0020,Meadow Mixture,31/10/2014,392870,108,CAP,Emorsgate Seeds,51628R
Gloucester City Council,23UE,REDACTED,REDACTED,REDACTED,REDACTED,REDACTED,31/10/2014,REDACTED,50,NET,REDACTED,REDACTED
Gloucester City Council,23UE,Hempsted Market/Car Boot,HM234,Hire Of Equipment,5020,Portable Office,31/10/2014,392123,254.19,NET,Portable Offices (Hire ) Ltd*,06286R
Gloucester City Council,23UE,Investment Property,RB500,General Repair/Maint Buildings,3000,Site Attendance 13/10/2014,31/10/2014,392854,180.95,NET,A & E Fire Equipment Limited,54289L
Gloucester City Council,23UE,Retail Market - Landlord,HM300,Operational Equipment <5000,5012,compactor rental,31/10/2014,391640,280.56,NET,System Rental Uk Ltd,03239E
Gloucester City Council,23UE,Retail Market - Landlord,HM300,Trade Refuse Collection,3630,Wase Collections,31/10/2014,392523,120,NET,B & S Pointon Ltd,06253G
Gloucester City Council,23UE,The Arbor,HC501,Cleaning Materials,3600,Arbor sanitary units,31/10/2014,391964,33.56,NET,Minster Cleaning Services,02158R
Gloucester City Council,23UE,The Arbor,HC501,Cleaning Materials,3600,Monthly Service,31/10/2014,389050,33.56,NET,Minster Cleaning Services,02158R
Gloucester City Council,23UE,The Arbor,HC501,Cleaning Materials,3600,SANITARY UNITS,31/10/2014,390489,33.56,NET,Minster Cleaning Services,02158R
Gloucester City Council,23UE,The Arbor,HC501,Maint Agreements - Buildings,3010,MONTHLY HIRE,31/10/2014,389907,61.58,NET,Caffeica Ltd,11923J
Gloucester City Council,23UE,The Arbor,HC501,Maint Agreements - Buildings,3010,Monthly machine Warranty,31/10/2014,388376,61.58,NET,Caffeica Ltd,11923J
Gloucester City Council,23UE,Ugly Structures,GY010,Contract Payments,0020,"St Michaels Tower, Stone conservation",31/10/2014,392990,19124.21,CAP,Carrek Limited,14860D
Gloucester City Council,23UE,Countryside Unit,LP201,General Repair/Maint Buildings,3000,Disposable Gloves,03/11/2014,392917,14.99,NET,Greenham Trading Ltd,19305R
Gloucester City Council,23UE,Countryside Unit,LP201,General Repair/Maint Buildings,3000,Disposable Gloves,03/11/2014,392935,11.99,NET,Greenham Trading Ltd,19305R
Gloucester City Council,23UE,Countryside Unit,LP201,General Repair/Maint Buildings,3000,Hand Cleanser,03/11/2014,392934,12.98,NET,Greenham Trading Ltd,19305R
Gloucester City Council,23UE,Docks Complex - Catering Servs,RB110,Catering Provisions -Food,5110,Food w/e 19/10/2014,03/11/2014,392923,97.66,NET,Janes Pantry,24500W
Gloucester City Council,23UE,Docks Complex - Catering Servs,RB110,Catering Provisions -Food,5110,Food w/e 26/10/2014,03/11/2014,393052,83.32,NET,Janes Pantry,24500W
Gloucester City Council,23UE,REDACTED,REDACTED,REDACTED,REDACTED,REDACTED,03/11/2014,REDACTED,500,NET,REDACTED,REDACTED
Gloucester City Council,23UE,The Arbor,HC501,General Repair/Maint Buildings,3000,"Deep Clean, Hob Cleaning",03/11/2014,389684,152,NET,Jackson Cleaning Services,14969D
Gloucester City Council,23UE,Financial Services,RT200,Fees For Services Received,5350,"Kings Walk Car Park, unblock slot drain",,390162,35.38,NET,Rf Gardiner Limited,12299B
Gloucester City Council,23UE,Financial Services,RT200,Fees For Services Received,5350,St Peters School,,392469,5650,NET,Rj Contracting (Environmental) Ltd,07429H
Gloucester City Council,23UE,Ugly Structures,GY010,Contract Payments,0020,7 Day Inspection,,389126,295,CAP,Asm Scaffolding Services Ltd,14573K
Gloucester City Council,23UE,Ugly Structures,GY010,Contract Payments,0020,7 Day Inspection & update staff-tag,,389127,95,CAP,Asm Scaffolding Services Ltd,14573K
Gloucester City Council,23UE,Ugly Structures,GY010,Contract Payments,0020,Site Visit 14/08/2014,,391207,95,CAP,Asm Scaffolding Services Ltd,14573K
Gloucester City Council,23UE,Ugly Structures,GY010,Contract Payments,0020,Site Visit 20/08/2014,,391221,450,CAP,Asm Scaffolding Services Ltd,14573K
Gloucester City Council,23UE,Utilities,PT502,Electricity Supply,3110,UNIT 1 1-6 NORTHGATE ST,,392335,10.93,NET,Southern Electric,05714A
Gloucester City Council,23UE,Utilities,PT502,Electricity Supply,3110,UNIT 1 1-6 NORTHGATE ST,,392336,14.41,NET,Southern Electric,05714A
Gloucester City Council,23UE,Utilities,PT502,Electricity Supply,3110,UNIT 1 1-6 NORTHGATE ST,,392337,16.07,NET,Southern Electric,05714A
Gloucester City Council,23UE,Utilities,PT502,Electricity Supply,3110,UNIT 1 1-6 NORTHGATE ST,,392338,31.42,NET,Southern Electric,05714A
Gloucester City Council,23UE,Utilities,PT502,Electricity Supply,3110,UNIT 1 1-6 NORTHGATE ST,,392339,45.45,NET,Southern Electric,05714A
Gloucester City Council,23UE,Utilities,PT502,Electricity Supply,3110,UNIT 1 1-6 NORTHGATE ST,,392340,38.25,NET,Southern Electric,05714A
Gloucester City Council,23UE,Utilities,PT502,Electricity Supply,3110,UNIT 1 1-6 NORTHGATE ST,,392341,45,NET,Southern Electric,05714A
Gloucester City Council,23UE,Utilities,PT502,Electricity Supply,3110,UNIT 1 1-6 NORTHGATE ST,,392342,8.1,NET,Southern Electric,05714A
Gloucester City Council,23UE,Utilities,PT502,Electricity Supply,3110,UNIT 5 SOUTHGATE ST,,392334,10.93,NET,Southern Electric,05714A
Gloucester City Council,23UE,Utilities,PT502,Electricity Supply,3110,UNIT 6 1-6 NORTHGATE ST,,392326,155.49,NET,Southern Electric,05714A
Gloucester City Council,23UE,Utilities,PT502,Electricity Supply,3110,UNIT 6 1-6 NORTHGATE ST,,392327,930.08,NET,Southern Electric,05714A
Gloucester City Council,23UE,Utilities,PT502,Electricity Supply,3110,UNIT 6 1-6 NORTHGATE ST,,392328,819.25,NET,Southern Electric,05714A
Gloucester City Council,23UE,Utilities,PT502,Electricity Supply,3110,UNIT 6 1-6 NORTHGATE ST,,392329,911.99,NET,Southern Electric,05714A
Gloucester City Council,23UE,Utilities,PT502,Electricity Supply,3110,UNIT 6 1-6 NORTHGATE ST,,392330,742.62,NET,Southern Electric,05714A
Gloucester City Council,23UE,Utilities,PT502,Electricity Supply,3110,UNIT 6 1-6 NORTHGATE ST,,392331,622.26,NET,Southern Electric,05714A
Gloucester City Council,23UE,Utilities,PT502,Electricity Supply,3110,UNIT 6 1-6 NORTHGATE ST,,392332,558.66,NET,Southern Electric,05714A
Gloucester City Council,23UE,Utilities,PT502,Electricity Supply,3110,UNIT 6 1-6 NORTHGATE ST,,392333,430.24,NET,Southern Electric,05714A
,,,,,,,,Sum:,2855785.35,,,
